date,department/service,beneficiary,amount,summary of purpose,category,transaction number
01.03.2017,CHILDREN'S AND ADULTS ,MILES AND STOCKBRIDGE P.C.,"4,164.26",LEGAL FEES,PROFESSIONAL FEES ,INTERNATIONAL PAYMENT
01.03.2017,CHILDREN'S AND ADULTS ,MILES AND STOCKBRIDGE P.C.,"10,412.74",LEGAL FEES,PROFESSIONAL FEES ,INTERNATIONAL PAYMENT
01.03.2017,HOUSING,THE SYMPHONY GROUP PLC,"-1,053.20",STORES,CREDITORS -GR/IR CLEARING ACCOUNT,5902239587
01.03.2017,HOUSING,THE SYMPHONY GROUP PLC,-526.6,STORES,CREDITORS -GR/IR CLEARING ACCOUNT,5902239587
01.03.2017,HOUSING,THE SYMPHONY GROUP PLC,-381.4,STORES,CREDITORS -GR/IR CLEARING ACCOUNT,5902239587
01.03.2017,HOUSING,THE SYMPHONY GROUP PLC,381.4,STORES,CREDITORS -GR/IR CLEARING ACCOUNT,5902239581
01.03.2017,HOUSING,THE SYMPHONY GROUP PLC,526.6,STORES,CREDITORS -GR/IR CLEARING ACCOUNT,5902239581
01.03.2017,HOUSING,THE SYMPHONY GROUP PLC,"1,053.20",STORES,CREDITORS -GR/IR CLEARING ACCOUNT,5902239581
02.03.2017,ADULT SOCIAL CARE,REDACTED PERSONAL DATA,475.36,APPOINTEESHIPS,OTHER PAYMENTS FOR CLIENTS,2102634627
02.03.2017,ADULT SOCIAL CARE,SOUTHWARK CITIZENS ADVICE,"123,255.46",BREAK FOR CARERS,EXTERNAL AGENCIES AND BODIES,5902239346
02.03.2017,ADULT SOCIAL CARE,AQUARIUM CARDS,316.75,CENTRAL SUPP COSTS,PAYMENTS FOR FINANCIAL SERVICES,5902239637
02.03.2017,ADULT SOCIAL CARE,MOTT MACDONALD LTD,"7,700.00",HALF MOON LANE,EXTERNAL AGENCIES AND BODIES,5902239553
02.03.2017,ADULT SOCIAL CARE,MIHOMECARE LTD,449.82,HOME CARE C&V,HOMECARE - C&V,2102637261
02.03.2017,ADULT SOCIAL CARE,MIHOMECARE LTD,480.82,HOME CARE C&V,HOMECARE - C&V,2102637263
02.03.2017,ADULT SOCIAL CARE,MARCUS AND MARCUS LTD,"4,428.66",LD LTS 18-64,SUPPORTED LIVING,2102637093
02.03.2017,ADULT SOCIAL CARE,MARCUS AND MARCUS LTD,"14,880.00",LD LTS 18-64,SUPPORTED LIVING,2102637094
02.03.2017,ADULT SOCIAL CARE,MIHOMECARE LTD,816.96,LD LTS 18-64,HOMECARE - C&V,2102637121
02.03.2017,ADULT SOCIAL CARE,MIHOMECARE LTD,816.96,LD LTS 18-64,HOMECARE - C&V,2102637163
02.03.2017,ADULT SOCIAL CARE,MIHOMECARE LTD,953.12,LD LTS 18-64,HOMECARE - C&V,2102637143
02.03.2017,ADULT SOCIAL CARE,THE REGARD PARTNERSHIP,"1,032.80",LD LTS 18-64,HOMECARE - SPOT,2102637092
02.03.2017,ADULT SOCIAL CARE,THE REGARD PARTNERSHIP,"1,362.40",LD LTS 18-64,HOMECARE - SPOT,2102637095
02.03.2017,ADULT SOCIAL CARE,REDACTED PERSONAL DATA,"1,125.12",LD LTS 18-64,SUPPORTED LIVING,2102637096
02.03.2017,ADULT SOCIAL CARE,REDACTED PERSONAL DATA,"1,125.12",LD LTS 18-64,SUPPORTED LIVING,2102637097
02.03.2017,ADULT SOCIAL CARE,MIHOMECARE LTD,629.74,MH LTS 18-64,HOMECARE - C&V,2102637110
02.03.2017,ADULT SOCIAL CARE,MIHOMECARE LTD,"1,327.57",MH LTS 18-64,HOMECARE - C&V,2102637152
02.03.2017,ADULT SOCIAL CARE,MIHOMECARE LTD,272.34,PHY LTS 18-64,HOMECARE - C&V,2102637154
02.03.2017,ADULT SOCIAL CARE,MIHOMECARE LTD,306.36,PHY LTS 18-64,HOMECARE - C&V,2102637127
02.03.2017,ADULT SOCIAL CARE,MIHOMECARE LTD,340.4,PHY LTS 18-64,HOMECARE - C&V,2102637123
02.03.2017,ADULT SOCIAL CARE,MIHOMECARE LTD,340.4,PHY LTS 18-64,HOMECARE - C&V,2102637139
02.03.2017,ADULT SOCIAL CARE,MIHOMECARE LTD,340.4,PHY LTS 18-64,HOMECARE - C&V,2102637140
02.03.2017,ADULT SOCIAL CARE,MIHOMECARE LTD,391.48,PHY LTS 18-64,HOMECARE - C&V,2102637150
02.03.2017,ADULT SOCIAL CARE,MIHOMECARE LTD,425.5,PHY LTS 18-64,HOMECARE - C&V,2102637116
02.03.2017,ADULT SOCIAL CARE,MIHOMECARE LTD,514.87,PHY LTS 18-64,HOMECARE - C&V,2102637135
02.03.2017,ADULT SOCIAL CARE,MIHOMECARE LTD,591.45,PHY LTS 18-64,HOMECARE - C&V,2102637146
02.03.2017,ADULT SOCIAL CARE,MIHOMECARE LTD,595.7,PHY LTS 18-64,HOMECARE - C&V,2102637158
02.03.2017,ADULT SOCIAL CARE,MIHOMECARE LTD,595.72,PHY LTS 18-64,HOMECARE - C&V,2102637114
02.03.2017,ADULT SOCIAL CARE,MIHOMECARE LTD,604.23,PHY LTS 18-64,HOMECARE - C&V,2102637153
02.03.2017,ADULT SOCIAL CARE,MIHOMECARE LTD,612.72,PHY LTS 18-64,HOMECARE - C&V,2102637119
02.03.2017,ADULT SOCIAL CARE,MIHOMECARE LTD,659.53,PHY LTS 18-64,HOMECARE - C&V,2102637111
02.03.2017,ADULT SOCIAL CARE,MIHOMECARE LTD,680.8,PHY LTS 18-64,HOMECARE - C&V,2102637105
02.03.2017,ADULT SOCIAL CARE,MIHOMECARE LTD,782.92,PHY LTS 18-64,HOMECARE - C&V,2102637141
02.03.2017,ADULT SOCIAL CARE,MIHOMECARE LTD,799.94,PHY LTS 18-64,HOMECARE - C&V,2102637118
02.03.2017,ADULT SOCIAL CARE,MIHOMECARE LTD,887.93,PHY LTS 18-64,HOMECARE - C&V,2102637100
02.03.2017,ADULT SOCIAL CARE,MIHOMECARE LTD,970.16,PHY LTS 18-64,HOMECARE - C&V,2102637128
02.03.2017,ADULT SOCIAL CARE,MIHOMECARE LTD,991.43,PHY LTS 18-64,HOMECARE - C&V,2102637103
02.03.2017,ADULT SOCIAL CARE,MIHOMECARE LTD,"1,021.20",PHY LTS 18-64,HOMECARE - C&V,2102637129
02.03.2017,ADULT SOCIAL CARE,MIHOMECARE LTD,"1,025.47",PHY LTS 18-64,HOMECARE - C&V,2102637130
02.03.2017,ADULT SOCIAL CARE,MIHOMECARE LTD,"1,029.71",PHY LTS 18-64,HOMECARE - C&V,2102637131
02.03.2017,ADULT SOCIAL CARE,MIHOMECARE LTD,"1,055.24",PHY LTS 18-64,HOMECARE - C&V,2102637138
02.03.2017,ADULT SOCIAL CARE,MIHOMECARE LTD,"1,123.32",PHY LTS 18-64,HOMECARE - C&V,2102637144
02.03.2017,ADULT SOCIAL CARE,MIHOMECARE LTD,"1,204.18",PHY LTS 18-64,HOMECARE - C&V,2102637132
02.03.2017,ADULT SOCIAL CARE,MIHOMECARE LTD,"1,225.44",PHY LTS 18-64,HOMECARE - C&V,2102637107
02.03.2017,ADULT SOCIAL CARE,MIHOMECARE LTD,"1,421.17",PHY LTS 18-64,HOMECARE - C&V,2102637102
02.03.2017,ADULT SOCIAL CARE,MIHOMECARE LTD,"1,429.68",PHY LTS 18-64,HOMECARE - C&V,2102637117
02.03.2017,ADULT SOCIAL CARE,MIHOMECARE LTD,"1,497.76",PHY LTS 18-64,HOMECARE - C&V,2102637162
02.03.2017,ADULT SOCIAL CARE,MIHOMECARE LTD,"1,565.84",PHY LTS 18-64,HOMECARE - C&V,2102637126
02.03.2017,ADULT SOCIAL CARE,MIHOMECARE LTD,"1,982.83",PHY LTS 18-64,HOMECARE - C&V,2102637134
02.03.2017,ADULT SOCIAL CARE,MIHOMECARE LTD,"2,221.11",PHY LTS 18-64,HOMECARE - C&V,2102637109
02.03.2017,ADULT SOCIAL CARE,MIHOMECARE LTD,"2,272.17",PHY LTS 18-64,HOMECARE - C&V,2102637142
02.03.2017,ADULT SOCIAL CARE,MIHOMECARE LTD,357.42,PHY LTS 65+,HOMECARE - C&V,2102637149
02.03.2017,ADULT SOCIAL CARE,MIHOMECARE LTD,399.97,PHY LTS 65+,HOMECARE - C&V,2102637115
02.03.2017,ADULT SOCIAL CARE,MIHOMECARE LTD,442.52,PHY LTS 65+,HOMECARE - C&V,2102637151
02.03.2017,ADULT SOCIAL CARE,MIHOMECARE LTD,519.11,PHY LTS 65+,HOMECARE - C&V,2102637113
02.03.2017,ADULT SOCIAL CARE,MIHOMECARE LTD,595.72,PHY LTS 65+,HOMECARE - C&V,2102637090
02.03.2017,ADULT SOCIAL CARE,MIHOMECARE LTD,638.25,PHY LTS 65+,HOMECARE - C&V,2102637124
02.03.2017,ADULT SOCIAL CARE,MIHOMECARE LTD,644.72,PHY LTS 65+,HOMECARE - C&V,2102637091
02.03.2017,ADULT SOCIAL CARE,MIHOMECARE LTD,663.8,PHY LTS 65+,HOMECARE - C&V,2102637101
02.03.2017,ADULT SOCIAL CARE,MIHOMECARE LTD,765.92,PHY LTS 65+,HOMECARE - C&V,2102637137
02.03.2017,ADULT SOCIAL CARE,MIHOMECARE LTD,"1,089.28",PHY LTS 65+,HOMECARE - C&V,2102637120
02.03.2017,ADULT SOCIAL CARE,MIHOMECARE LTD,"1,327.56",PHY LTS 65+,HOMECARE - SPOT,2102637125
02.03.2017,ADULT SOCIAL CARE,MIHOMECARE LTD,527.64,PHY STS 18-64,HOMECARE - IC,2102637147
02.03.2017,ADULT SOCIAL CARE,THE REGARD PARTNERSHIP,"1,032.80",PWLD HOME CARE IND,HOMECARE - SPOT,2102637260
02.03.2017,ADULT SOCIAL CARE,GENERAL WELFARE OF THE BLIND,"1,963.03",SHLTED WORKSHOP/BLIND,OTHER PAYMENTS FOR CLIENTS,2102637258
02.03.2017,ADULT SOCIAL CARE,GENERAL WELFARE OF THE BLIND,"2,002.33",SHLTED WORKSHOP/BLIND,OTHER PAYMENTS FOR CLIENTS,2102637259
02.03.2017,ADULT SOCIAL CARE,MIHOMECARE LTD,408.48,SOCIAL ISOLATION,HOMECARE - C&V,2102637136
02.03.2017,ADULT SOCIAL CARE,MIHOMECARE LTD,561.66,SOCIAL ISOLATION,HOMECARE - C&V,2102637148
02.03.2017,ADULT SOCIAL CARE,MIHOMECARE LTD,"4,008.21",SOCIAL ISOLATION,HOMECARE - C&V,2102637161
02.03.2017,ADULT SOCIAL CARE,TUNSTALL HEALTHCARE (UK) LTD,816,SOUTHWARK RESOURCE CENTRE,EQUIPMENT PURCHASE & REPAIR,5902239218
02.03.2017,ASSET MANAGEMENT,SALTASH ENTERPRISES LTD,"94,677.47",DISREPAIR,BUILDING R&M,2102637079
02.03.2017,ASSET MANAGEMENT,REDACTED PERSONAL DATA,434.5,DISREPAIR,LEGAL FEES & COURT COSTS,2102637273
02.03.2017,ASSET MANAGEMENT,PENINSULA WATER HYGIENE LTD,850,ENG CONTRACTS,BOOKS & PUBLICATIONS,5902239584
02.03.2017,ASSET MANAGEMENT,PENINSULA WATER HYGIENE LTD,"1,547.50",ENG CONTRACTS,BOOKS & PUBLICATIONS,5902239588
02.03.2017,ASSET MANAGEMENT,A & H PEST CONTROL LTD,470,ENG CONTRACTS (NORTH),PLANNED MAINTENANCE,5902239322
02.03.2017,ASSET MANAGEMENT,A & H PEST CONTROL LTD,490,ENG CONTRACTS (NORTH),PLANNED MAINTENANCE,5902239319
02.03.2017,ASSET MANAGEMENT,A & H PEST CONTROL LTD,590,ENG CONTRACTS (NORTH),PLANNED MAINTENANCE,5902239320
02.03.2017,ASSET MANAGEMENT,A & H PEST CONTROL LTD,590,ENG CONTRACTS (NORTH),PLANNED MAINTENANCE,5902239324
02.03.2017,ASSET MANAGEMENT,A & H PEST CONTROL LTD,"1,690.00",ENG CONTRACTS (NORTH),PLANNED MAINTENANCE,5902239317
02.03.2017,ASSET MANAGEMENT,BRIDGEWATER ROOFING CONTRACTORS LTD,280,R&M CONTRACTS (NORTH),OTHER R&M,2102637281
02.03.2017,ASSET MANAGEMENT,BRIDGEWATER ROOFING CONTRACTORS LTD,400,R&M CONTRACTS (NORTH),OTHER R&M,2102637280
02.03.2017,CENTRAL FUNCTIONS,APTIVA ENVIRONMENTAL LTD,350,COMMERCIAL PROPERTIES,BUILDING R&M,5902239277
02.03.2017,CENTRAL FUNCTIONS,CBS MAINTENANCE SERVICES LTD,"1,023.90",COMMERCIAL PROPERTIES,PROFESSIONAL FEES,5902238869
02.03.2017,CENTRAL FUNCTIONS,NPOWER LTD,"2,009.34",HEATING ACCOUNT,ELECTRICITY,5902239592
02.03.2017,CHIEF EXECTIVE,CARTER JONAS LLP,"1,000.00",CAPITAL PS (REGEN),LAND & BUILDINGS ACQUISITION FEES,5902238147
02.03.2017,CHIEF EXECTIVE,ERECT ARCHITECTURE LTD,"6,578.64",CAPITAL PS (REGEN),CONSTRUCTION FEES,5902239301
02.03.2017,CHIEF EXECTIVE,LANDOLT & BROWN,"11,440.00",CAPITAL PS (REGEN),CONSTRUCTION FEES - ARCHITECT,5902239524
02.03.2017,CHIEF EXECTIVE,LANDOLT & BROWN,"15,244.05",CAPITAL PS (REGEN),CONSTRUCTION FEES - ARCHITECT,5902239528
02.03.2017,CHIEF EXECTIVE,STANDAGE & CO LTD,"69,000.35",CAPITAL PS (REGEN),CONSTRUCTION MAIN CONTRACT -CERTIFICATED,5902239300
02.03.2017,CHIEF EXECUTIVE,CONWAY AECOM LTD,"22,951.65",CAPITAL PS (REGEN),CONSTR'N SUB CONTRACT - NON CERTIFICATED,2102637074
02.03.2017,CHIEF EXECUTIVE'S OFFICE,DISENTANGLE PRODUCTIONS LLP,"3,059.56",YOUTH FUND EMPLOYMENT,GRANTS,2102637255
02.03.2017,CHIEF EXECUTIVE'S OFFICE,FOOTPRINT SCENERY LTD,"2,138.50",YOUTH FUND EMPLOYMENT,GRANTS,2102637265
02.03.2017,CHILDREN AND ADULT,GRAEME ASH (SHOPFITTERS) LTD,"221,834.27",CAPITAL PS (EDUCATION),CONSTRUCTION MAIN CONTRACT -CERTIFICATED,2102637279
02.03.2017,CHILDREN AND ADULT,NUMBER 10 INTERIM LTD,"2,625.00",CAPITAL PS (STRAT SERV),ICT ACQUISITION FEES,5902238130
02.03.2017,CHILDREN'S SERVICES,REDACTED PERSONAL DATA,401.08,ADOPTION PLACEMENTS & INTER AGENCY,PAYMENTS TO CARERS,5902239350
02.03.2017,CHILDREN'S SERVICES,KENT HOMEFINDING & FOSTERING LTD,"2,746.80",AGENCY FOSTERING,EXTERNAL AGENCIES AND BODIES,5902239274
02.03.2017,CHILDREN'S SERVICES,KENT HOMEFINDING & FOSTERING LTD,"2,746.80",AGENCY FOSTERING,EXTERNAL AGENCIES AND BODIES,5902239274
02.03.2017,CHILDREN'S SERVICES,KENT HOMEFINDING & FOSTERING LTD,"2,746.80",AGENCY FOSTERING,EXTERNAL AGENCIES AND BODIES,5902239274
02.03.2017,CHILDREN'S SERVICES,CITYGLEN LTD,"1,209.00",AIS - IHT,SECTION 17 PAYMENTS TO AGENCIES/CARERS,5902239589
02.03.2017,CHILDREN'S SERVICES,CITYGLEN LTD,"1,209.00",AIS - IHT,SECTION 17 PAYMENTS TO AGENCIES/CARERS,5902239591
02.03.2017,CHILDREN'S SERVICES,CITYGLEN LTD,"1,519.00",AIS - IHT,SECTION 17 PAYMENTS TO AGENCIES/CARERS,5902239582
02.03.2017,CHILDREN'S SERVICES,CITYGLEN LTD,"1,740.00",AIS - IHT,SECTION 17 PAYMENTS TO AGENCIES/CARERS,5902239574
02.03.2017,CHILDREN'S SERVICES,CITYGLEN LTD,"1,860.00",AIS - IHT,SECTION 17 PAYMENTS TO AGENCIES/CARERS,5902239577
02.03.2017,CHILDREN'S SERVICES,CITYGLEN LTD,"2,170.00",AIS - IHT,SECTION 17 PAYMENTS TO AGENCIES/CARERS,5902239580
02.03.2017,CHILDREN'S SERVICES,ACCESS MOBILITY TRANSPORT LTD,"2,022.00",ALTERNATIVE PROVISION,EXTERNAL AGENCIES AND BODIES,5902239625
02.03.2017,CHILDREN'S SERVICES,ACCESS MOBILITY TRANSPORT LTD,"2,059.00",ALTERNATIVE PROVISION,EXTERNAL AGENCIES AND BODIES,5902239629
02.03.2017,CHILDREN'S SERVICES,FRESHSTART IN EDUCATION,"9,828.00",ALTERNATIVE PROVISION,EXTERNAL AGENCIES AND BODIES,5902239310
02.03.2017,CHILDREN'S SERVICES,REDACTED PERSONAL DATA,300,DISABILITY & HIV,ADDITIONAL PAYMENTS TO AGENCIES/CARERS,2102637192
02.03.2017,CHILDREN'S SERVICES,REDACTED PERSONAL DATA,312,DISABILITY & HIV,PAYMENTS TO CARERS,2102637178
02.03.2017,CHILDREN'S SERVICES,REDACTED PERSONAL DATA,296.4,DISABILITY & HIV,PAYMENTS TO CARERS,2102637186
02.03.2017,CHILDREN'S SERVICES,REDACTED PERSONAL DATA,"3,947.59",DISABILITY & HIV,PAYMENTS TO CARERS,2102637188
02.03.2017,CHILDREN'S SERVICES,REDACTED PERSONAL DATA,424,DISABILITY & HIV,PAYMENTS TO CARERS,2102637183
02.03.2017,CHILDREN'S SERVICES,REDACTED PERSONAL DATA,735.34,DISABILITY & HIV,PAYMENTS TO CARERS,2102637182
02.03.2017,CHILDREN'S SERVICES,REDACTED PERSONAL DATA,735.34,DISABILITY & HIV,PAYMENTS TO CARERS,2102637190
02.03.2017,CHILDREN'S SERVICES,REDACTED PERSONAL DATA,876.08,DISABILITY & HIV,PAYMENTS TO CARERS,2102637194
02.03.2017,CHILDREN'S SERVICES,REDACTED PERSONAL DATA,480.6,DISABILITY & HIV,PAYMENTS TO CARERS,2102637193
02.03.2017,CHILDREN'S SERVICES,REDACTED PERSONAL DATA,382,DISABILITY & HIV,PAYMENTS TO CARERS,2102637185
02.03.2017,CHILDREN'S SERVICES,SIRON LTD,"1,413.43",FAMILY ASSESSMENTS,RESIDENTIAL CARE,5902238912
02.03.2017,CHILDREN'S SERVICES,AVOCET SOCIAL CARE LTD,"3,500.00",FOSTERING  PRAC GROUPS,PROFESSIONAL FEES,5902239312
02.03.2017,CHILDREN'S SERVICES,ASSET GROVE LETTINGS LTD,350,INTENTIONALLY HOMELESS PLACEMENTS,SECTION 17 PAYMENTS TO AGENCIES/CARERS,5902239613
02.03.2017,CHILDREN'S SERVICES,CITYGLEN LTD,"1,350.00",INTENTIONALLY HOMELESS PLACEMENTS,SECTION 17 PAYMENTS TO AGENCIES/CARERS,5902239607
02.03.2017,CHILDREN'S SERVICES,CITYGLEN LTD,"1,395.00",INTENTIONALLY HOMELESS PLACEMENTS,SECTION 17 PAYMENTS TO AGENCIES/CARERS,5902239606
02.03.2017,CHILDREN'S SERVICES,CITYGLEN LTD,"1,519.00",INTENTIONALLY HOMELESS PLACEMENTS,SECTION 17 PAYMENTS TO AGENCIES/CARERS,5902239583
02.03.2017,CHILDREN'S SERVICES,BEORMUND PRIMARY SCHOOL,"1,400.00",PRIMARY ACHIEVEMENT,EXTERNAL AGENCIES AND BODIES,5902239309
02.03.2017,CHILDREN'S SERVICES,SOUTHWARK INCLUSIVE LEARNING SERVICE,"8,415.00",PUPIL PREMIUM,"SCHOOLS CAPITATION, STANDARDS FUND",5902239423
02.03.2017,CHILDREN'S SERVICES,ALBION PRIMARY SCHOOL,"52,800.00",PUPIL PREMIUM,"SCHOOLS CAPITATION, STANDARDS FUND",5902239351
02.03.2017,CHILDREN'S SERVICES,ALFRED SALTER PRIMARY SCHOOL,"47,070.00",PUPIL PREMIUM,"SCHOOLS CAPITATION, STANDARDS FUND",5902239352
02.03.2017,CHILDREN'S SERVICES,BELLENDEN PRIMARY SCHOOL,"21,780.00",PUPIL PREMIUM,"SCHOOLS CAPITATION, STANDARDS FUND",5902239353
02.03.2017,CHILDREN'S SERVICES,BEORMUND PRIMARY SCHOOL,"8,250.00",PUPIL PREMIUM,"SCHOOLS CAPITATION, STANDARDS FUND",5902239354
02.03.2017,CHILDREN'S SERVICES,BESSEMER GRANGE PRIMARY SCHOOL,"43,230.00",PUPIL PREMIUM,"SCHOOLS CAPITATION, STANDARDS FUND",5902239355
02.03.2017,CHILDREN'S SERVICES,BETHLEM & MAUDSLEY HOSPITAL SCHOOL,"4,909.00",PUPIL PREMIUM,"SCHOOLS CAPITATION, STANDARDS FUND",5902239356
02.03.2017,CHILDREN'S SERVICES,BOUCHER C OF E PRIMARY SCHOOL,"18,480.00",PUPIL PREMIUM,"SCHOOLS CAPITATION, STANDARDS FUND",5902239357
02.03.2017,CHILDREN'S SERVICES,BRUNSWICK PARK PRIMARY SCHOOL,"88,070.00",PUPIL PREMIUM,"SCHOOLS CAPITATION, STANDARDS FUND",5902239358
02.03.2017,CHILDREN'S SERVICES,CAMELOT PRIMARY SCHOOL,"69,075.00",PUPIL PREMIUM,"SCHOOLS CAPITATION, STANDARDS FUND",5902239359
02.03.2017,CHILDREN'S SERVICES,CATHEDRAL SCHOOL OF ST SAVIOUR & MARY,"13,530.00",PUPIL PREMIUM,"SCHOOLS CAPITATION, STANDARDS FUND",5902239418
02.03.2017,CHILDREN'S SERVICES,CHARLES DICKENS PRIMARY SCHOOL,"51,215.00",PUPIL PREMIUM,"SCHOOLS CAPITATION, STANDARDS FUND",5902239360
02.03.2017,CHILDREN'S SERVICES,CHARLOTTE  SHARMAN PRIMARY SCHOOL,"47,670.00",PUPIL PREMIUM,"SCHOOLS CAPITATION, STANDARDS FUND",5902239361
02.03.2017,CHILDREN'S SERVICES,CHERRY GARDEN SCHOOL,"10,890.00",PUPIL PREMIUM,"SCHOOLS CAPITATION, STANDARDS FUND",5902239365
02.03.2017,CHILDREN'S SERVICES,COBOURG PRIMARY SCHOOL,"58,885.00",PUPIL PREMIUM,"SCHOOLS CAPITATION, STANDARDS FUND",5902239366
02.03.2017,CHILDREN'S SERVICES,COMBER GROVE PRIMARY SCHOOL,"34,320.00",PUPIL PREMIUM,"SCHOOLS CAPITATION, STANDARDS FUND",5902239367
02.03.2017,CHILDREN'S SERVICES,CRAMPTON PRIMARY SCHOOL,"28,155.00",PUPIL PREMIUM,"SCHOOLS CAPITATION, STANDARDS FUND",5902239368
02.03.2017,CHILDREN'S SERVICES,CRAWFORD PRIMARY SCHOOL,"71,425.00",PUPIL PREMIUM,"SCHOOLS CAPITATION, STANDARDS FUND",5902239369
02.03.2017,CHILDREN'S SERVICES,DOG KENNEL HILL PRIMARY SCHOOL,"39,415.00",PUPIL PREMIUM,"SCHOOLS CAPITATION, STANDARDS FUND",5902239370
02.03.2017,CHILDREN'S SERVICES,DULWICH VILLAGE CE INFANTS SCHOOL,"6,440.00",PUPIL PREMIUM,"SCHOOLS CAPITATION, STANDARDS FUND",5902239371
02.03.2017,CHILDREN'S SERVICES,DULWICH WOOD PRIMARY SCHOOL,"33,000.00",PUPIL PREMIUM,"SCHOOLS CAPITATION, STANDARDS FUND",5902239383
02.03.2017,CHILDREN'S SERVICES,ENGLISH MARTYRS RC PRIMARY SCHOOL,"45,870.00",PUPIL PREMIUM,"SCHOOLS CAPITATION, STANDARDS FUND",5902239374
02.03.2017,CHILDREN'S SERVICES,FRIARS PRIMARY SCHOOL,"24,090.00",PUPIL PREMIUM,"SCHOOLS CAPITATION, STANDARDS FUND",5902239376
02.03.2017,CHILDREN'S SERVICES,GOODRICH PRIMARY SCHOOL,"52,890.00",PUPIL PREMIUM,"SCHOOLS CAPITATION, STANDARDS FUND",5902239372
02.03.2017,CHILDREN'S SERVICES,GRANGE PRIMARY SCHOOL,"69,300.00",PUPIL PREMIUM,"SCHOOLS CAPITATION, STANDARDS FUND",5902239373
02.03.2017,CHILDREN'S SERVICES,HAYMERLE SCHOOL,"21,120.00",PUPIL PREMIUM,"SCHOOLS CAPITATION, STANDARDS FUND",5902239385
02.03.2017,CHILDREN'S SERVICES,HEBER PRIMARY SCHOOL,"21,450.00",PUPIL PREMIUM,"SCHOOLS CAPITATION, STANDARDS FUND",5902239377
02.03.2017,CHILDREN'S SERVICES,HIGHSHORE SCHOOL,"14,734.00",PUPIL PREMIUM,"SCHOOLS CAPITATION, STANDARDS FUND",5902239386
02.03.2017,CHILDREN'S SERVICES,HOLLYDALE PRIMARY SCHOOL,"47,520.00",PUPIL PREMIUM,"SCHOOLS CAPITATION, STANDARDS FUND",5902239378
02.03.2017,CHILDREN'S SERVICES,ILDERTON PRIMARY SCHOOL,"54,780.00",PUPIL PREMIUM,"SCHOOLS CAPITATION, STANDARDS FUND",5902239379
02.03.2017,CHILDREN'S SERVICES,IVYDALE PRIMARY SCHOOL,"43,440.00",PUPIL PREMIUM,"SCHOOLS CAPITATION, STANDARDS FUND",5902239380
02.03.2017,CHILDREN'S SERVICES,JOHN RUSKIN PRIMARY SCHOOL,"66,660.00",PUPIL PREMIUM,"SCHOOLS CAPITATION, STANDARDS FUND",5902239381
02.03.2017,CHILDREN'S SERVICES,KEYWORTH PRIMARY SCHOOL,"58,740.00",PUPIL PREMIUM,"SCHOOLS CAPITATION, STANDARDS FUND",5902239382
02.03.2017,CHILDREN'S SERVICES,LYNDHURST PRIMARY SCHOOL,"41,210.00",PUPIL PREMIUM,"SCHOOLS CAPITATION, STANDARDS FUND",5902239384
02.03.2017,CHILDREN'S SERVICES,MICHAEL FARADAY PRIMARY SCHOOL,"57,380.00",PUPIL PREMIUM,"SCHOOLS CAPITATION, STANDARDS FUND",5902239387
02.03.2017,CHILDREN'S SERVICES,NOTRE DAME RC GIRLS SCHOOL,"76,676.00",PUPIL PREMIUM,"SCHOOLS CAPITATION, STANDARDS FUND",5902239388
02.03.2017,CHILDREN'S SERVICES,OLIVER GOLDSMITH PRIMARY SCHOOL,"66,330.00",PUPIL PREMIUM,"SCHOOLS CAPITATION, STANDARDS FUND",5902239389
02.03.2017,CHILDREN'S SERVICES,PETER HILLS CE SCHOOL,"27,390.00",PUPIL PREMIUM,"SCHOOLS CAPITATION, STANDARDS FUND",5902239390
02.03.2017,CHILDREN'S SERVICES,PHOENIX PRIMARY SCHOOL,"62,005.00",PUPIL PREMIUM,"SCHOOLS CAPITATION, STANDARDS FUND",5902239375
02.03.2017,CHILDREN'S SERVICES,PILGRIM'S WAY PRIMARY SCHOOL,"35,310.00",PUPIL PREMIUM,"SCHOOLS CAPITATION, STANDARDS FUND",5902239391
02.03.2017,CHILDREN'S SERVICES,RIVERSIDE PRIMARY SCHOOL,"65,340.00",PUPIL PREMIUM,"SCHOOLS CAPITATION, STANDARDS FUND",5902239392
02.03.2017,CHILDREN'S SERVICES,ROBERT BROWNING PRIMARY SCHOOL,"53,460.00",PUPIL PREMIUM,"SCHOOLS CAPITATION, STANDARDS FUND",5902239393
02.03.2017,CHILDREN'S SERVICES,ROTHERHITHE PRIMARY SCHOOL,"85,430.00",PUPIL PREMIUM,"SCHOOLS CAPITATION, STANDARDS FUND",5902239394
02.03.2017,CHILDREN'S SERVICES,RYE OAK PRIMARY SCHOOL,"67,795.00",PUPIL PREMIUM,"SCHOOLS CAPITATION, STANDARDS FUND",5902239395
02.03.2017,CHILDREN'S SERVICES,SNOWSFIELDS PRIMARY SCHOOL,"24,750.00",PUPIL PREMIUM,"SCHOOLS CAPITATION, STANDARDS FUND",5902239396
02.03.2017,CHILDREN'S SERVICES,SOUTHWARK PARK PRIMARY SCHOOL,"48,510.00",PUPIL PREMIUM,"SCHOOLS CAPITATION, STANDARDS FUND",5902239397
02.03.2017,CHILDREN'S SERVICES,SPA SCHOOL,"10,285.00",PUPIL PREMIUM,"SCHOOLS CAPITATION, STANDARDS FUND",5902239398
02.03.2017,CHILDREN'S SERVICES,ST ANTHONYS RC SCHOOL,"14,150.00",PUPIL PREMIUM,"SCHOOLS CAPITATION, STANDARDS FUND",5902239399
02.03.2017,CHILDREN'S SERVICES,ST FRANCESCA CABRINI PRIMARY SCHOOL,"44,880.00",PUPIL PREMIUM,"SCHOOLS CAPITATION, STANDARDS FUND",5902239400
02.03.2017,CHILDREN'S SERVICES,ST FRANCIS'S RC PRIMARY SCHOOL,"35,310.00",PUPIL PREMIUM,"SCHOOLS CAPITATION, STANDARDS FUND",5902239401
02.03.2017,CHILDREN'S SERVICES,ST GEORGES CE SCHOOL,"16,170.00",PUPIL PREMIUM,"SCHOOLS CAPITATION, STANDARDS FUND",5902239403
02.03.2017,CHILDREN'S SERVICES,ST GEORGES RC SCHOOL,"35,785.00",PUPIL PREMIUM,"SCHOOLS CAPITATION, STANDARDS FUND",5902239402
02.03.2017,CHILDREN'S SERVICES,ST JAMES CE SCHOOL,"84,440.00",PUPIL PREMIUM,"SCHOOLS CAPITATION, STANDARDS FUND",5902239404
02.03.2017,CHILDREN'S SERVICES,ST JAMES THE GREAT RC SCHOOL,"18,150.00",PUPIL PREMIUM,"SCHOOLS CAPITATION, STANDARDS FUND",5902239405
02.03.2017,CHILDREN'S SERVICES,ST JOHNS & ST CLEMENTS CE SCHOOL,"26,425.00",PUPIL PREMIUM,"SCHOOLS CAPITATION, STANDARDS FUND",5902239407
02.03.2017,CHILDREN'S SERVICES,ST JOHNS RC PRIMARY SCHOOL,"29,040.00",PUPIL PREMIUM,"SCHOOLS CAPITATION, STANDARDS FUND",5902239409
02.03.2017,CHILDREN'S SERVICES,ST JOHNS WALWORTH CE SCHOOL,"21,450.00",PUPIL PREMIUM,"SCHOOLS CAPITATION, STANDARDS FUND",5902239406
02.03.2017,CHILDREN'S SERVICES,ST JOSEPHS CATHOLIC INFANTS SCHOOL,"15,840.00",PUPIL PREMIUM,"SCHOOLS CAPITATION, STANDARDS FUND",5902239363
02.03.2017,CHILDREN'S SERVICES,ST JOSEPHS CATHOLIC PRIMARY SCHOOL,"18,110.00",PUPIL PREMIUM,"SCHOOLS CAPITATION, STANDARDS FUND",5902239412
02.03.2017,CHILDREN'S SERVICES,ST JOSEPHS CATHOLIC SCHOOL,"23,100.00",PUPIL PREMIUM,"SCHOOLS CAPITATION, STANDARDS FUND",5902239410
02.03.2017,CHILDREN'S SERVICES,ST JOSEPHS RC JUNIOR  SCHOOL,"32,670.00",PUPIL PREMIUM,"SCHOOLS CAPITATION, STANDARDS FUND",5902239362
02.03.2017,CHILDREN'S SERVICES,ST JOSEPHS RC PRIMARY SCHOOL,"27,390.00",PUPIL PREMIUM,"SCHOOLS CAPITATION, STANDARDS FUND",5902239411
02.03.2017,CHILDREN'S SERVICES,ST JUDES CHURCH OF ENGLAND PRIMARY,"14,520.00",PUPIL PREMIUM,"SCHOOLS CAPITATION, STANDARDS FUND",5902239364
02.03.2017,CHILDREN'S SERVICES,ST MARY MAGDALENE CE SCHOOL,"28,155.00",PUPIL PREMIUM,"SCHOOLS CAPITATION, STANDARDS FUND",5902239413
02.03.2017,CHILDREN'S SERVICES,ST PAULS CE SCHOOL,"49,575.00",PUPIL PREMIUM,"SCHOOLS CAPITATION, STANDARDS FUND",5902239414
02.03.2017,CHILDREN'S SERVICES,ST PETERS CE SCHOOL,"24,750.00",PUPIL PREMIUM,"SCHOOLS CAPITATION, STANDARDS FUND",5902239415
02.03.2017,CHILDREN'S SERVICES,ST SAVIOURS & ST OLAVES SCHOOL,"70,125.00",PUPIL PREMIUM,"SCHOOLS CAPITATION, STANDARDS FUND",5902239416
02.03.2017,CHILDREN'S SERVICES,SURREY SQUARE JUNIOR SCHOOL,"60,720.00",PUPIL PREMIUM,"SCHOOLS CAPITATION, STANDARDS FUND",5902239417
02.03.2017,CHILDREN'S SERVICES,THE ST THOMAS THE APOSTLE COLLEGE,"68,723.00",PUPIL PREMIUM,"SCHOOLS CAPITATION, STANDARDS FUND",5902239408
02.03.2017,CHILDREN'S SERVICES,TOWER BRIDGE PRIMARY SCHOOL,"31,020.00",PUPIL PREMIUM,"SCHOOLS CAPITATION, STANDARDS FUND",5902239419
02.03.2017,CHILDREN'S SERVICES,TOWNSEND PRIMARY SCHOOL,"34,980.00",PUPIL PREMIUM,"SCHOOLS CAPITATION, STANDARDS FUND",5902239420
02.03.2017,CHILDREN'S SERVICES,TUKE SCHOOL,"7,362.00",PUPIL PREMIUM,"SCHOOLS CAPITATION, STANDARDS FUND",5902239421
02.03.2017,CHILDREN'S SERVICES,VICTORY SCHOOL,"26,730.00",PUPIL PREMIUM,"SCHOOLS CAPITATION, STANDARDS FUND",5902239422
02.03.2017,CHILDREN'S SERVICES,CITYGLEN LTD,"1,380.00",S & FAM SUPP - PRAC GRP A SET 14-16,SECTION 17 PAYMENTS TO AGENCIES/CARERS,5902239569
02.03.2017,CHILDREN'S SERVICES,CITYGLEN LTD,"1,800.00",S & FAM SUPP - PRAC GRP A SET 14-16,SECTION 17 PAYMENTS TO AGENCIES/CARERS,5902239567
02.03.2017,CHILDREN'S SERVICES,CITYGLEN LTD,"1,860.00",S & FAM SUPP - PRAC GRP A SET 14-16,SECTION 17 PAYMENTS TO AGENCIES/CARERS,5902239572
02.03.2017,CHILDREN'S SERVICES,CITYGLEN LTD,"1,209.00",S & FAM SUPP - PRAC GRP E SET 26-28,SECTION 17 PAYMENTS TO AGENCIES/CARERS,5902239586
02.03.2017,CHILDREN'S SERVICES,CITYGLEN LTD,624,S & FAM SUPP - PRAC GRP F SET 29-31,SECTION 17 PAYMENTS TO AGENCIES/CARERS,5902239594
02.03.2017,CHILDREN'S SERVICES,REDACTED PERSONAL DATA,500,STAYING PUT,PAYMENTS TO CARERS,2102637173
02.03.2017,CHILDREN'S SERVICES,REDACTED PERSONAL DATA,392.86,STAYING PUT,PAYMENTS TO CARERS,2102637175
02.03.2017,COMMUNITIES,EASYMOVE EA LIMITED,"1,860.00",NO RECOURSE TO PUBLIC FUNDS,SECTION 17 PAYMENTS TO AGENCIES/CARERS,5902239209
02.03.2017,COMMUNITIES,EASYMOVE EA LIMITED,"1,922.00",NO RECOURSE TO PUBLIC FUNDS,SECTION 17 PAYMENTS TO AGENCIES/CARERS,5902239210
02.03.2017,COMMUNITIES,EASYMOVE EA LIMITED,"1,922.00",NO RECOURSE TO PUBLIC FUNDS,SECTION 17 PAYMENTS TO AGENCIES/CARERS,5902239215
02.03.2017,CUSTOMER EXPERIENCE,CAPITA BUSINESS SERVICES LTD,359,HOUSING NEEDS,EQUIPMENT PURCHASE & REPAIR,5902239507
02.03.2017,CUSTOMER EXPERIENCE,PARIS SMITH AND RANDALL SOLICITORS,305.87,SALES & ACQUISITIONS,LEGAL FEES & COURT COSTS,5902239477
02.03.2017,CUSTOMER EXPERIENCE,PARIS SMITH AND RANDALL SOLICITORS,"1,026.00",SALES & ACQUISITIONS,LEGAL FEES & COURT COSTS,5902239473
02.03.2017,CUSTOMER EXPERIENCE HGF,JASON ARCHER,850,CITIZENSHIP,OFFICE EXPENSES,5902239231
02.03.2017,CUSTOMER EXPERIENCE HGF,CHARLOTTE BRAZIER,300,COMPLAINTS,PROFESSIONAL FEES,5902239552
02.03.2017,CUSTOMER EXPERIENCE HGF,IC CONSULTANTS LTD,668,CORONER'S,PROFESSIONAL FEES,5902239304
02.03.2017,CUSTOMER EXPERIENCE HGF,A & M ACCOMMODATION SERVICES LTD,"49,768.50",NIGHTLY TA (NSC),EXTERNAL AGENCIES AND BODIES,5902239220
02.03.2017,CUSTOMER EXPERIENCE HGF,CHARLOTTE WILSON-ADDO,"1,320.00",PRIVATE SECTOR LEASING,EXTERNAL AGENCIES AND BODIES,2102637083
02.03.2017,CUSTOMER EXPERIENCE HGF,RICHARDSON AWOMUSE,860,PRIVATE SECTOR LEASING,EXTERNAL AGENCIES AND BODIES,2102637082
02.03.2017,ENVIRONMENT AND LEISURE,CONWAY AECOM LTD,"69,300.17",CAPITAL PS (LEISURE),CONSTRUCTION FEES,5902238733
02.03.2017,ENVIRONMENT AND LEISURE,KOMPAN LTD,"16,171.29",CAPITAL PS (LEISURE),CONST'N MAIN CONTRACT - NON CERTIFICATED,2102637077
02.03.2017,ENVIRONMENT AND LEISURE,MOTHER GOOSE NURSERIES - GREENDALE FIELDS LTD,"2,500.00",CAPITAL PS (LEISURE),CONSTR'N SUB CONTRACT - NON CERTIFICATED,5902239605
02.03.2017,ENVIRONMENT AND LEISURE,STANBURY BUILDING SERVICES LTD,595,CAPITAL PS (LEISURE),CONSTRUCTION SITE COSTS,2102637084
02.03.2017,ENVIRONMENT AND LEISURE,STANBURY BUILDING SERVICES LTD,595,CAPITAL PS (LEISURE),CONSTRUCTION SITE COSTS,2102637085
02.03.2017,ENVIRONMENT AND LEISURE,STANBURY BUILDING SERVICES LTD,595,CAPITAL PS (LEISURE),CONSTRUCTION SITE COSTS,2102637086
02.03.2017,ENVIRONMENT AND LEISURE,DIOCESE OF SOUTHWARK,"2,365.60",LEGAL FEES,PROFESSIONAL FEES ,CHAPS PAYMENT
02.03.2017,ENVIRONMENT DIRECTORATE,LEX AUTOLEASE,"3,130.59",CAR LEASING CTRL A/C,PARKING CHARGES,5902239476
02.03.2017,ENVIRONMENT DIRECTORATE,LEX AUTOLEASE,"3,614.88",CAR LEASING CTRL A/C,PARKING CHARGES,5902239469
02.03.2017,ENVIRONMENT DIRECTORATE,LEX AUTOLEASE,"30,613.29",CAR LEASING CTRL A/C,VEHICLE LEASING CHARGES,5902239476
02.03.2017,ENVIRONMENT DIRECTORATE,LEX AUTOLEASE,"32,136.80",CAR LEASING CTRL A/C,VEHICLE LEASING CHARGES,5902239469
02.03.2017,ENVIRONMENT DIRECTORATE,LEX AUTOLEASE,-864.6,CAR LEASING CTRL A/C,VEHICLE LICENCES,5902238576
02.03.2017,ENVIRONMENT DIRECTORATE,LEX AUTOLEASE,-756.48,CAR LEASING CTRL A/C,VEHICLE LICENCES,5902238561
02.03.2017,ENVIRONMENT DIRECTORATE,LEX AUTOLEASE,-293.04,CAR LEASING CTRL A/C,VEHICLE LICENCES,5902238559
02.03.2017,ENVIRONMENT DIRECTORATE,CLOSE BROTHERS VEHICLE HIRE LTD,260,COMMERCIAL VEH CTRL A/C,HIRED VEHICLES,5902239467
02.03.2017,ENVIRONMENT DIRECTORATE,CLOSE BROTHERS VEHICLE HIRE LTD,268,COMMERCIAL VEH CTRL A/C,HIRED VEHICLES,5902239527
02.03.2017,ENVIRONMENT DIRECTORATE,CLOSE BROTHERS VEHICLE HIRE LTD,276,COMMERCIAL VEH CTRL A/C,HIRED VEHICLES,5902239471
02.03.2017,ENVIRONMENT DIRECTORATE,CLOSE BROTHERS VEHICLE HIRE LTD,367.34,COMMERCIAL VEH CTRL A/C,HIRED VEHICLES,5902239535
02.03.2017,ENVIRONMENT DIRECTORATE,CLOSE BROTHERS VEHICLE HIRE LTD,449.6,COMMERCIAL VEH CTRL A/C,HIRED VEHICLES,5902239474
02.03.2017,ENVIRONMENT DIRECTORATE,SCOT GROUP LIMITED,329,COMMERCIAL VEH CTRL A/C,HIRED VEHICLES,5902239516
02.03.2017,ENVIRONMENT DIRECTORATE,LYTE INDUSTRIES (WALES) LTD,274.92,ENGINEERING CRAFTS,MATERIALS,5902239636
02.03.2017,ENVIRONMENT DIRECTORATE,LYTE INDUSTRIES (WALES) LTD,445.98,ENGINEERING CRAFTS,MATERIALS,5902239636
02.03.2017,ENVIRONMENT DIRECTORATE,METCRAFT FINISHED PRODUCTS,480,ENGINEERING CRAFTS,OTHER CONTRACTORS,5902239455
02.03.2017,ENVIRONMENT DIRECTORATE,METCRAFT FINISHED PRODUCTS,880,ENGINEERING CRAFTS,OTHER CONTRACTORS,5902239450
02.03.2017,ENVIRONMENT DIRECTORATE,METCRAFT FINISHED PRODUCTS,990,ENGINEERING CRAFTS,OTHER CONTRACTORS,5902239455
02.03.2017,ENVIRONMENT DIRECTORATE,METCRAFT FINISHED PRODUCTS,"1,200.00",ENGINEERING CRAFTS,OTHER CONTRACTORS,5902239448
02.03.2017,ENVIRONMENT DIRECTORATE,METCRAFT FINISHED PRODUCTS,"1,440.00",ENGINEERING CRAFTS,OTHER CONTRACTORS,5902239452
02.03.2017,ENVIRONMENT DIRECTORATE,METCRAFT FINISHED PRODUCTS,"1,840.00",ENGINEERING CRAFTS,OTHER CONTRACTORS,5902239456
02.03.2017,ENVIRONMENT DIRECTORATE,METROL SPRINGS LIMITED,312.06,ENGINEERING CRAFTS,MATERIALS,5902239633
02.03.2017,ENVIRONMENT DIRECTORATE,SOUTH ESSEX STOCKHOLDERS LTD,270,ENGINEERING CRAFTS,MATERIALS,5902239617
02.03.2017,ENVIRONMENT DIRECTORATE,SOUTH ESSEX STOCKHOLDERS LTD,288,ENGINEERING CRAFTS,MATERIALS,5902239621
02.03.2017,ENVIRONMENT DIRECTORATE,SOUTH ESSEX STOCKHOLDERS LTD,328.5,ENGINEERING CRAFTS,MATERIALS,5902239621
02.03.2017,ENVIRONMENT DIRECTORATE,SOUTH ESSEX STOCKHOLDERS LTD,"1,288.00",ENGINEERING CRAFTS,MATERIALS,5902239623
02.03.2017,ENVIRONMENT DIRECTORATE,BELL BRUSH COMPANY,318,MANAGEMENT TEAM,MATERIALS,5902239656
02.03.2017,ENVIRONMENT DIRECTORATE,KOMPAN LTD,"1,056.72",PARKS TECH UNIT (PREMISES),BUILDING R&M,5902239440
02.03.2017,ENVIRONMENT DIRECTORATE,EDMUNDSON ELECTRICAL LTD,"1,101.00",PUBLIC LIGHTING,MATERIALS,5902239458
02.03.2017,ENVIRONMENT DIRECTORATE,EDMUNDSON ELECTRICAL LTD,"2,258.20",PUBLIC LIGHTING,MATERIALS,5902239458
02.03.2017,ENVIRONMENT DIRECTORATE,ALL PRINT SUPPLIES LTD,291,SIGN SHOP,MATERIALS,5902239634
02.03.2017,ENVIRONMENT DIRECTORATE,ALL PRINT SUPPLIES LTD,306.88,SIGN SHOP,MATERIALS,5902239634
02.03.2017,ENVIRONMENT DIRECTORATE,ALL PRINT SUPPLIES LTD,433.4,SIGN SHOP,MATERIALS,5902239634
02.03.2017,ENVIRONMENT DIRECTORATE,LONDON TOOLS LIMITED,275,SIGN SHOP,EQUIPMENT PURCHASE & REPAIR,5902239461
02.03.2017,ENVIRONMENT DIRECTORATE,CONWAY AECOM LTD,"266,059.55",STREET CARE OVERHEADS,HIGHWAYS TERM CONTRACT,2102637075
02.03.2017,ENVIRONMENT DIRECTORATE,SOUTHWARK NEWSPAPER LTD,276,STREET WORKS OVERHEADS,MARKETING & PUBLICITY SERVICES,5902239539
02.03.2017,ENVIRONMENT DIRECTORATE,SOUTHWARK NEWSPAPER LTD,288,STREET WORKS OVERHEADS,MARKETING & PUBLICITY SERVICES,5902239550
02.03.2017,ENVIRONMENT DIRECTORATE,SOUTHWARK NEWSPAPER LTD,288,STREET WORKS OVERHEADS,MARKETING & PUBLICITY SERVICES,5902239648
02.03.2017,ENVIRONMENT DIRECTORATE,SOUTHWARK NEWSPAPER LTD,288,STREET WORKS OVERHEADS,MARKETING & PUBLICITY SERVICES,5902239655
02.03.2017,ENVIRONMENT DIRECTORATE,SOUTHWARK NEWSPAPER LTD,300,STREET WORKS OVERHEADS,MARKETING & PUBLICITY SERVICES,5902239653
02.03.2017,ENVIRONMENT DIRECTORATE,SOUTHWARK NEWSPAPER LTD,324,STREET WORKS OVERHEADS,MARKETING & PUBLICITY SERVICES,5902239652
02.03.2017,ENVIRONMENT DIRECTORATE,SOUTHWARK NEWSPAPER LTD,444,STREET WORKS OVERHEADS,MARKETING & PUBLICITY SERVICES,5902239545
02.03.2017,F & C S EXCLUDING CORPORATE BUDGETS,CAPITA BUSINESS SERVICES LTD,359,ADMINISTRATIVE SUPPORT,TRAINING,5902239212
02.03.2017,F & C S EXCLUDING CORPORATE BUDGETS,RECOGNISING EXCELLENCE LTD,"1,237.50",LEGAL SVCES MANAGEMENT,SUBSCRIPTIONS,5902239217
02.03.2017,F & C S EXCLUDING CORPORATE BUDGETS,REDACTED PERSONAL DATA,-475.36,PAYMENTS CONTROL,OFFICE EXPENSES,2102637598
02.03.2017,HOUSING,OCO LIMITED,"403,131.81",PAYMENTS CONTROL ACCOUNT - OCO,MANUAL CREDITORS,5902239619
02.03.2017,HOUSING,CALLOW MASTER LOCKSMITHS,262.02,STORES,CREDITORS -GR/IR CLEARING ACCOUNT,5902239444
02.03.2017,HOUSING,CALLOW MASTER LOCKSMITHS,567.71,STORES,CREDITORS -GR/IR CLEARING ACCOUNT,5902239446
02.03.2017,HOUSING,CALLOW MASTER LOCKSMITHS,593.5,STORES,CREDITORS -GR/IR CLEARING ACCOUNT,5902239444
02.03.2017,HOUSING,CALLOW MASTER LOCKSMITHS,602.46,STORES,CREDITORS -GR/IR CLEARING ACCOUNT,5902239444
02.03.2017,HOUSING,FAYERS PLUMBING & BUILDING SUPPLIES,264.74,STORES,CREDITORS -GR/IR CLEARING ACCOUNT,5902239345
02.03.2017,HOUSING,FAYERS PLUMBING & BUILDING SUPPLIES,288,STORES,CREDITORS -GR/IR CLEARING ACCOUNT,5902239335
02.03.2017,HOUSING,FAYERS PLUMBING & BUILDING SUPPLIES,302.78,STORES,CREDITORS -GR/IR CLEARING ACCOUNT,5902239334
02.03.2017,HOUSING,FAYERS PLUMBING & BUILDING SUPPLIES,319.5,STORES,CREDITORS -GR/IR CLEARING ACCOUNT,5902239345
02.03.2017,HOUSING,FAYERS PLUMBING & BUILDING SUPPLIES,414.4,STORES,CREDITORS -GR/IR CLEARING ACCOUNT,5902239345
02.03.2017,HOUSING,FAYERS PLUMBING & BUILDING SUPPLIES,729,STORES,CREDITORS -GR/IR CLEARING ACCOUNT,5902239333
02.03.2017,HOUSING,FAYERS PLUMBING & BUILDING SUPPLIES,729,STORES,CREDITORS -GR/IR CLEARING ACCOUNT,5902239334
02.03.2017,HOUSING,FAYERS PLUMBING & BUILDING SUPPLIES,755.79,STORES,CREDITORS -GR/IR CLEARING ACCOUNT,5902239332
02.03.2017,HOUSING,GRAFTON MERCHANTING GB LTD,272.65,STORES,CREDITORS -GR/IR CLEARING ACCOUNT,5902239492
02.03.2017,HOUSING,LAKEDALE POWER TOOLS,382.5,STORES,CREDITORS -GR/IR CLEARING ACCOUNT,5902239460
02.03.2017,HOUSING,LAKEDALE POWER TOOLS,400,STORES,CREDITORS -GR/IR CLEARING ACCOUNT,5902239472
02.03.2017,HOUSING,LAKEDALE POWER TOOLS,475,STORES,CREDITORS -GR/IR CLEARING ACCOUNT,5902239460
02.03.2017,HOUSING,LAKEDALE POWER TOOLS,725,STORES,CREDITORS -GR/IR CLEARING ACCOUNT,5902239460
02.03.2017,HOUSING,LAKEDALE POWER TOOLS,864,STORES,CREDITORS -GR/IR CLEARING ACCOUNT,5902239465
02.03.2017,HOUSING,LAKEDALE POWER TOOLS,"1,600.00",STORES,CREDITORS -GR/IR CLEARING ACCOUNT,5902239465
02.03.2017,HOUSING,SHARVATT WOOLWICH LTD,477,STORES,CREDITORS -GR/IR CLEARING ACCOUNT,5902239230
02.03.2017,HOUSING,SHARVATT WOOLWICH LTD,"1,397.00",STORES,CREDITORS -GR/IR CLEARING ACCOUNT,5902239230
02.03.2017,HOUSING,SMI GROUP,256.78,STORES,CREDITORS -GR/IR CLEARING ACCOUNT,5902239604
02.03.2017,HOUSING,SMI GROUP,334,STORES,CREDITORS -GR/IR CLEARING ACCOUNT,5902239547
02.03.2017,HOUSING,SMI GROUP,422,STORES,CREDITORS -GR/IR CLEARING ACCOUNT,5902239546
02.03.2017,HOUSING,THE SYMPHONY GROUP PLC,381.4,STORES,CREDITORS -GR/IR CLEARING ACCOUNT,5902239596
02.03.2017,HOUSING,THE SYMPHONY GROUP PLC,526.6,STORES,CREDITORS -GR/IR CLEARING ACCOUNT,5902239596
02.03.2017,HOUSING,THE SYMPHONY GROUP PLC,"1,053.20",STORES,CREDITORS -GR/IR CLEARING ACCOUNT,5902239596
02.03.2017,HOUSING GENERAL FUND,HIGHER ELEVATION LTD,"2,906.25",CAPITAL PS (HOUSING GF),CAPITAL GRANTS,5902239564
02.03.2017,HOUSING GENERAL FUND,M C TECHNICIANS LTD,"7,015.00",CAPITAL PS (HOUSING GF),CAPITAL GRANTS,5902239542
02.03.2017,HOUSING HRA,DELTA GREEN ENVIRONMENTAL DESIGN LTD,750,CAPITAL PS (HRA),CONSTRUCTION FEES  - EXTERNAL,5902239222
02.03.2017,HOUSING HRA,HARRADINES REMOVALS,"1,520.00",CAPITAL PS (HRA),CAPITAL GRANTS,5902239482
02.03.2017,HOUSING HRA,POTTER RAPER AND PARTNERS,"7,438.50",CAPITAL PS (HRA),CONSTRUCTION FEES  - EXTERNAL,5902239213
02.03.2017,HOUSING HRA,SALTASH ENTERPRISES LTD,"19,068.44",CAPITAL PS (HRA),CONSTRUCTION MAIN CONTRACT -CERTIFICATED,2102637081
02.03.2017,HOUSING HRA,SALTASH ENTERPRISES LTD,"40,000.00",CAPITAL PS (HRA),CONSTRUCTION MAIN CONTRACT -CERTIFICATED,2102637080
02.03.2017,LEISURE DIRECTORATE,APPLY4 TECHNOLOGY LTD,"2,000.00",ADMINISTRATION,SOFTWARE,5902239273
02.03.2017,LEISURE DIRECTORATE,SECOM PLC,713.84,BURGESS PARK COMMUNITY SPORTS CENTRE,OTHER R&M,5902239205
02.03.2017,LEISURE DIRECTORATE,CHRIST UNIVERSAL GOSPEL MINISTRIES,360,CAMBERWELL LIBRARY,HIRE OF FACILITIES AND EQUIPMENT,5902239255
02.03.2017,LEISURE DIRECTORATE,KENT COUNTY COUNCIL - LASER,"3,672.76",CANADA WATER LIBRARY,ELECTRICITY,5902238615
02.03.2017,LEISURE DIRECTORATE,MAPLIN ELECTRONICS LTD,398.28,CREMATORIUM,COMPUTER MAINTENANCE,5902238612
02.03.2017,LEISURE DIRECTORATE,G L JONES PLAYGROUNDS LTD,276,DULWICH AREA TEAM,OTHER R&M,5902239232
02.03.2017,MODERNISATION HGF,NEPRO LTD,"4,942.84",CORP. ICT SVCES,CONSULTANTS SERVICES,5902239575
02.03.2017,MODERNISATION HGF,INTERSERVE (FACILITIES MANAGEMENT),"7,471.48",FM SERVICES BY INTERSERVE,BUILDING R&M,5902238532
02.03.2017,MODERNISATION HGF,COMENSURA LTD,"3,576.25",MONTHLY ADMIN FEE,AGENCY STAFF,5902239644
02.03.2017,MODERNISATION HGF,JOHN STATTERS ASSOCIATES,"3,562.50",OCCUPATIONAL ASSESSMENT,CONSULTANTS SERVICES,5902239236
02.03.2017,MODERNISATION HGF,KENT COUNTY COUNCIL - LASER,"6,552.91",QUEENS ROAD 2 (BLOCK J),ELECTRICITY,5902238968
02.03.2017,MODERNISATION HGF,WARWICK GRP T/A MACH 1 COURIERS LTD,"4,111.46",REPAIR AND MAINTENANCE SERVICES,CAB FARES,5902239651
02.03.2017,MODERNISATION HGF,COMENSURA LTD,"528,256.62",WEEKLY PAYMENTS,AGENCY STAFF,5902239644
02.03.2017,PLANNING AND TRANSPORT,SOUTHWARK NEWSPAPER LTD,840,DEVELOPMENT CONTROL ADMINSTRATION,MARKETING & PUBLICITY SERVICES,5902239296
02.03.2017,PUBLIC HEALTH,THORSBORNE & ASSOCIATES UK,381.1,PUBLIC HEALTH,CONSULTANTS SERVICES,5902239641
02.03.2017,REGENERATION,NIKKI SPENCER LTD,350,CANADA WATER,MARKETING & PUBLICITY SERVICES,5902238024
02.03.2017,REGENERATION,FIELD FISHER WATERHOUSE,800,CPHA SURPLUS,PROFESSIONAL FEES,5902239558
02.03.2017,REGENERATION,VEOLIA ES (UK)LTD,525.23,KENNINGTON WORKSHOPS,REFUSE COLLECTION CONTRACT,5902239278
02.03.2017,REGENERATION,FLUID DESIGN LTD,"26,200.00",OLD KENT RD-FEES/MPLAN,PROFESSIONAL FEES,5902239258
02.03.2017,RESIDENT SERVICES,PRB ESTATES LTD,"3,841.00",SHELTERED WARDENS,PLANNED MAINTENANCE,2102637078
02.03.2017,RESIDENT SERVICES,PRB ESTATES LTD,"60,418.17",SHELTERED WARDENS,PLANNED MAINTENANCE,2102637078
02.03.2017,RESIDENT SERVICES,A & H PEST CONTROL LTD,490,WALWORTH,PEST CONTROL,5902239635
02.03.2017,RESIDENT SERVICES,A & H PEST CONTROL LTD,"1,220.00",WALWORTH,PEST CONTROL,5902239630
02.03.2017,SOUTHWARK BUILDING SERVICES,1st ACTIVE PROPERTY SERVICES LTD,"16,884.34",BUSINESS SUPPORT,OTHER CONTRACTORS,2102637267
02.03.2017,SOUTHWARK BUILDING SERVICES,ATPB LTD,"22,313.81",BUSINESS SUPPORT,OTHER CONTRACTORS,2102637268
02.03.2017,SOUTHWARK BUILDING SERVICES,BRIDGEWATER ROOFING CONTRACTORS LTD,"40,642.84",BUSINESS SUPPORT,OTHER CONTRACTORS,2102637269
02.03.2017,SOUTHWARK BUILDING SERVICES,CRATUS BUILDING SERVICES LIMITED,"4,931.98",BUSINESS SUPPORT,OTHER CONTRACTORS,2102637270
02.03.2017,SOUTHWARK BUILDING SERVICES,E & E BUILDING SERVICES LTD,"19,463.30",BUSINESS SUPPORT,OTHER CONTRACTORS,2102637272
02.03.2017,SOUTHWARK BUILDING SERVICES,E & E BUILDING SERVICES LTD,"46,673.35",BUSINESS SUPPORT,OTHER CONTRACTORS,2102637274
02.03.2017,SOUTHWARK BUILDING SERVICES,EMPIRE BUILDERS,"3,383.58",BUSINESS SUPPORT,OTHER CONTRACTORS,2102637271
02.03.2017,SOUTHWARK BUILDING SERVICES,FRANKLYN SHAW ASSOCIATES LTD,"24,533.75",BUSINESS SUPPORT,OTHER CONTRACTORS,2102637277
02.03.2017,SOUTHWARK BUILDING SERVICES,MULTI-INSTALLATIONS LTD,"7,965.99",BUSINESS SUPPORT,OTHER CONTRACTORS,2102637278
02.03.2017,SOUTHWARK BUILDING SERVICES,NEW IMAGE WINDOWS LTD,"12,406.85",BUSINESS SUPPORT,OTHER CONTRACTORS,2102637276
02.03.2017,SOUTHWARK BUILDING SERVICES,EYRE & ELLISTON LTD,290.48,ELECTRICAL TEAM - ELECTRICIAN,MATERIALS,5902239493
02.03.2017,SOUTHWARK BUILDING SERVICES,THE SYMPHONY GROUP PLC,345.8,R & M OVERHEADS,MATERIALS,5902239599
02.03.2017,SOUTHWARK BUILDING SERVICES,THE SYMPHONY GROUP PLC,511,R & M OVERHEADS,MATERIALS,5902239599
02.03.2017,SOUTHWARK BUILDING SERVICES,THE SYMPHONY GROUP PLC,798.7,R & M OVERHEADS,MATERIALS,5902239599
02.03.2017,SOUTHWARK BUILDING SERVICES,THE SYMPHONY GROUP PLC,345.8,VOIDS OVERHEADS,MATERIALS,5902239599
02.03.2017,SOUTHWARK BUILDING SERVICES,THE SYMPHONY GROUP PLC,511,VOIDS OVERHEADS,MATERIALS,5902239599
02.03.2017,SOUTHWARK BUILDING SERVICES,THE SYMPHONY GROUP PLC,798.7,VOIDS OVERHEADS,MATERIALS,5902239599
02.03.2017,VARIOUS,LAND REGISTRY,303,LAND REGISTRY SEARCHES,CHARGES,DIRECT DEBIT PAYMENT
03.03.2017,ADULT SOCIAL CARE,REDACTED PERSONAL DATA,264.8,APPOINTEESHIPS,OTHER PAYMENTS FOR CLIENTS,5902239837
03.03.2017,ADULT SOCIAL CARE,HAPPY DAYS PUBLISHING LTD,672.25,FRED FRANCIS CENTRE,EQUIPMENT PURCHASE & REPAIR,5902239922
03.03.2017,ADULT SOCIAL CARE,CARE DIRECT UK LTD,586.82,LD LTS 18-64,HOMECARE - SPOT,2102637493
03.03.2017,ADULT SOCIAL CARE,CARE DIRECT UK LTD,586.82,LD LTS 18-64,HOMECARE - SPOT,2102637606
03.03.2017,ADULT SOCIAL CARE,CHOICE SUPPORT,404.14,LD LTS 18-64,DAYCARE,2102637590
03.03.2017,ADULT SOCIAL CARE,CHOICE SUPPORT,330.65,LD LTS 18-64,SUPPORTED LIVING,2102637589
03.03.2017,ADULT SOCIAL CARE,CHOICE SUPPORT,367.4,LD LTS 18-64,SUPPORTED LIVING,2102637568
03.03.2017,ADULT SOCIAL CARE,CHOICE SUPPORT,440.88,LD LTS 18-64,SUPPORTED LIVING,2102637561
03.03.2017,ADULT SOCIAL CARE,CHOICE SUPPORT,514.36,LD LTS 18-64,SUPPORTED LIVING,2102637556
03.03.2017,ADULT SOCIAL CARE,CHOICE SUPPORT,587.84,LD LTS 18-64,SUPPORTED LIVING,2102637578
03.03.2017,ADULT SOCIAL CARE,CHOICE SUPPORT,"1,102.20",LD LTS 18-64,SUPPORTED LIVING,2102637594
03.03.2017,ADULT SOCIAL CARE,HEALTHCARE & TRANSPORT SERVICE,282,LD LTS 18-64,CLIENT TRANSPORT,2102637505
03.03.2017,ADULT SOCIAL CARE,HEALTHCARE & TRANSPORT SERVICE,650,LD LTS 18-64,CLIENT TRANSPORT,2102637545
03.03.2017,ADULT SOCIAL CARE,CARE DIRECT UK LTD,377.72,LD STS 18-64,HOMECARE - IC,2102637403
03.03.2017,ADULT SOCIAL CARE,CARE DIRECT UK LTD,553.09,MEM LTS 65+,HOMECARE - SPOT,2102637495
03.03.2017,ADULT SOCIAL CARE,METRO HOMECARE LTD,431.68,MEM LTS 65+,HOMECARE - SPOT,2102637746
03.03.2017,ADULT SOCIAL CARE,METRO HOMECARE LTD,519.37,MEM LTS 65+,HOMECARE - SPOT,2102637670
03.03.2017,ADULT SOCIAL CARE,METRO HOMECARE LTD,957.79,MEM LTS 65+,HOMECARE - SPOT,2102637730
03.03.2017,ADULT SOCIAL CARE,ARK HOME HEALTHCARE LTD,577.32,MH LTS 18-64,HOMECARE - SPOT,2102637586
03.03.2017,ADULT SOCIAL CARE,ARK HOME HEALTHCARE LTD,"1,018.80",MH LTS 18-64,HOMECARE - SPOT,2102637564
03.03.2017,ADULT SOCIAL CARE,METRO HOMECARE LTD,"1,038.73",MH LTS 18-64,HOMECARE - SPOT,2102637677
03.03.2017,ADULT SOCIAL CARE,ARK HOME HEALTHCARE LTD,452.8,MH LTS 65+,HOMECARE - C&V,2102637595
03.03.2017,ADULT SOCIAL CARE,ARK HOME HEALTHCARE LTD,458.46,MH LTS 65+,HOMECARE - C&V,2102637551
03.03.2017,ADULT SOCIAL CARE,CARE DIRECT UK LTD,364.23,MH LTS 65+,HOMECARE - SPOT,2102637487
03.03.2017,ADULT SOCIAL CARE,METRO HOMECARE LTD,330.51,MH LTS 65+,HOMECARE - C&V,2102637751
03.03.2017,ADULT SOCIAL CARE,METRO HOMECARE LTD,263.06,MH LTS 65+,HOMECARE - SPOT,2102637673
03.03.2017,ADULT SOCIAL CARE,METRO HOMECARE LTD,438.43,MH LTS 65+,HOMECARE - SPOT,2102637679
03.03.2017,ADULT SOCIAL CARE,CARE DIRECT UK LTD,627.29,PHY LTS 18-64,HOMECARE - C&V,2102637514
03.03.2017,ADULT SOCIAL CARE,CARE DIRECT UK LTD,627.29,PHY LTS 18-64,HOMECARE - C&V,2102637627
03.03.2017,ADULT SOCIAL CARE,CARE DIRECT UK LTD,256.31,PHY LTS 18-64,HOMECARE - SPOT,2102637399
03.03.2017,ADULT SOCIAL CARE,CARE DIRECT UK LTD,424.94,PHY LTS 18-64,HOMECARE - SPOT,2102637484
03.03.2017,ADULT SOCIAL CARE,CARE DIRECT UK LTD,451.92,PHY LTS 18-64,HOMECARE - SPOT,2102637390
03.03.2017,ADULT SOCIAL CARE,CARE DIRECT UK LTD,451.92,PHY LTS 18-64,HOMECARE - SPOT,2102637412
03.03.2017,ADULT SOCIAL CARE,CARE DIRECT UK LTD,661.01,PHY LTS 18-64,HOMECARE - SPOT,2102637507
03.03.2017,ADULT SOCIAL CARE,CARE DIRECT UK LTD,661.01,PHY LTS 18-64,HOMECARE - SPOT,2102637602
03.03.2017,ADULT SOCIAL CARE,CARE DIRECT UK LTD,711.6,PHY LTS 18-64,HOMECARE - SPOT,2102637477
03.03.2017,ADULT SOCIAL CARE,METRO HOMECARE LTD,330.51,PHY LTS 18-64,HOMECARE - C&V,2102637698
03.03.2017,ADULT SOCIAL CARE,METRO HOMECARE LTD,"1,106.18",PHY LTS 18-64,HOMECARE - C&V,2102637705
03.03.2017,ADULT SOCIAL CARE,METRO HOMECARE LTD,256.31,PHY LTS 18-64,HOMECARE - SPOT,2102637732
03.03.2017,ADULT SOCIAL CARE,METRO HOMECARE LTD,256.31,PHY LTS 18-64,HOMECARE - SPOT,2102637743
03.03.2017,ADULT SOCIAL CARE,METRO HOMECARE LTD,310.27,PHY LTS 18-64,HOMECARE - SPOT,2102637701
03.03.2017,ADULT SOCIAL CARE,METRO HOMECARE LTD,310.27,PHY LTS 18-64,HOMECARE - SPOT,2102637728
03.03.2017,ADULT SOCIAL CARE,METRO HOMECARE LTD,350.74,PHY LTS 18-64,HOMECARE - SPOT,2102637665
03.03.2017,ADULT SOCIAL CARE,METRO HOMECARE LTD,350.74,PHY LTS 18-64,HOMECARE - SPOT,2102637706
03.03.2017,ADULT SOCIAL CARE,METRO HOMECARE LTD,418.19,PHY LTS 18-64,HOMECARE - SPOT,2102637650
03.03.2017,ADULT SOCIAL CARE,METRO HOMECARE LTD,472.15,PHY LTS 18-64,HOMECARE - SPOT,2102637668
03.03.2017,ADULT SOCIAL CARE,METRO HOMECARE LTD,569.95,PHY LTS 18-64,HOMECARE - SPOT,2102637686
03.03.2017,ADULT SOCIAL CARE,METRO HOMECARE LTD,647.52,PHY LTS 18-64,HOMECARE - SPOT,2102637725
03.03.2017,ADULT SOCIAL CARE,METRO HOMECARE LTD,755.44,PHY LTS 18-64,HOMECARE - SPOT,2102637660
03.03.2017,ADULT SOCIAL CARE,METRO HOMECARE LTD,984.77,PHY LTS 18-64,HOMECARE - SPOT,2102637735
03.03.2017,ADULT SOCIAL CARE,METRO HOMECARE LTD,998.26,PHY LTS 18-64,HOMECARE - SPOT,2102637675
03.03.2017,ADULT SOCIAL CARE,METRO HOMECARE LTD,"1,173.63",PHY LTS 18-64,HOMECARE - SPOT,2102637651
03.03.2017,ADULT SOCIAL CARE,METRO HOMECARE LTD,"1,268.06",PHY LTS 18-64,HOMECARE - SPOT,2102637722
03.03.2017,ADULT SOCIAL CARE,METRO HOMECARE LTD,"1,349.00",PHY LTS 18-64,HOMECARE - SPOT,2102637707
03.03.2017,ADULT SOCIAL CARE,METRO HOMECARE LTD,"1,429.94",PHY LTS 18-64,HOMECARE - SPOT,2102637684
03.03.2017,ADULT SOCIAL CARE,METRO HOMECARE LTD,"1,510.88",PHY LTS 18-64,HOMECARE - SPOT,2102637690
03.03.2017,ADULT SOCIAL CARE,METRO HOMECARE LTD,"1,510.88",PHY LTS 18-64,HOMECARE - SPOT,2102637731
03.03.2017,ADULT SOCIAL CARE,METRO HOMECARE LTD,"1,510.88",PHY LTS 18-64,HOMECARE - SPOT,2102637738
03.03.2017,ADULT SOCIAL CARE,METRO HOMECARE LTD,"1,510.88",PHY LTS 18-64,HOMECARE - SPOT,2102637740
03.03.2017,ADULT SOCIAL CARE,METRO HOMECARE LTD,"1,510.88",PHY LTS 18-64,HOMECARE - SPOT,2102637745
03.03.2017,ADULT SOCIAL CARE,CAPITAL HOMECARE (UK) LTD,290.04,PHY LTS 65+,HOMECARE - SPOT,2102637596
03.03.2017,ADULT SOCIAL CARE,CAPITAL HOMECARE (UK) LTD,472.15,PHY LTS 65+,HOMECARE - SPOT,2102637554
03.03.2017,ADULT SOCIAL CARE,CAPITAL HOMECARE (UK) LTD,472.15,PHY LTS 65+,HOMECARE - SPOT,2102637559
03.03.2017,ADULT SOCIAL CARE,CAPITAL HOMECARE (UK) LTD,472.15,PHY LTS 65+,HOMECARE - SPOT,2102637560
03.03.2017,ADULT SOCIAL CARE,CAPITAL HOMECARE (UK) LTD,472.15,PHY LTS 65+,HOMECARE - SPOT,2102637565
03.03.2017,ADULT SOCIAL CARE,CAPITAL HOMECARE (UK) LTD,472.15,PHY LTS 65+,HOMECARE - SPOT,2102637570
03.03.2017,ADULT SOCIAL CARE,CAPITAL HOMECARE (UK) LTD,472.15,PHY LTS 65+,HOMECARE - SPOT,2102637597
03.03.2017,ADULT SOCIAL CARE,CAPITAL HOMECARE (UK) LTD,508.66,PHY LTS 65+,HOMECARE - SPOT,2102637592
03.03.2017,ADULT SOCIAL CARE,CAPITAL HOMECARE (UK) LTD,526.11,PHY LTS 65+,HOMECARE - SPOT,2102637555
03.03.2017,ADULT SOCIAL CARE,CAPITAL HOMECARE (UK) LTD,526.11,PHY LTS 65+,HOMECARE - SPOT,2102637558
03.03.2017,ADULT SOCIAL CARE,CAPITAL HOMECARE (UK) LTD,526.11,PHY LTS 65+,HOMECARE - SPOT,2102637571
03.03.2017,ADULT SOCIAL CARE,CAPITAL HOMECARE (UK) LTD,526.11,PHY LTS 65+,HOMECARE - SPOT,2102637593
03.03.2017,ADULT SOCIAL CARE,CAPITAL HOMECARE (UK) LTD,573.87,PHY LTS 65+,HOMECARE - SPOT,2102637574
03.03.2017,ADULT SOCIAL CARE,CAPITAL HOMECARE (UK) LTD,768.93,PHY LTS 65+,HOMECARE - SPOT,2102637569
03.03.2017,ADULT SOCIAL CARE,CAPITAL HOMECARE (UK) LTD,768.93,PHY LTS 65+,HOMECARE - SPOT,2102637579
03.03.2017,ADULT SOCIAL CARE,CAPITAL HOMECARE (UK) LTD,768.93,PHY LTS 65+,HOMECARE - SPOT,2102637584
03.03.2017,ADULT SOCIAL CARE,CAPITAL HOMECARE (UK) LTD,890.34,PHY LTS 65+,HOMECARE - SPOT,2102637588
03.03.2017,ADULT SOCIAL CARE,CAPITAL HOMECARE (UK) LTD,"1,187.12",PHY LTS 65+,HOMECARE - SPOT,2102637563
03.03.2017,ADULT SOCIAL CARE,CAPITAL HOMECARE (UK) LTD,"2,077.46",PHY LTS 65+,HOMECARE - SPOT,2102637552
03.03.2017,ADULT SOCIAL CARE,CAPITAL HOMECARE (UK) LTD,"2,077.46",PHY LTS 65+,HOMECARE - SPOT,2102637553
03.03.2017,ADULT SOCIAL CARE,CAPITAL HOMECARE (UK) LTD,"2,077.46",PHY LTS 65+,HOMECARE - SPOT,2102637562
03.03.2017,ADULT SOCIAL CARE,CAPITAL HOMECARE (UK) LTD,"2,077.46",PHY LTS 65+,HOMECARE - SPOT,2102637567
03.03.2017,ADULT SOCIAL CARE,CAPITAL HOMECARE (UK) LTD,"2,077.46",PHY LTS 65+,HOMECARE - SPOT,2102637573
03.03.2017,ADULT SOCIAL CARE,CAPITAL HOMECARE (UK) LTD,"2,077.46",PHY LTS 65+,HOMECARE - SPOT,2102637583
03.03.2017,ADULT SOCIAL CARE,CARE DIRECT UK LTD,269.8,PHY LTS 65+,HOMECARE - C&V,2102637539
03.03.2017,ADULT SOCIAL CARE,CARE DIRECT UK LTD,269.8,PHY LTS 65+,HOMECARE - C&V,2102637600
03.03.2017,ADULT SOCIAL CARE,CARE DIRECT UK LTD,279.92,PHY LTS 65+,HOMECARE - C&V,2102637445
03.03.2017,ADULT SOCIAL CARE,CARE DIRECT UK LTD,394.58,PHY LTS 65+,HOMECARE - C&V,2102637425
03.03.2017,ADULT SOCIAL CARE,CARE DIRECT UK LTD,583.44,PHY LTS 65+,HOMECARE - C&V,2102637452
03.03.2017,ADULT SOCIAL CARE,CARE DIRECT UK LTD,256.31,PHY LTS 65+,HOMECARE - SPOT,2102637378
03.03.2017,ADULT SOCIAL CARE,CARE DIRECT UK LTD,256.31,PHY LTS 65+,HOMECARE - SPOT,2102637634
03.03.2017,ADULT SOCIAL CARE,CARE DIRECT UK LTD,258.33,PHY LTS 65+,HOMECARE - SPOT,2102637396
03.03.2017,ADULT SOCIAL CARE,CARE DIRECT UK LTD,263.06,PHY LTS 65+,HOMECARE - SPOT,2102637387
03.03.2017,ADULT SOCIAL CARE,CARE DIRECT UK LTD,266.43,PHY LTS 65+,HOMECARE - SPOT,2102637469
03.03.2017,ADULT SOCIAL CARE,CARE DIRECT UK LTD,273.17,PHY LTS 65+,HOMECARE - SPOT,2102637401
03.03.2017,ADULT SOCIAL CARE,CARE DIRECT UK LTD,286.66,PHY LTS 65+,HOMECARE - SPOT,2102637384
03.03.2017,ADULT SOCIAL CARE,CARE DIRECT UK LTD,330.51,PHY LTS 65+,HOMECARE - SPOT,2102637436
03.03.2017,ADULT SOCIAL CARE,CARE DIRECT UK LTD,377.72,PHY LTS 65+,HOMECARE - SPOT,2102637392
03.03.2017,ADULT SOCIAL CARE,CARE DIRECT UK LTD,377.72,PHY LTS 65+,HOMECARE - SPOT,2102637424
03.03.2017,ADULT SOCIAL CARE,CARE DIRECT UK LTD,391.21,PHY LTS 65+,HOMECARE - SPOT,2102637427
03.03.2017,ADULT SOCIAL CARE,CARE DIRECT UK LTD,397.96,PHY LTS 65+,HOMECARE - SPOT,2102637431
03.03.2017,ADULT SOCIAL CARE,CARE DIRECT UK LTD,418.19,PHY LTS 65+,HOMECARE - SPOT,2102637489
03.03.2017,ADULT SOCIAL CARE,CARE DIRECT UK LTD,421.56,PHY LTS 65+,HOMECARE - SPOT,2102637541
03.03.2017,ADULT SOCIAL CARE,CARE DIRECT UK LTD,424.94,PHY LTS 65+,HOMECARE - SPOT,2102637459
03.03.2017,ADULT SOCIAL CARE,CARE DIRECT UK LTD,424.94,PHY LTS 65+,HOMECARE - SPOT,2102637533
03.03.2017,ADULT SOCIAL CARE,CARE DIRECT UK LTD,424.94,PHY LTS 65+,HOMECARE - SPOT,2102637639
03.03.2017,ADULT SOCIAL CARE,CARE DIRECT UK LTD,462.03,PHY LTS 65+,HOMECARE - SPOT,2102637465
03.03.2017,ADULT SOCIAL CARE,CARE DIRECT UK LTD,465.41,PHY LTS 65+,HOMECARE - SPOT,2102637615
03.03.2017,ADULT SOCIAL CARE,CARE DIRECT UK LTD,485.64,PHY LTS 65+,HOMECARE - SPOT,2102637485
03.03.2017,ADULT SOCIAL CARE,CARE DIRECT UK LTD,519.37,PHY LTS 65+,HOMECARE - SPOT,2102637395
03.03.2017,ADULT SOCIAL CARE,CARE DIRECT UK LTD,519.37,PHY LTS 65+,HOMECARE - SPOT,2102637400
03.03.2017,ADULT SOCIAL CARE,CARE DIRECT UK LTD,519.37,PHY LTS 65+,HOMECARE - SPOT,2102637411
03.03.2017,ADULT SOCIAL CARE,CARE DIRECT UK LTD,519.37,PHY LTS 65+,HOMECARE - SPOT,2102637482
03.03.2017,ADULT SOCIAL CARE,CARE DIRECT UK LTD,580.07,PHY LTS 65+,HOMECARE - SPOT,2102637397
03.03.2017,ADULT SOCIAL CARE,CARE DIRECT UK LTD,600.31,PHY LTS 65+,HOMECARE - SPOT,2102637488
03.03.2017,ADULT SOCIAL CARE,CARE DIRECT UK LTD,607.05,PHY LTS 65+,HOMECARE - SPOT,2102637381
03.03.2017,ADULT SOCIAL CARE,CARE DIRECT UK LTD,708.23,PHY LTS 65+,HOMECARE - SPOT,2102637450
03.03.2017,ADULT SOCIAL CARE,CARE DIRECT UK LTD,708.23,PHY LTS 65+,HOMECARE - SPOT,2102637486
03.03.2017,ADULT SOCIAL CARE,METRO HOMECARE LTD,283.29,PHY LTS 65+,HOMECARE - C&V,2102637689
03.03.2017,ADULT SOCIAL CARE,METRO HOMECARE LTD,330.51,PHY LTS 65+,HOMECARE - C&V,2102637712
03.03.2017,ADULT SOCIAL CARE,METRO HOMECARE LTD,532.86,PHY LTS 65+,HOMECARE - C&V,2102637680
03.03.2017,ADULT SOCIAL CARE,METRO HOMECARE LTD,755.44,PHY LTS 65+,HOMECARE - C&V,2102637741
03.03.2017,ADULT SOCIAL CARE,METRO HOMECARE LTD,802.66,PHY LTS 65+,HOMECARE - C&V,2102637652
03.03.2017,ADULT SOCIAL CARE,METRO HOMECARE LTD,"1,187.12",PHY LTS 65+,HOMECARE - C&V,2102637713
03.03.2017,ADULT SOCIAL CARE,METRO HOMECARE LTD,"1,214.10",PHY LTS 65+,HOMECARE - C&V,2102637656
03.03.2017,ADULT SOCIAL CARE,METRO HOMECARE LTD,256.31,PHY LTS 65+,HOMECARE - SPOT,2102637752
03.03.2017,ADULT SOCIAL CARE,METRO HOMECARE LTD,263.06,PHY LTS 65+,HOMECARE - SPOT,2102637737
03.03.2017,ADULT SOCIAL CARE,METRO HOMECARE LTD,273.17,PHY LTS 65+,HOMECARE - SPOT,2102637721
03.03.2017,ADULT SOCIAL CARE,METRO HOMECARE LTD,283.29,PHY LTS 65+,HOMECARE - SPOT,2102637654
03.03.2017,ADULT SOCIAL CARE,METRO HOMECARE LTD,283.29,PHY LTS 65+,HOMECARE - SPOT,2102637717
03.03.2017,ADULT SOCIAL CARE,METRO HOMECARE LTD,303.53,PHY LTS 65+,HOMECARE - SPOT,2102637695
03.03.2017,ADULT SOCIAL CARE,METRO HOMECARE LTD,323.76,PHY LTS 65+,HOMECARE - SPOT,2102637739
03.03.2017,ADULT SOCIAL CARE,METRO HOMECARE LTD,330.51,PHY LTS 65+,HOMECARE - SPOT,2102637702
03.03.2017,ADULT SOCIAL CARE,METRO HOMECARE LTD,330.51,PHY LTS 65+,HOMECARE - SPOT,2102637736
03.03.2017,ADULT SOCIAL CARE,METRO HOMECARE LTD,357.49,PHY LTS 65+,HOMECARE - SPOT,2102637661
03.03.2017,ADULT SOCIAL CARE,METRO HOMECARE LTD,370.98,PHY LTS 65+,HOMECARE - SPOT,2102637678
03.03.2017,ADULT SOCIAL CARE,METRO HOMECARE LTD,384.47,PHY LTS 65+,HOMECARE - SPOT,2102637724
03.03.2017,ADULT SOCIAL CARE,METRO HOMECARE LTD,387.84,PHY LTS 65+,HOMECARE - SPOT,2102637729
03.03.2017,ADULT SOCIAL CARE,METRO HOMECARE LTD,397.96,PHY LTS 65+,HOMECARE - SPOT,2102637672
03.03.2017,ADULT SOCIAL CARE,METRO HOMECARE LTD,404.7,PHY LTS 65+,HOMECARE - SPOT,2102637653
03.03.2017,ADULT SOCIAL CARE,METRO HOMECARE LTD,418.19,PHY LTS 65+,HOMECARE - SPOT,2102637682
03.03.2017,ADULT SOCIAL CARE,METRO HOMECARE LTD,424.94,PHY LTS 65+,HOMECARE - SPOT,2102637718
03.03.2017,ADULT SOCIAL CARE,METRO HOMECARE LTD,431.68,PHY LTS 65+,HOMECARE - SPOT,2102637694
03.03.2017,ADULT SOCIAL CARE,METRO HOMECARE LTD,465.41,PHY LTS 65+,HOMECARE - SPOT,2102637714
03.03.2017,ADULT SOCIAL CARE,METRO HOMECARE LTD,472.15,PHY LTS 65+,HOMECARE - SPOT,2102637666
03.03.2017,ADULT SOCIAL CARE,METRO HOMECARE LTD,472.15,PHY LTS 65+,HOMECARE - SPOT,2102637700
03.03.2017,ADULT SOCIAL CARE,METRO HOMECARE LTD,539.6,PHY LTS 65+,HOMECARE - SPOT,2102637692
03.03.2017,ADULT SOCIAL CARE,METRO HOMECARE LTD,553.09,PHY LTS 65+,HOMECARE - SPOT,2102637720
03.03.2017,ADULT SOCIAL CARE,METRO HOMECARE LTD,566.58,PHY LTS 65+,HOMECARE - SPOT,2102637710
03.03.2017,ADULT SOCIAL CARE,METRO HOMECARE LTD,580.07,PHY LTS 65+,HOMECARE - SPOT,2102637748
03.03.2017,ADULT SOCIAL CARE,METRO HOMECARE LTD,613.8,PHY LTS 65+,HOMECARE - SPOT,2102637663
03.03.2017,ADULT SOCIAL CARE,METRO HOMECARE LTD,647.52,PHY LTS 65+,HOMECARE - SPOT,2102637671
03.03.2017,ADULT SOCIAL CARE,METRO HOMECARE LTD,701.48,PHY LTS 65+,HOMECARE - SPOT,2102637683
03.03.2017,ADULT SOCIAL CARE,METRO HOMECARE LTD,708.23,PHY LTS 65+,HOMECARE - SPOT,2102637715
03.03.2017,ADULT SOCIAL CARE,METRO HOMECARE LTD,755.44,PHY LTS 65+,HOMECARE - SPOT,2102637685
03.03.2017,ADULT SOCIAL CARE,METRO HOMECARE LTD,849.87,PHY LTS 65+,HOMECARE - SPOT,2102637655
03.03.2017,ADULT SOCIAL CARE,METRO HOMECARE LTD,890.34,PHY LTS 65+,HOMECARE - SPOT,2102637676
03.03.2017,ADULT SOCIAL CARE,METRO HOMECARE LTD,944.3,PHY LTS 65+,HOMECARE - SPOT,2102637662
03.03.2017,ADULT SOCIAL CARE,METRO HOMECARE LTD,957.79,PHY LTS 65+,HOMECARE - SPOT,2102637733
03.03.2017,ADULT SOCIAL CARE,METRO HOMECARE LTD,998.26,PHY LTS 65+,HOMECARE - SPOT,2102637709
03.03.2017,ADULT SOCIAL CARE,METRO HOMECARE LTD,"1,038.73",PHY LTS 65+,HOMECARE - SPOT,2102637704
03.03.2017,ADULT SOCIAL CARE,METRO HOMECARE LTD,"1,038.73",PHY LTS 65+,HOMECARE - SPOT,2102637742
03.03.2017,ADULT SOCIAL CARE,METRO HOMECARE LTD,"1,038.73",PHY LTS 65+,HOMECARE - SPOT,2102637749
03.03.2017,ADULT SOCIAL CARE,METRO HOMECARE LTD,"1,079.20",PHY LTS 65+,HOMECARE - SPOT,2102637716
03.03.2017,ADULT SOCIAL CARE,METRO HOMECARE LTD,"1,686.25",PHY LTS 65+,HOMECARE - SPOT,2102637691
03.03.2017,ADULT SOCIAL CARE,SOUTH LONDON  MAUDSLEY NHS FOUNDATION TRUST,"4,968.74",PSYCHOSIS SERVICES,SALARIES & WAGES (INCL LW),5902239777
03.03.2017,ADULT SOCIAL CARE,SOUTH LONDON  MAUDSLEY NHS FOUNDATION TRUST,"10,828.22",PSYCHOSIS SERVICES,SALARIES & WAGES (INCL LW),5902239780
03.03.2017,ADULT SOCIAL CARE,METRO HOMECARE LTD,317.02,SEN LTS 18-64,HOMECARE - SPOT,2102637723
03.03.2017,ADULT SOCIAL CARE,CARE DIRECT UK LTD,263.06,SOCIAL ISOLATION,HOMECARE - SPOT,2102637515
03.03.2017,ADULT SOCIAL CARE,CHOICE SUPPORT,514.36,SOCIAL ISOLATION,SUPPORTED LIVING,2102637566
03.03.2017,ADULT SOCIAL CARE,METRO HOMECARE LTD,283.29,SOCIAL ISOLATION,HOMECARE - SPOT,2102637750
03.03.2017,ADULT SOCIAL CARE,METRO HOMECARE LTD,546.35,SOCIAL ISOLATION,HOMECARE - SPOT,2102637727
03.03.2017,ADULT SOCIAL CARE,CBS MAINTENANCE SERVICES LTD,"1,450.00",THE CAMDEN SOCIETY,BUILDING R&M,2102637283
03.03.2017,ADULT SOCIAL CARE,CBS MAINTENANCE SERVICES LTD,"5,000.00",THE CAMDEN SOCIETY,BUILDING R&M,2102637283
03.03.2017,ASSET MANAGEMENT,MAYBO LIMITED,790,ENG COMPLIANCE MANAGER,TRAINING,5902239824
03.03.2017,ASSET MANAGEMENT,MAYBO LIMITED,790,ENG COMPLIANCE MANAGER,TRAINING,5902239825
03.03.2017,ASSET MANAGEMENT,A & E ELKINS LTD,"168,142.59",FRA WORKS,ESTATE LIGHTING R&M,2102637285
03.03.2017,ASSET MANAGEMENT,BRIDGEWATER ROOFING CONTRACTORS LTD,622,R&M CONTRACTS (NORTH),OTHER R&M,2102637282
03.03.2017,CENTRAL FUNCTIONS,EDF ENERGY PLC,430.22,COMMERCIAL PROPERTIES,ELECTRICITY,5902239850
03.03.2017,CENTRAL FUNCTIONS,VIRTUAL COLLEGE LIMITED,500,TENANTS FUND,TRAINING,5902239674
03.03.2017,CHIEF EXECTIVE,BLAKEDOWN LANDSCAPES,"18,509.58",CAPITAL PS (REGEN),CONSTRUCTION FEES,2102637073
03.03.2017,CHIEF EXECUTIVE'S OFFICE,STEP AHEAD EMPLOYMENT LTD,"33,003.00",CHIEF EXEC'S OFFICE,GRANTS,5902239073
03.03.2017,CHIEF EXECUTIVE'S OFFICE,CHANGE THE PICTURE LTD,"1,913.50",YOUTH FUND EMPLOYMENT,GRANTS,2102637753
03.03.2017,CHIEF EXECUTIVE'S OFFICE,LONDON PATTERN BUREAU,"1,758.00",YOUTH FUND EMPLOYMENT,GRANTS,2102637757
03.03.2017,CHIEF EXECUTIVE'S OFFICE,OLD SPIKE ROASTERY CIC,"2,674.50",YOUTH FUND EMPLOYMENT,GRANTS,2102637758
03.03.2017,CHIEF EXECUTIVE'S OFFICE,PECAN LTD,"2,063.50",YOUTH FUND EMPLOYMENT,GRANTS,2102637754
03.03.2017,CHIEF EXECUTIVE'S OFFICE,SOUTHWARK BREWING COMPANY LTD,300,YOUTH FUND EMPLOYMENT,GRANTS,2102637759
03.03.2017,CHIEF EXECUTIVE'S OFFICE,SOUTHWARK BREWING COMPANY LTD,300,YOUTH FUND EMPLOYMENT,GRANTS,2102637762
03.03.2017,CHIEF EXECUTIVE'S OFFICE,SOUTHWARK BREWING COMPANY LTD,"2,063.50",YOUTH FUND EMPLOYMENT,GRANTS,2102637760
03.03.2017,CHIEF EXECUTIVE'S OFFICE,SOUTHWARK BREWING COMPANY LTD,"2,063.50",YOUTH FUND EMPLOYMENT,GRANTS,2102637763
03.03.2017,CHIEF EXECUTIVE'S OFFICE,SOUTHWARK BREWING COMPANY LTD,"2,118.63",YOUTH FUND EMPLOYMENT,GRANTS,2102637761
03.03.2017,CHIEF EXECUTIVE'S OFFICE,SOUTHWARK BREWING COMPANY LTD,"2,118.63",YOUTH FUND EMPLOYMENT,GRANTS,2102637764
03.03.2017,CHIEF EXECUTIVE'S OFFICE,WALWORTH GARDEN FARM,"2,105.61",YOUTH FUND EMPLOYMENT,GRANTS,2102637756
03.03.2017,CHIEF EXECUTIVE'S OFFICE,WALWORTH GARDEN FARM,"2,658.86",YOUTH FUND EMPLOYMENT,GRANTS,2102637755
03.03.2017,CHILDREN AND ADULT,GALLIFORD TRY LTD,"81,484.02",CAPITAL PS (EDUCATION),CONSTRUCTION MAIN CONTRACT -CERTIFICATED,2102637286
03.03.2017,CHILDREN AND ADULT,MACE LTD,"7,417.50",CAPITAL PS (EDUCATION),CONSTRUCTION,5902239707
03.03.2017,CHILDREN AND ADULT,MISCO UK LTD,459.5,CAPITAL PS (EDUCATION),CONST'N MAIN CONTRACT - NON CERTIFICATED,5902239854
03.03.2017,CHILDREN AND ADULT,MORGAN SINDALL PLC,"322,678.96",CAPITAL PS (EDUCATION),CONST'N MAIN CONTRACT - NON CERTIFICATED,2102637288
03.03.2017,CHILDREN AND ADULT,MORGAN SINDALL PLC,"424,646.60",CAPITAL PS (EDUCATION),CONST'N MAIN CONTRACT - NON CERTIFICATED,2102637287
03.03.2017,CHILDREN'S SERVICES,CROWN HOUSING LTD,"1,085.00",AIS - IHT,SECTION 17 PAYMENTS TO AGENCIES/CARERS,5902239774
03.03.2017,CHILDREN'S SERVICES,HOME OFFICE ACCOUNTING OFFICER,936,CARE GRPS  1 TO 3,OTHER PAYMENTS FOR CLIENTS,5902239711
03.03.2017,CHILDREN'S SERVICES,HOME OFFICE ACCOUNTING OFFICER,936,CARE GRPS  1 TO 3,OTHER PAYMENTS FOR CLIENTS,5902239717
03.03.2017,CHILDREN'S SERVICES,GLS EDUCATIONAL SUPPLIES LTD,330.03,DIRECT DELIVERY,EQUIPMENT PURCHASE & REPAIR,5902239875
03.03.2017,CHILDREN'S SERVICES,SMITH AND MASSEN LTD,"4,980.00",FAMILY ASSESSMENTS,RESIDENTIAL CARE,5902239773
03.03.2017,CHILDREN'S SERVICES,CARE O LINE,275,HOME 2 SCHOOL TRANSPORT,AGENCY STAFF,5902239753
03.03.2017,CHILDREN'S SERVICES,CARE O LINE,275,HOME 2 SCHOOL TRANSPORT,AGENCY STAFF,5902239756
03.03.2017,CHILDREN'S SERVICES,CARE O LINE,275,HOME 2 SCHOOL TRANSPORT,AGENCY STAFF,5902239757
03.03.2017,CHILDREN'S SERVICES,REDACTED PERSONAL DATA,441,HOME 2 SCHOOL TRANSPORT,OTHER PAYMENTS FOR CLIENTS,2102637374
03.03.2017,CHILDREN'S SERVICES,REDACTED PERSONAL DATA,"2,028.02",HOME 2 SCHOOL TRANSPORT,OTHER PAYMENTS FOR CLIENTS,5902239911
03.03.2017,CHILDREN'S SERVICES,REDACTED PERSONAL DATA,300,HOME 2 SCHOOL TRANSPORT,OTHER PAYMENTS FOR CLIENTS,2102637377
03.03.2017,CHILDREN'S SERVICES,REDACTED PERSONAL DATA,940.5,HOME 2 SCHOOL TRANSPORT,OTHER PAYMENTS FOR CLIENTS,2102637372
03.03.2017,CHILDREN'S SERVICES,REDACTED PERSONAL DATA,"2,580.00",HOME 2 SCHOOL TRANSPORT,OTHER PAYMENTS FOR CLIENTS,2102637371
03.03.2017,CHILDREN'S SERVICES,REDACTED PERSONAL DATA,"1,470.00",HOME 2 SCHOOL TRANSPORT,OTHER PAYMENTS FOR CLIENTS,2102637376
03.03.2017,CHILDREN'S SERVICES,KINTORE WAY CHILDRENS CENTRE,"5,000.00",INTERVENTION FUND,MISCELLANEOUS RECHARGES,5902239745
03.03.2017,CHILDREN'S SERVICES,OLIVER GOLDSMITH PRIMARY SCHOOL,"2,000.00",INTERVENTION FUND,MISCELLANEOUS RECHARGES,5902239876
03.03.2017,CHILDREN'S SERVICES,JAMIE SIMONDS PHOTOGRAPHY,450,LEA MUSIC SERVICE(310) - 5018566,CONSULTANTS SERVICES,5902239672
03.03.2017,CHILDREN'S SERVICES,REVIVAL,330,PARENTING TEAM,OTHER PAYMENTS FOR CLIENTS,5902239883
03.03.2017,CHILDREN'S SERVICES,GOOSE GREEN PRIMARY AND NURSERY SCHOOL,"1,500.00",PUPIL PREMIUM CURRENT YEAR,SCHOOLS CAPITATION,2102634688
03.03.2017,CHILDREN'S SERVICES,GOOSE GREEN PRIMARY AND NURSERY SCHOOL,"1,500.00",PUPIL PREMIUM CURRENT YEAR,SCHOOLS CAPITATION,2102634689
03.03.2017,CHILDREN'S SERVICES,BESPOKE HEALTH & SOCIAL CARE LTD,472.19,SPECIALIST CARE,SECTION 17 PAYMENTS TO AGENCIES/CARERS,5902239713
03.03.2017,CHILDREN'S SERVICES,CONTACT PROFESSIONALS,722,SPECIALIST CARE,SECTION 17 PAYMENTS TO AGENCIES/CARERS,5902239716
03.03.2017,CHILDREN'S SERVICES,KIDS,339,SPECIALIST CARE,SECTION 17 PAYMENTS TO AGENCIES/CARERS,5902239905
03.03.2017,CHILDREN'S SERVICES,KIDS,452,SPECIALIST CARE,SECTION 17 PAYMENTS TO AGENCIES/CARERS,5902239913
03.03.2017,CHILDREN'S SERVICES,HOLLY BRYAN ASSOCIATES LTD,"7,800.00",STRATEGY,CONSULTANTS SERVICES,5902239909
03.03.2017,COMMISSIONING & CENTRAL,IDOX SOFWARE LIMITED,"3,474.41",BUSINESS APPLICATIONS,SOFTWARE,5902239060
03.03.2017,COMMUNITIES,HOMELY HOUSING LTD,"7,910.40",NO RECOURSE TO PUBLIC FUNDS,SECTION 17 PAYMENTS TO AGENCIES/CARERS,5902239668
03.03.2017,COMMUNITIES,HOMELY HOUSING LTD,"8,111.20",NO RECOURSE TO PUBLIC FUNDS,SECTION 17 PAYMENTS TO AGENCIES/CARERS,5902239667
03.03.2017,CUSTOMER EXPERIENCE,PARIS SMITH AND RANDALL SOLICITORS,"8,484.26",SALES & ACQUISITIONS,LEGAL FEES & COURT COSTS,5902239888
03.03.2017,CUSTOMER EXPERIENCE HGF,SOUTHSIDE REHABILITATION ASSN,544.5,CITIZENSHIP,CATERING MATERIALS & SUPPLIES,5902239896
03.03.2017,ENVIRONMENT AND LEISURE,PICK EVERARD,946.53,CAPITAL PS (LEISURE),CONSTRUCTION FEES  - EXTERNAL,5902239751
03.03.2017,ENVIRONMENT AND LEISURE,PICK EVERARD,"2,747.36",CAPITAL PS (LEISURE),CONSTRUCTION FEES  - EXTERNAL,5902239914
03.03.2017,ENVIRONMENT AND LEISURE,4 GLOBAL CONSULTING LTD,931,CAPITAL PS (LEISURE),"PLANT, MACHINERY & EQUIPMENT ACQUISITION",5902239771
03.03.2017,ENVIRONMENT AND LEISURE,CJS PLANTS,"1,265.00",CAPITAL PS (LEISURE),CONST'N MAIN CONTRACT - NON CERTIFICATED,5902239855
03.03.2017,ENVIRONMENT AND LEISURE,COMMUNITY LINKS TRADING LTD,481,CAPITAL PS (LEISURE),CONSTRUCTION FEES  - EXTERNAL,5902238967
03.03.2017,ENVIRONMENT AND LEISURE,CONCRETE SPORTS LTD,"4,200.00",CAPITAL PS (LEISURE),CONST'N MAIN CONTRACT - NON CERTIFICATED,5902239718
03.03.2017,ENVIRONMENT AND LEISURE,CONWAY AECOM LTD,"4,618.25",CAPITAL PS (LEISURE),CONSTRUCTION MAIN CONTRACT,5902239852
03.03.2017,ENVIRONMENT AND LEISURE,PEMBROKE COLLEGE CAMBRIDGE MISSION,"7,500.00",CAPITAL PS (LEISURE),CAPITAL GRANTS,5902239663
03.03.2017,ENVIRONMENT AND LEISURE,PEMBROKE COLLEGE CAMBRIDGE MISSION,"19,960.00",CAPITAL PS (LEISURE),CAPITAL GRANTS,5902239662
03.03.2017,ENVIRONMENT DIRECTORATE,DAWSON RENTALS SWEEPERS,"2,000.00",COMMERCIAL VEH CTRL A/C,VEHICLE REPAIRS & MAINTENANCE,5902239738
03.03.2017,ENVIRONMENT DIRECTORATE,DAWSON RENTALS SWEEPERS,"2,000.00",COMMERCIAL VEH CTRL A/C,VEHICLE REPAIRS & MAINTENANCE,5902239740
03.03.2017,ENVIRONMENT DIRECTORATE,THE CAMDEN SOCIETY (CATERING),276.5,CSPS ADMINISTRATION,REFRESHMENTS FOR MEETINGS,5902239665
03.03.2017,ENVIRONMENT DIRECTORATE,THE CAMDEN SOCIETY (CATERING),342.3,CSPS ADMINISTRATION,REFRESHMENTS FOR MEETINGS,5902239666
03.03.2017,ENVIRONMENT DIRECTORATE,SOUTH ESSEX STOCKHOLDERS LTD,384,ENGINEERING CRAFTS,MATERIALS,5902239685
03.03.2017,ENVIRONMENT DIRECTORATE,HITACHI CAPITAL VEHICLE SOLN LTD,730,FLEET INSURANCE WORKS,TRANSPORT INSURANCE COSTS,5902239921
03.03.2017,ENVIRONMENT DIRECTORATE,LANDSCAPE SUPPLY COMPANY,"2,051.40",GROUNDS MAINTENANCE - GENERAL,EQUIPMENT PURCHASE & REPAIR,5902238127
03.03.2017,ENVIRONMENT DIRECTORATE,THE HUB EVENTS LTD,520,PARKING OVERHEADS,TRAINING,5902239820
03.03.2017,ENVIRONMENT DIRECTORATE,ACOUSTIC CALIBRATION SERVICES LTD,"1,162.00",POLLUTION CONTROL,EQUIPMENT PURCHASE & REPAIR,5902239880
03.03.2017,ENVIRONMENT DIRECTORATE,COMMUNITY CYCLEWORKS,"1,930.00",STP MONITORING AND INITIATIVES,PROFESSIONAL FEES,5902239882
03.03.2017,ENVIRONMENT DIRECTORATE,SOUTHWARK NEWSPAPER LTD,384,STREET WORKS OVERHEADS,MARKETING & PUBLICITY SERVICES,5902239691
03.03.2017,ENVIRONMENT DIRECTORATE,AGENTIS WORKWEAR LTD,259.92,STREETS  (NORTH WEST),"CLOTHING, UNIFORMS & LAUNDRY",5902239910
03.03.2017,F & C S EXCLUDING CORPORATE BUDGETS,BARONY CONSULTING GROUP LTD,798,ADMINISTRATIVE SUPPORT,OTHER SUBSISTENCE & CONFERENCE EXPENSES,5902238261
03.03.2017,F & C S EXCLUDING CORPORATE BUDGETS,DSI BILLING SERVICES LTD,"1,086.01",ADMINISTRATIVE SUPPORT,POSTAGES,5902239680
03.03.2017,F & C S EXCLUDING CORPORATE BUDGETS,NORTHGATE PUBLIC SERVICES (UK) LTD,"4,250.40",ADMINISTRATIVE SUPPORT,SOFTWARE,5902239857
03.03.2017,F & C S EXCLUDING CORPORATE BUDGETS,TORPEDO FACTORY LTD,717,COMMUNITY COUNCILS,OP LEASE/HIRE CHARGES:PLANT/EQUIP/FURNIT,5902239703
03.03.2017,HOUSING,ARMSTRONG YORK,"3,910.00",PAYMENTS CONTROL ACCOUNT-ARMSTRONG YORKE,MANUAL CREDITORS,5902239827
03.03.2017,HOUSING,EDWARDES BROS (DULWICH) LTD,420,STORES,CREDITORS -GR/IR CLEARING ACCOUNT,5902239741
03.03.2017,HOUSING,EDWARDES BROS (DULWICH) LTD,420,STORES,CREDITORS -GR/IR CLEARING ACCOUNT,5902239741
03.03.2017,HOUSING,EDWARDES BROS (DULWICH) LTD,420,STORES,CREDITORS -GR/IR CLEARING ACCOUNT,5902239741
03.03.2017,HOUSING,EDWARDES BROS (DULWICH) LTD,810,STORES,CREDITORS -GR/IR CLEARING ACCOUNT,5902239741
03.03.2017,HOUSING,LONDON TOOLS LIMITED,290,STORES,CREDITORS -GR/IR CLEARING ACCOUNT,5902239810
03.03.2017,HOUSING,LONDON TOOLS LIMITED,354,STORES,CREDITORS -GR/IR CLEARING ACCOUNT,5902239730
03.03.2017,HOUSING,LONDON TOOLS LIMITED,400,STORES,CREDITORS -GR/IR CLEARING ACCOUNT,5902239813
03.03.2017,HOUSING,LONDON TOOLS LIMITED,425,STORES,CREDITORS -GR/IR CLEARING ACCOUNT,5902239810
03.03.2017,HOUSING,LONDON TOOLS LIMITED,435,STORES,CREDITORS -GR/IR CLEARING ACCOUNT,5902239813
03.03.2017,HOUSING,LONDON TOOLS LIMITED,450,STORES,CREDITORS -GR/IR CLEARING ACCOUNT,5902239810
03.03.2017,HOUSING,LONDON TOOLS LIMITED,451.2,STORES,CREDITORS -GR/IR CLEARING ACCOUNT,5902239812
03.03.2017,HOUSING,LONDON TOOLS LIMITED,463.98,STORES,CREDITORS -GR/IR CLEARING ACCOUNT,5902239815
03.03.2017,HOUSING,LONDON TOOLS LIMITED,510,STORES,CREDITORS -GR/IR CLEARING ACCOUNT,5902239813
03.03.2017,HOUSING,LONDON TOOLS LIMITED,525,STORES,CREDITORS -GR/IR CLEARING ACCOUNT,5902239677
03.03.2017,HOUSING,LONDON TOOLS LIMITED,610.5,STORES,CREDITORS -GR/IR CLEARING ACCOUNT,5902239693
03.03.2017,HOUSING,LONDON TOOLS LIMITED,610.5,STORES,CREDITORS -GR/IR CLEARING ACCOUNT,5902239693
03.03.2017,HOUSING,LONDON TOOLS LIMITED,610.5,STORES,CREDITORS -GR/IR CLEARING ACCOUNT,5902239815
03.03.2017,HOUSING,LONDON TOOLS LIMITED,610.5,STORES,CREDITORS -GR/IR CLEARING ACCOUNT,5902239815
03.03.2017,HOUSING,LONDON TOOLS LIMITED,630,STORES,CREDITORS -GR/IR CLEARING ACCOUNT,5902239798
03.03.2017,HOUSING,LONDON TOOLS LIMITED,650,STORES,CREDITORS -GR/IR CLEARING ACCOUNT,5902239684
03.03.2017,HOUSING,LONDON TOOLS LIMITED,670,STORES,CREDITORS -GR/IR CLEARING ACCOUNT,5902239681
03.03.2017,HOUSING,LONDON TOOLS LIMITED,675,STORES,CREDITORS -GR/IR CLEARING ACCOUNT,5902239815
03.03.2017,HOUSING,LONDON TOOLS LIMITED,708,STORES,CREDITORS -GR/IR CLEARING ACCOUNT,5902239724
03.03.2017,HOUSING,LONDON TOOLS LIMITED,728,STORES,CREDITORS -GR/IR CLEARING ACCOUNT,5902239693
03.03.2017,HOUSING,LONDON TOOLS LIMITED,737.5,STORES,CREDITORS -GR/IR CLEARING ACCOUNT,5902239810
03.03.2017,HOUSING,LONDON TOOLS LIMITED,756,STORES,CREDITORS -GR/IR CLEARING ACCOUNT,5902239687
03.03.2017,HOUSING,LONDON TOOLS LIMITED,900,STORES,CREDITORS -GR/IR CLEARING ACCOUNT,5902239690
03.03.2017,HOUSING,LONDON TOOLS LIMITED,930,STORES,CREDITORS -GR/IR CLEARING ACCOUNT,5902239814
03.03.2017,HOUSING,LONDON TOOLS LIMITED,942.9,STORES,CREDITORS -GR/IR CLEARING ACCOUNT,5902239796
03.03.2017,HOUSING,LONDON TOOLS LIMITED,"1,350.00",STORES,CREDITORS -GR/IR CLEARING ACCOUNT,5902239678
03.03.2017,HOUSING,LONDON TOOLS LIMITED,"1,700.00",STORES,CREDITORS -GR/IR CLEARING ACCOUNT,5902239809
03.03.2017,HOUSING,LONDON TOOLS LIMITED,"2,100.00",STORES,CREDITORS -GR/IR CLEARING ACCOUNT,5902239705
03.03.2017,HOUSING,LONDON TOOLS LIMITED,"2,200.10",STORES,CREDITORS -GR/IR CLEARING ACCOUNT,5902239806
03.03.2017,HOUSING,LONDON TOOLS LIMITED,"2,520.00",STORES,CREDITORS -GR/IR CLEARING ACCOUNT,5902239722
03.03.2017,HOUSING,LONDON TOOLS LIMITED,"3,143.00",STORES,CREDITORS -GR/IR CLEARING ACCOUNT,5902239811
03.03.2017,HOUSING,LONDON TOOLS LIMITED,"4,800.00",STORES,CREDITORS -GR/IR CLEARING ACCOUNT,5902239709
03.03.2017,HOUSING,PILKINGTON UK LTD,"2,046.00",STORES,CREDITORS -GR/IR CLEARING ACCOUNT,5902239747
03.03.2017,HOUSING,SMI GROUP,424.5,STORES,CREDITORS -GR/IR CLEARING ACCOUNT,5902239729
03.03.2017,HOUSING GENERAL FUND,HIGHER ELEVATION LTD,"5,990.00",CAPITAL PS (HOUSING GF),CAPITAL GRANTS,5902239682
03.03.2017,HOUSING GENERAL FUND,L H BRIDGE LTD,"1,840.00",CAPITAL PS (HOUSING GF),CAPITAL GRANTS,5902239679
03.03.2017,HOUSING GENERAL FUND,INTERSERVE (FACILITIES MANAGEMENT),"5,841.01",CAPITAL PS (REGEN),CONSTRUCTION,5902239754
03.03.2017,HOUSING GENERAL FUND,KIER FACILITIES SERVICES LTD,"21,613.70",CAPITAL PS (REGEN),CONSTRUCTION FEES - ENGINEER,5902239764
03.03.2017,HOUSING HRA,BELL PHILLIPS ARCHITECTS LTD,"24,898.00",CAPITAL PS (HRA),CONSTRUCTION FEES  - EXTERNAL,5902238652
03.03.2017,HOUSING HRA,CALFORD SEADEN LLP,"15,000.00",CAPITAL PS (HRA),CONSTRUCTION FEES  - EXTERNAL,5902239912
03.03.2017,HOUSING HRA,HAWORTH TOMPKINS LTD,"72,662.66",CAPITAL PS (HRA),CONSTRUCTION FEES  - EXTERNAL,5902239823
03.03.2017,HOUSING HRA,POLLARD THOMAS EDWARDS LTD,"9,000.00",CAPITAL PS (HRA),CONSTRUCTION FEES  - EXTERNAL,5902239692
03.03.2017,HOUSING HRA,POLLARD THOMAS EDWARDS LTD,"10,080.00",CAPITAL PS (HRA),CONSTRUCTION FEES  - EXTERNAL,5902239689
03.03.2017,HOUSING HRA,POLLARD THOMAS EDWARDS LTD,"6,120.00",CAPITAL PS (HRA),CONSTRUCTION FEES - INTERNAL,5902239688
03.03.2017,HOUSING HRA,A & E ELKINS LTD,"62,289.99",CAPITAL PS (REGEN),CONSTRUCTION SITE COSTS,2102637284
03.03.2017,LEISURE DIRECTORATE,FRIENDS OF BURGESS PARK,670,BURGESS AREA TEAM,PROFESSIONAL FEES,5902238762
03.03.2017,LEISURE DIRECTORATE,LASCOT LTD,928.72,COMMUNITY SPORTS SMALL GRANTS,PUBLIC TRANSPORT,5902239887
03.03.2017,LEISURE DIRECTORATE,LASCOT LTD,"1,113.61",COMMUNITY SPORTS SMALL GRANTS,PUBLIC TRANSPORT,5902239887
03.03.2017,LEISURE DIRECTORATE,BRITISH GAS BUSINESS,350.46,DULWICH AREA TEAM,GAS,5902239841
03.03.2017,LEISURE DIRECTORATE,SIMPLY HIRE LTD,938,FACILITIES MAINTENANCE,BUILDING R&M,5902239907
03.03.2017,LEISURE DIRECTORATE,EDF ENERGY PLC,281.67,PECKHAM RYE AREA TEAM,ELECTRICITY,5902239901
03.03.2017,LEISURE DIRECTORATE,EDF ENERGY PLC,415.65,PECKHAM RYE AREA TEAM,ELECTRICITY,5902239906
03.03.2017,LEISURE DIRECTORATE,A J PAIN WASTE MANAGEMENT LTD,"1,514.50",SDM BUDGET,REFUSE COLLECTION CONTRACT,5902239919
03.03.2017,LEISURE DIRECTORATE,THAMES WATER UTILITIES LTD,940.1,SOUTHWARK AREA TEAM,WATER,5902239871
03.03.2017,LEISURE DIRECTORATE,VEOLIA ES (UK)LTD,264.98,STOCK SERVICES,CSC CONTRACT,5902239697
03.03.2017,LEISURE DIRECTORATE,INCENTIVE QAS LTD,"1,330.17",TEMPORARY NEWINGTON,PREMISES CLEANING,5902239712
03.03.2017,MODERNISATION HGF,BUILDING MONITORING SERVICES LTD,262.97,160 TOOLEY ST.,BUILDING R&M,5902239878
03.03.2017,MODERNISATION HGF,KENT COUNTY COUNCIL - LASER,"33,557.88",160 TOOLEY ST.,ELECTRICITY,5902239804
03.03.2017,MODERNISATION HGF,KENT COUNTY COUNCIL - LASER,560.97,7 TALFOURD ROAD,ELECTRICITY,5902239819
03.03.2017,MODERNISATION HGF,JESSICA MCKOEN,500,ADULTS MENTAL HEALTH TRAINING,TRAINING,5902239917
03.03.2017,MODERNISATION HGF,LIFETIME TRAINING GROUP,665.83,ASW - PROFESSIONAL DEVELOPMENT,TRAINING,5902239900
03.03.2017,MODERNISATION HGF,MAYBO LIMITED,395,CORP. TRAINING BUDGETS,TRAINING,5902239844
03.03.2017,MODERNISATION HGF,MAYBO LIMITED,395,CORP. TRAINING BUDGETS,TRAINING,5902239845
03.03.2017,MODERNISATION HGF,BOKELL ASSOCIATES LTD,750,CSW - PROFESSIONAL DEVELOPMENT,AGENCY STAFF,5902239846
03.03.2017,MODERNISATION HGF,JOHN STATTERS ASSOCIATES,"1,900.00",OCCUPATIONAL ASSESSMENT,CONSULTANTS SERVICES,5902238162
03.03.2017,MODERNISATION HGF,ADT FIRE & SECURITY PLC,631.34,REPAIR AND MAINTENANCE SERVICES,BUILDING R&M,5902239726
03.03.2017,MODERNISATION HGF,INTERSERVE (FACILITIES MANAGEMENT),"115,186.23",REPAIR AND MAINTENANCE SERVICES,SECURITY SERVICES,5902239822
03.03.2017,MODERNISATION HGF,WARWICK GRP T/A MACH 1 COURIERS LTD,859.77,REPAIR AND MAINTENANCE SERVICES,CAB FARES,5902239727
03.03.2017,PLANNING AND TRANSPORT,WATES LIVING SPACE (MAINTENANCE) LTD,852.58,DANGEROUS STRUCTURES,OTHER CONTRACTORS,5902239862
03.03.2017,PUBLIC HEALTH,FOUNDATION 66,"28,776.00",ANCILLARY AND RECOVERY SERVICES,OTHER CONTRACTORS,5902239743
03.03.2017,REGENERATION,AOC ARCHITECTURE LTD,"1,000.00",MASTER PLAN-H/WAY & TRANS INTERCHANGE,PROFESSIONAL FEES,5902238213
03.03.2017,REGENERATION,CONWAY AECOM LTD,823.08,OLD KENT RD-FEES/MPLAN,PROFESSIONAL FEES,5902239790
03.03.2017,RESIDENT SERVICES,MARIAS KITCHEN,450.45,OPERATIONS/OFFICES ACCOMMODATION,REFRESHMENTS FOR MEETINGS,5902239714
03.03.2017,RESIDENT SERVICES,CRIME CONCERN UK LTD,"2,170.00",SOUTHWARK MEDIATION SERVICE,OTHER CONTRACTORS,5902239706
03.03.2017,RESIDENT SERVICES,SOUTHWARK LAW CENTRE,"20,000.00",SPECIAL INVESTIGATIONS,LEGAL FEES & COURT COSTS,5902239659
03.03.2017,RESIDENT SERVICES,S GREEN AND SONS LTD,"1,111.60",SPECIAL NEEDS HOSTELS,"CLOTHING, UNIFORMS & LAUNDRY",5902239792
03.03.2017,RESIDENT SERVICES,LONDON TOOLS LIMITED,330.8,TA HOSTELS,MATERIALS,5902239715
03.03.2017,RESIDENT SERVICES,K3 PROPERTY MANAGEMENT LTD,"2,205.00",TA PLACEMENTS,RENTS,5902239702
03.03.2017,SOUTHWARK BUILDING SERVICES,LONDON TOOLS LIMITED,270,DEPOT COSTS,MATERIALS,5902239721
03.03.2017,SOUTHWARK BUILDING SERVICES,LONDON TOOLS LIMITED,356,ROOFERS,MATERIALS,5902239752
03.03.2017,SOUTHWARK BUILDING SERVICES,LONDON TOOLS LIMITED,437,ROOFERS,MATERIALS,5902239733
04.03.2017,ENVIRONMENT DIRECTORATE,SOUTHWARK NEWSPAPER LTD,288,STREET WORKS OVERHEADS,MARKETING & PUBLICITY SERVICES,5902239534
04.03.2017,ENVIRONMENT DIRECTORATE,SOUTHWARK NEWSPAPER LTD,300,STREET WORKS OVERHEADS,MARKETING & PUBLICITY SERVICES,5902239654
04.03.2017,ENVIRONMENT DIRECTORATE,SOUTHWARK NEWSPAPER LTD,300,STREET WORKS OVERHEADS,MARKETING & PUBLICITY SERVICES,5902239671
04.03.2017,ENVIRONMENT DIRECTORATE,SOUTHWARK NEWSPAPER LTD,324,STREET WORKS OVERHEADS,MARKETING & PUBLICITY SERVICES,5902239643
04.03.2017,ENVIRONMENT DIRECTORATE,SOUTHWARK NEWSPAPER LTD,372,STREET WORKS OVERHEADS,MARKETING & PUBLICITY SERVICES,5902239889
04.03.2017,ENVIRONMENT DIRECTORATE,SOUTHWARK NEWSPAPER LTD,396,STREET WORKS OVERHEADS,MARKETING & PUBLICITY SERVICES,5902239670
04.03.2017,HOUSING HRA,CALFORD SEADEN LLP,"3,920.00",CAPITAL PS (HRA),CONSTRUCTION FEES  - EXTERNAL,5902238721
04.03.2017,PLANNING AND TRANSPORT,SOUTHWARK NEWSPAPER LTD,504,DEVELOPMENT CONTROL ADMINSTRATION,MARKETING & PUBLICITY SERVICES,5902239276
05.03.2017,ASSET MANAGEMENT,POTTER RAPER AND PARTNERS,552,ASBESTOS R&M (NORTH),PROFESSIONAL FEES,5902239601
05.03.2017,ASSET MANAGEMENT,POTTER RAPER AND PARTNERS,636.11,ASBESTOS R&M (NORTH),PROFESSIONAL FEES,5902239600
05.03.2017,CHILDREN AND ADULT,WILLIAM MARTIN PROPERTY CONSULTANTS LTD,"2,250.00",CAPITAL PS (EDUCATION),CONST'N MAIN CONTRACT - NON CERTIFICATED,5902238964
05.03.2017,ENVIRONMENT AND LEISURE,FACULTATIEVE TECHNOLOGIES LTD,"80,118.34",CAPITAL PS (LEISURE),CONSTRUCTION FEES  - EXTERNAL,2102637076
05.03.2017,ENVIRONMENT AND LEISURE,LAND USE CONSULTANTS,"5,805.00",CAPITAL PS (LEISURE),CONSTRUCTION FEES  - EXTERNAL,5902238965
05.03.2017,ENVIRONMENT DIRECTORATE,SOUTHWARK NEWSPAPER LTD,288,STREET WORKS OVERHEADS,MARKETING & PUBLICITY SERVICES,5902239526
06.03.2017,ADULT SOCIAL CARE,COLLINGWOOD COURT (BUPA CARE HOMES),-601.8, OP CARE PACKAGES,"MAND STATUTORY CHARGES, NURSING",2102638395
06.03.2017,ADULT SOCIAL CARE,COLLINGWOOD COURT (BUPA CARE HOMES),-601.8, OP CARE PACKAGES,"MAND STATUTORY CHARGES, NURSING",2102638401
06.03.2017,ADULT SOCIAL CARE,COLLINGWOOD COURT (BUPA CARE HOMES),-522.8, OP CARE PACKAGES,"MAND STATUTORY CHARGES, NURSING",2102638393
06.03.2017,ADULT SOCIAL CARE,COLLINGWOOD COURT (BUPA CARE HOMES),-522.8, OP CARE PACKAGES,"MAND STATUTORY CHARGES, NURSING",2102638399
06.03.2017,ADULT SOCIAL CARE,COLLINGWOOD COURT (BUPA CARE HOMES),"1,045.60", OP CARE PACKAGES,"MAND STATUTORY CHARGES, NURSING",2102638406
06.03.2017,ADULT SOCIAL CARE,COLLINGWOOD COURT (BUPA CARE HOMES),"1,203.60", OP CARE PACKAGES,"MAND STATUTORY CHARGES, NURSING",2102638408
06.03.2017,ADULT SOCIAL CARE,COLLINGWOOD COURT (BUPA CARE HOMES),"-9,301.20", OP CARE PACKAGES,NURSING PLACEMENTS FEES,2102638402
06.03.2017,ADULT SOCIAL CARE,COLLINGWOOD COURT (BUPA CARE HOMES),"-6,204.56", OP CARE PACKAGES,NURSING PLACEMENTS FEES,2102638407
06.03.2017,ADULT SOCIAL CARE,COLLINGWOOD COURT (BUPA CARE HOMES),"-5,431.04", OP CARE PACKAGES,NURSING PLACEMENTS FEES,2102638405
06.03.2017,ADULT SOCIAL CARE,COLLINGWOOD COURT (BUPA CARE HOMES),"2,715.52", OP CARE PACKAGES,NURSING PLACEMENTS FEES,2102638392
06.03.2017,ADULT SOCIAL CARE,COLLINGWOOD COURT (BUPA CARE HOMES),"2,715.52", OP CARE PACKAGES,NURSING PLACEMENTS FEES,2102638398
06.03.2017,ADULT SOCIAL CARE,COLLINGWOOD COURT (BUPA CARE HOMES),"3,102.28", OP CARE PACKAGES,NURSING PLACEMENTS FEES,2102638394
06.03.2017,ADULT SOCIAL CARE,COLLINGWOOD COURT (BUPA CARE HOMES),"3,102.28", OP CARE PACKAGES,NURSING PLACEMENTS FEES,2102638400
06.03.2017,ADULT SOCIAL CARE,COLLINGWOOD COURT (BUPA CARE HOMES),"4,650.60", OP CARE PACKAGES,NURSING PLACEMENTS FEES,2102638390
06.03.2017,ADULT SOCIAL CARE,COLLINGWOOD COURT (BUPA CARE HOMES),"4,650.60", OP CARE PACKAGES,NURSING PLACEMENTS FEES,2102638396
06.03.2017,ADULT SOCIAL CARE,NORFOLK HOUSE,"6,467.97", OP CARE PACKAGES,"MAND STATUTORY CHARGES, RESIDENTIAL",2102593806
06.03.2017,ADULT SOCIAL CARE,NORFOLK HOUSE,"-21,856.23", OP CARE PACKAGES,RESIDENTIAL CARE,2102593805
06.03.2017,ADULT SOCIAL CARE,NORFOLK HOUSE,"23,912.75", OP CARE PACKAGES,RESIDENTIAL CARE,2102638257
06.03.2017,ADULT SOCIAL CARE,ANCHOR TRUST-ROSE COURT,298.8,APPOINTEESHIPS,OTHER PAYMENTS FOR CLIENTS,2102638437
06.03.2017,ADULT SOCIAL CARE,ANCHOR TRUST-ROSE COURT,298.8,APPOINTEESHIPS,OTHER PAYMENTS FOR CLIENTS,2102638438
06.03.2017,ADULT SOCIAL CARE,GLEN CARE GROUP,930,APPOINTEESHIPS,OTHER PAYMENTS FOR CLIENTS,2102638441
06.03.2017,ADULT SOCIAL CARE,LONDON CYRENIANS HOUSING LTD,290,APPOINTEESHIPS,OTHER PAYMENTS FOR CLIENTS,2102638442
06.03.2017,ADULT SOCIAL CARE,LONDON CYRENIANS HOUSING LTD,720,APPOINTEESHIPS,OTHER PAYMENTS FOR CLIENTS,2102638440
06.03.2017,ADULT SOCIAL CARE,METRO HOMECARE LTD,340,APPOINTEESHIPS,OTHER PAYMENTS FOR CLIENTS,2102638445
06.03.2017,ADULT SOCIAL CARE,OLDERCARE (HASLEMERE) LTD,750,APPOINTEESHIPS,OTHER PAYMENTS FOR CLIENTS,2102638415
06.03.2017,ADULT SOCIAL CARE,RIGHT SUPPORT MANAGEMENT LTD,500,APPOINTEESHIPS,OTHER PAYMENTS FOR CLIENTS,2102638436
06.03.2017,ADULT SOCIAL CARE,REDACTED PERSONAL DATA,298.8,APPOINTEESHIPS,OTHER PAYMENTS FOR CLIENTS,2102638428
06.03.2017,ADULT SOCIAL CARE,REDACTED PERSONAL DATA,"1,030.80",APPOINTEESHIPS,OTHER PAYMENTS FOR CLIENTS,2102638433
06.03.2017,ADULT SOCIAL CARE,BRANDON TRUST,"222,247.83",BRANDON TRUST,RESIDENTIAL CARE,5902240018
06.03.2017,ADULT SOCIAL CARE,BRANDON TRUST,"222,247.83",BRANDON TRUST,RESIDENTIAL CARE,5902240019
06.03.2017,ADULT SOCIAL CARE,KEYRING-LIVING SUPPORT NETWORKS LTD,"56,934.60",LD HOME CARE,SUPPORTED LIVING,2102638409
06.03.2017,ADULT SOCIAL CARE,KEYRING-LIVING SUPPORT NETWORKS LTD,"56,934.60",LD HOME CARE,SUPPORTED LIVING,2102638410
06.03.2017,ADULT SOCIAL CARE,PECULIAR CARE HOMES LTD,"-32,378.80",LD HOME CARE,SUPPORTED LIVING,2102638388
06.03.2017,ADULT SOCIAL CARE,PECULIAR CARE HOMES LTD,"16,189.40",LD HOME CARE,SUPPORTED LIVING,2102638385
06.03.2017,ADULT SOCIAL CARE,PECULIAR CARE HOMES LTD,"16,189.40",LD HOME CARE,SUPPORTED LIVING,2102638387
06.03.2017,ADULT SOCIAL CARE,PECULIAR CARE HOMES LTD,"72,401.18",LD HOME CARE,SUPPORTED LIVING,2102638386
06.03.2017,ADULT SOCIAL CARE,KENT HARRIER PROPERTY MANAGEMENT,"1,486.00",LD LTS 18-64,EXTERNAL AGENCIES AND BODIES,2102638221
06.03.2017,ADULT SOCIAL CARE,KENT HARRIER PROPERTY MANAGEMENT,"1,530.00",LD LTS 18-64,EXTERNAL AGENCIES AND BODIES,2102638218
06.03.2017,ADULT SOCIAL CARE,THE DRIVE CARE HOMES LTD,"1,050.00",LD LTS 18-64,CLIENT TRANSPORT,2102638209
06.03.2017,ADULT SOCIAL CARE,THE DRIVE CARE HOMES LTD,"1,050.00",LD LTS 18-64,CLIENT TRANSPORT,2102638214
06.03.2017,ADULT SOCIAL CARE,THE DRIVE CARE HOMES LTD,"1,080.00",LD LTS 18-64,CLIENT TRANSPORT,2102638208
06.03.2017,ADULT SOCIAL CARE,THE DRIVE CARE HOMES LTD,"1,170.00",LD LTS 18-64,CLIENT TRANSPORT,2102638215
06.03.2017,ADULT SOCIAL CARE,THE DRIVE CARE HOMES LTD,"1,260.00",LD LTS 18-64,CLIENT TRANSPORT,2102638217
06.03.2017,ADULT SOCIAL CARE,THE DRIVE CARE HOMES LTD,"1,350.00",LD LTS 18-64,CLIENT TRANSPORT,2102638207
06.03.2017,ADULT SOCIAL CARE,THE DRIVE CARE HOMES LTD,"1,530.00",LD LTS 18-64,CLIENT TRANSPORT,2102638205
06.03.2017,ADULT SOCIAL CARE,THE DRIVE CARE HOMES LTD,"1,540.00",LD LTS 18-64,CLIENT TRANSPORT,2102638212
06.03.2017,ADULT SOCIAL CARE,THE NEW SHOOTS,300,LD LTS 18-64,DAYCARE,2102638211
06.03.2017,ADULT SOCIAL CARE,REDACTED PERSONAL DATA,"3,682.28",LD LTS 18-64,SUPPORTED LIVING,2102638220
06.03.2017,ADULT SOCIAL CARE,CARE DIRECT UK LTD,377.72,LD STS 18-64,HOMECARE - IC,2102638168
06.03.2017,ADULT SOCIAL CARE,YOUTH GRACES (UK) LTD,661.08,MEM LTS 65+,HOMECARE - C&V,2102638111
06.03.2017,ADULT SOCIAL CARE,YOUTH GRACES (UK) LTD,256.35,MEM LTS 65+,HOMECARE - SPOT,2102638133
06.03.2017,ADULT SOCIAL CARE,YOUTH GRACES (UK) LTD,553.27,MEM LTS 65+,HOMECARE - SPOT,2102638054
06.03.2017,ADULT SOCIAL CARE,YOUTH GRACES (UK) LTD,711.6,MEM LTS 65+,HOMECARE - SPOT,2102638135
06.03.2017,ADULT SOCIAL CARE,CARE DIRECT UK LTD,364.23,MH LTS 65+,HOMECARE - SPOT,2102638016
06.03.2017,ADULT SOCIAL CARE,YOUTH GRACES (UK) LTD,263.16,MH LTS 65+,HOMECARE - SPOT,2102638089
06.03.2017,ADULT SOCIAL CARE,CAMELOT NURSING AND RESIDENTIAL CARE HOME,"1,725.61",OP - NURSING,NURSING PLACEMENTS FEES,2102638389
06.03.2017,ADULT SOCIAL CARE,COLLINGWOOD COURT (BUPA CARE HOMES),"12,538.03",OP - NURSING,NURSING PLACEMENTS FEES,2102638403
06.03.2017,ADULT SOCIAL CARE,COLLINGWOOD COURT (BUPA CARE HOMES),"-4,407.52",PD NURSING,NURSING PLACEMENTS FEES,2102638404
06.03.2017,ADULT SOCIAL CARE,COLLINGWOOD COURT (BUPA CARE HOMES),"2,203.76",PD NURSING,NURSING PLACEMENTS FEES,2102638391
06.03.2017,ADULT SOCIAL CARE,COLLINGWOOD COURT (BUPA CARE HOMES),"2,203.76",PD NURSING,NURSING PLACEMENTS FEES,2102638397
06.03.2017,ADULT SOCIAL CARE,CARE DIRECT UK LTD,256.31,PHY LTS 18-64,HOMECARE - SPOT,2102638186
06.03.2017,ADULT SOCIAL CARE,CARE DIRECT UK LTD,364.23,PHY LTS 18-64,HOMECARE - SPOT,2102638040
06.03.2017,ADULT SOCIAL CARE,CARE DIRECT UK LTD,711.6,PHY LTS 18-64,HOMECARE - SPOT,2102638015
06.03.2017,ADULT SOCIAL CARE,HEADWAY S E,366.72,PHY LTS 18-64,DAYCARE,2102638210
06.03.2017,ADULT SOCIAL CARE,HEADWAY S E,488.96,PHY LTS 18-64,DAYCARE,2102638204
06.03.2017,ADULT SOCIAL CARE,HEADWAY S E,488.96,PHY LTS 18-64,DAYCARE,2102638206
06.03.2017,ADULT SOCIAL CARE,HEADWAY S E,488.96,PHY LTS 18-64,DAYCARE,2102638213
06.03.2017,ADULT SOCIAL CARE,HEADWAY S E,488.96,PHY LTS 18-64,DAYCARE,2102638219
06.03.2017,ADULT SOCIAL CARE,YOUTH GRACES (UK) LTD,283.34,PHY LTS 18-64,HOMECARE - C&V,2102638066
06.03.2017,ADULT SOCIAL CARE,YOUTH GRACES (UK) LTD,404.72,PHY LTS 18-64,HOMECARE - C&V,2102638123
06.03.2017,ADULT SOCIAL CARE,YOUTH GRACES (UK) LTD,256.35,PHY LTS 18-64,HOMECARE - SPOT,2102638099
06.03.2017,ADULT SOCIAL CARE,YOUTH GRACES (UK) LTD,969.57,PHY LTS 18-64,HOMECARE - SPOT,2102638108
06.03.2017,ADULT SOCIAL CARE,ABOUT ME CARE AND SUPPORT LTD,942.03,PHY LTS 65+,EXTERNAL AGENCIES AND BODIES,2102638216
06.03.2017,ADULT SOCIAL CARE,CARE DIRECT UK LTD,279.92,PHY LTS 65+,HOMECARE - C&V,2102638011
06.03.2017,ADULT SOCIAL CARE,CARE DIRECT UK LTD,394.58,PHY LTS 65+,HOMECARE - C&V,2102638156
06.03.2017,ADULT SOCIAL CARE,CARE DIRECT UK LTD,583.44,PHY LTS 65+,HOMECARE - C&V,2102638018
06.03.2017,ADULT SOCIAL CARE,CARE DIRECT UK LTD,256.31,PHY LTS 65+,HOMECARE - SPOT,2102638155
06.03.2017,ADULT SOCIAL CARE,CARE DIRECT UK LTD,258.33,PHY LTS 65+,HOMECARE - SPOT,2102638160
06.03.2017,ADULT SOCIAL CARE,CARE DIRECT UK LTD,263.06,PHY LTS 65+,HOMECARE - SPOT,2102638153
06.03.2017,ADULT SOCIAL CARE,CARE DIRECT UK LTD,266.43,PHY LTS 65+,HOMECARE - SPOT,2102638020
06.03.2017,ADULT SOCIAL CARE,CARE DIRECT UK LTD,273.17,PHY LTS 65+,HOMECARE - SPOT,2102638157
06.03.2017,ADULT SOCIAL CARE,CARE DIRECT UK LTD,330.51,PHY LTS 65+,HOMECARE - SPOT,2102638024
06.03.2017,ADULT SOCIAL CARE,CARE DIRECT UK LTD,377.72,PHY LTS 65+,HOMECARE - SPOT,2102638195
06.03.2017,ADULT SOCIAL CARE,CARE DIRECT UK LTD,377.72,PHY LTS 65+,HOMECARE - SPOT,2102638199
06.03.2017,ADULT SOCIAL CARE,CARE DIRECT UK LTD,391.21,PHY LTS 65+,HOMECARE - SPOT,2102638177
06.03.2017,ADULT SOCIAL CARE,CARE DIRECT UK LTD,397.96,PHY LTS 65+,HOMECARE - SPOT,2102638166
06.03.2017,ADULT SOCIAL CARE,CARE DIRECT UK LTD,418.19,PHY LTS 65+,HOMECARE - SPOT,2102637983
06.03.2017,ADULT SOCIAL CARE,CARE DIRECT UK LTD,424.94,PHY LTS 65+,HOMECARE - SPOT,2102638014
06.03.2017,ADULT SOCIAL CARE,CARE DIRECT UK LTD,462.03,PHY LTS 65+,HOMECARE - SPOT,2102637995
06.03.2017,ADULT SOCIAL CARE,CARE DIRECT UK LTD,465.41,PHY LTS 65+,HOMECARE - SPOT,2102638176
06.03.2017,ADULT SOCIAL CARE,CARE DIRECT UK LTD,485.64,PHY LTS 65+,HOMECARE - SPOT,2102638023
06.03.2017,ADULT SOCIAL CARE,CARE DIRECT UK LTD,519.37,PHY LTS 65+,HOMECARE - SPOT,2102638043
06.03.2017,ADULT SOCIAL CARE,CARE DIRECT UK LTD,519.37,PHY LTS 65+,HOMECARE - SPOT,2102638152
06.03.2017,ADULT SOCIAL CARE,CARE DIRECT UK LTD,519.37,PHY LTS 65+,HOMECARE - SPOT,2102638184
06.03.2017,ADULT SOCIAL CARE,CARE DIRECT UK LTD,519.37,PHY LTS 65+,HOMECARE - SPOT,2102638191
06.03.2017,ADULT SOCIAL CARE,CARE DIRECT UK LTD,580.07,PHY LTS 65+,HOMECARE - SPOT,2102638159
06.03.2017,ADULT SOCIAL CARE,CARE DIRECT UK LTD,600.31,PHY LTS 65+,HOMECARE - SPOT,2102637997
06.03.2017,ADULT SOCIAL CARE,CARE DIRECT UK LTD,607.05,PHY LTS 65+,HOMECARE - SPOT,2102638173
06.03.2017,ADULT SOCIAL CARE,CARE DIRECT UK LTD,708.23,PHY LTS 65+,HOMECARE - SPOT,2102638025
06.03.2017,ADULT SOCIAL CARE,CARE DIRECT UK LTD,708.23,PHY LTS 65+,HOMECARE - SPOT,2102638046
06.03.2017,ADULT SOCIAL CARE,NORFOLK HOUSE,-529.44,PHY LTS 65+,"MAND STATUTORY CHARGES, RESIDENTIAL",2102597722
06.03.2017,ADULT SOCIAL CARE,NORFOLK HOUSE,-529.44,PHY LTS 65+,"MAND STATUTORY CHARGES, RESIDENTIAL",2102611241
06.03.2017,ADULT SOCIAL CARE,NORFOLK HOUSE,-529.44,PHY LTS 65+,"MAND STATUTORY CHARGES, RESIDENTIAL",2102620980
06.03.2017,ADULT SOCIAL CARE,NORFOLK HOUSE,-529.44,PHY LTS 65+,"MAND STATUTORY CHARGES, RESIDENTIAL",2102633198
06.03.2017,ADULT SOCIAL CARE,NORFOLK HOUSE,"2,056.52",PHY LTS 65+,RESIDENTIAL CARE,2102597723
06.03.2017,ADULT SOCIAL CARE,NORFOLK HOUSE,"2,056.52",PHY LTS 65+,RESIDENTIAL CARE,2102611242
06.03.2017,ADULT SOCIAL CARE,NORFOLK HOUSE,"2,056.52",PHY LTS 65+,RESIDENTIAL CARE,2102620981
06.03.2017,ADULT SOCIAL CARE,NORFOLK HOUSE,"2,056.52",PHY LTS 65+,RESIDENTIAL CARE,2102633199
06.03.2017,ADULT SOCIAL CARE,YOUTH GRACES (UK) LTD,543.06,PHY LTS 65+,HOMECARE - C&V,2102638060
06.03.2017,ADULT SOCIAL CARE,YOUTH GRACES (UK) LTD,276.59,PHY LTS 65+,HOMECARE - SPOT,2102638114
06.03.2017,ADULT SOCIAL CARE,YOUTH GRACES (UK) LTD,296.89,PHY LTS 65+,HOMECARE - SPOT,2102638084
06.03.2017,ADULT SOCIAL CARE,YOUTH GRACES (UK) LTD,330.68,PHY LTS 65+,HOMECARE - SPOT,2102638109
06.03.2017,ADULT SOCIAL CARE,YOUTH GRACES (UK) LTD,472.36,PHY LTS 65+,HOMECARE - SPOT,2102638065
06.03.2017,ADULT SOCIAL CARE,YOUTH GRACES (UK) LTD,492.46,PHY LTS 65+,HOMECARE - SPOT,2102638106
06.03.2017,ADULT SOCIAL CARE,YOUTH GRACES (UK) LTD,775.82,PHY LTS 65+,HOMECARE - SPOT,2102638141
06.03.2017,ADULT SOCIAL CARE,HEALTHCARE & TRANSPORT SERVICE,"30,177.80",PWLD DAY CARE (TRANSPORT),CAB FARES,5902239986
06.03.2017,ADULT SOCIAL CARE,BRANDON TRUST,"-5,198.12",PWLD RESPITE RESIDENTIAL,PLACEMENTS - RESPITE,2102638225
06.03.2017,ADULT SOCIAL CARE,BRANDON TRUST,"-4,428.00",PWLD RESPITE RESIDENTIAL,PLACEMENTS - RESPITE,2102638223
06.03.2017,ADULT SOCIAL CARE,BRANDON TRUST,"-3,728.12",PWLD RESPITE RESIDENTIAL,PLACEMENTS - RESPITE,2102638224
06.03.2017,ADULT SOCIAL CARE,BRANDON TRUST,"-3,171.18",PWLD RESPITE RESIDENTIAL,PLACEMENTS - RESPITE,2102638228
06.03.2017,ADULT SOCIAL CARE,BRANDON TRUST,"-3,114.00",PWLD RESPITE RESIDENTIAL,PLACEMENTS - RESPITE,2102638229
06.03.2017,ADULT SOCIAL CARE,BRANDON TRUST,"-2,049.36",PWLD RESPITE RESIDENTIAL,PLACEMENTS - RESPITE,2102638231
06.03.2017,ADULT SOCIAL CARE,BRANDON TRUST,"-1,557.00",PWLD RESPITE RESIDENTIAL,PLACEMENTS - RESPITE,2102638222
06.03.2017,ADULT SOCIAL CARE,BRANDON TRUST,"-1,557.00",PWLD RESPITE RESIDENTIAL,PLACEMENTS - RESPITE,2102638227
06.03.2017,ADULT SOCIAL CARE,BRANDON TRUST,"-1,543.12",PWLD RESPITE RESIDENTIAL,PLACEMENTS - RESPITE,2102638230
06.03.2017,ADULT SOCIAL CARE,BRANDON TRUST,"-1,505.00",PWLD RESPITE RESIDENTIAL,PLACEMENTS - RESPITE,2102638226
06.03.2017,ADULT SOCIAL CARE,BRANDON TRUST,645,PWLD RESPITE RESIDENTIAL,PLACEMENTS - RESPITE,2102638252
06.03.2017,ADULT SOCIAL CARE,BRANDON TRUST,879.06,PWLD RESPITE RESIDENTIAL,PLACEMENTS - RESPITE,2102638248
06.03.2017,ADULT SOCIAL CARE,BRANDON TRUST,"1,557.00",PWLD RESPITE RESIDENTIAL,PLACEMENTS - RESPITE,2102638237
06.03.2017,ADULT SOCIAL CARE,BRANDON TRUST,"1,562.18",PWLD RESPITE RESIDENTIAL,PLACEMENTS - RESPITE,2102638240
06.03.2017,ADULT SOCIAL CARE,BRANDON TRUST,"1,720.00",PWLD RESPITE RESIDENTIAL,PLACEMENTS - RESPITE,2102638241
06.03.2017,ADULT SOCIAL CARE,BRANDON TRUST,"1,758.12",PWLD RESPITE RESIDENTIAL,PLACEMENTS - RESPITE,2102638255
06.03.2017,ADULT SOCIAL CARE,BRANDON TRUST,"2,049.36",PWLD RESPITE RESIDENTIAL,PLACEMENTS - RESPITE,2102638249
06.03.2017,ADULT SOCIAL CARE,BRANDON TRUST,"2,049.36",PWLD RESPITE RESIDENTIAL,PLACEMENTS - RESPITE,2102638253
06.03.2017,ADULT SOCIAL CARE,BRANDON TRUST,"2,076.00",PWLD RESPITE RESIDENTIAL,PLACEMENTS - RESPITE,2102638233
06.03.2017,ADULT SOCIAL CARE,BRANDON TRUST,"2,365.00",PWLD RESPITE RESIDENTIAL,PLACEMENTS - RESPITE,2102638250
06.03.2017,ADULT SOCIAL CARE,BRANDON TRUST,"2,580.00",PWLD RESPITE RESIDENTIAL,PLACEMENTS - RESPITE,2102638254
06.03.2017,ADULT SOCIAL CARE,BRANDON TRUST,"2,795.00",PWLD RESPITE RESIDENTIAL,PLACEMENTS - RESPITE,2102638246
06.03.2017,ADULT SOCIAL CARE,BRANDON TRUST,"2,952.00",PWLD RESPITE RESIDENTIAL,PLACEMENTS - RESPITE,2102638242
06.03.2017,ADULT SOCIAL CARE,BRANDON TRUST,"3,114.00",PWLD RESPITE RESIDENTIAL,PLACEMENTS - RESPITE,2102638234
06.03.2017,ADULT SOCIAL CARE,BRANDON TRUST,"3,171.18",PWLD RESPITE RESIDENTIAL,PLACEMENTS - RESPITE,2102638245
06.03.2017,ADULT SOCIAL CARE,BRANDON TRUST,"3,377.48",PWLD RESPITE RESIDENTIAL,PLACEMENTS - RESPITE,2102638238
06.03.2017,ADULT SOCIAL CARE,BRANDON TRUST,"3,397.24",PWLD RESPITE RESIDENTIAL,PLACEMENTS - RESPITE,2102638243
06.03.2017,ADULT SOCIAL CARE,BRANDON TRUST,"4,085.00",PWLD RESPITE RESIDENTIAL,PLACEMENTS - RESPITE,2102638256
06.03.2017,ADULT SOCIAL CARE,BRANDON TRUST,"4,300.00",PWLD RESPITE RESIDENTIAL,PLACEMENTS - RESPITE,2102638239
06.03.2017,ADULT SOCIAL CARE,BRANDON TRUST,"4,542.36",PWLD RESPITE RESIDENTIAL,PLACEMENTS - RESPITE,2102638247
06.03.2017,ADULT SOCIAL CARE,BRANDON TRUST,"4,671.00",PWLD RESPITE RESIDENTIAL,PLACEMENTS - RESPITE,2102638232
06.03.2017,ADULT SOCIAL CARE,BRANDON TRUST,"4,671.00",PWLD RESPITE RESIDENTIAL,PLACEMENTS - RESPITE,2102638251
06.03.2017,ADULT SOCIAL CARE,BRANDON TRUST,"4,797.00",PWLD RESPITE RESIDENTIAL,PLACEMENTS - RESPITE,2102638235
06.03.2017,ADULT SOCIAL CARE,BRANDON TRUST,"7,785.00",PWLD RESPITE RESIDENTIAL,PLACEMENTS - RESPITE,2102638236
06.03.2017,ADULT SOCIAL CARE,MEDACS HOMECARE,839.92,REABLEMENT SERVICE,HOMECARE - C&V,5902240063
06.03.2017,ADULT SOCIAL CARE,MEDACS HOMECARE,"61,641.69",REABLEMENT SERVICE,HOMECARE - C&V,5902240067
06.03.2017,ASSET MANAGEMENT,SALTASH ENTERPRISES LTD,"2,688.73",DISREPAIR,BUILDING R&M,2102638526
06.03.2017,ASSET MANAGEMENT,SCCI ALPHATRACK LTD,"51,994.17",DOOR ENTRY PROGRAMME,BUILDING R&M,5902239967
06.03.2017,CENTRAL FUNCTIONS,STANBURY BUILDING SERVICES LTD,"4,895.00",COMMERCIAL PROPERTIES,BUILDING R&M,2102638530
06.03.2017,CENTRAL FUNCTIONS,VEOLIA ES (UK)LTD,"2,855.04",HEATING ACCOUNT,GAS,5902240035
06.03.2017,CENTRAL FUNCTIONS,VEOLIA ES (UK)LTD,"158,654.47",HEATING ACCOUNT,GAS,5902240028
06.03.2017,CHIEF EXECUTIVE'S OFFICE,IDEAS MADE DIGITAL LTD,"1,496.95",YOUTH FUND EMPLOYMENT,GRANTS,2102638478
06.03.2017,CHIEF EXECUTIVE'S OFFICE,IDEAS MADE DIGITAL LTD,"1,732.79",YOUTH FUND EMPLOYMENT,GRANTS,2102638480
06.03.2017,CHIEF EXECUTIVE'S OFFICE,THEATRE PECKHAM,"1,833.00",YOUTH FUND EMPLOYMENT,GRANTS,2102638479
06.03.2017,CHILDREN AND ADULT,MORGAN SINDALL PLC,"290,304.50",CAPITAL PS (EDUCATION),CONSTRUCTION MAIN CONTRACT -CERTIFICATED,2102638524
06.03.2017,CHILDREN AND ADULT,THE ADAMS LOXTON PARTNERSHIP LTD,"1,779.00",CAPITAL PS (EDUCATION),CONSTRUCTION,5902239945
06.03.2017,CHILDREN AND ADULT,THE ADAMS LOXTON PARTNERSHIP LTD,"2,377.00",CAPITAL PS (EDUCATION),CONSTRUCTION,5902239943
06.03.2017,CHILDREN AND ADULT,ROBERT BROWNING PRIMARY SCHOOL,"12,261.89",CAPITAL PS (EDUCATION),CONST'N MAIN CONTRACT - NON CERTIFICATED,5902240042
06.03.2017,CHILDREN AND ADULT,ROTHERHITHE PRIMARY SCHOOL,"23,861.46",CAPITAL PS (EDUCATION),CONSTRUCTION,5902240087
06.03.2017,CHILDREN AND ADULT,HUNTERS THE FUNITURE COMPANY,"3,925.55",CAPITAL PS (SOC SERV),FURNITURE & FITTINGS ACQUISITION,5902240050
06.03.2017,CHILDREN AND ADULT,CORELOGIC LTD,"11,000.00",CAPITAL PS (STRAT SERV),ICT ACQUISITION FEES,5902239960
06.03.2017,CHILDREN AND ADULT,CORELOGIC LTD,"11,500.00",CAPITAL PS (STRAT SERV),ICT ACQUISITION FEES,5902239991
06.03.2017,CHILDREN AND ADULT,CORELOGIC LTD,"12,000.00",CAPITAL PS (STRAT SERV),ICT ACQUISITION FEES,5902239959
06.03.2017,CHILDREN'S SERVICES,ANCHOR FOSTERCARE,"2,952.32",AGENCY FOSTERING,EXTERNAL AGENCIES AND BODIES,2102637853
06.03.2017,CHILDREN'S SERVICES,ANCHOR FOSTERCARE,"2,952.32",AGENCY FOSTERING,EXTERNAL AGENCIES AND BODIES,2102637906
06.03.2017,CHILDREN'S SERVICES,ANCHOR FOSTERCARE,"3,431.96",AGENCY FOSTERING,EXTERNAL AGENCIES AND BODIES,2102637879
06.03.2017,CHILDREN'S SERVICES,ASCENT FOSTERING AGENCY LTD,"5,139.96",AGENCY FOSTERING,EXTERNAL AGENCIES AND BODIES,2102637919
06.03.2017,CHILDREN'S SERVICES,BY THE BRIDGE LTD,"3,810.28",AGENCY FOSTERING,EXTERNAL AGENCIES AND BODIES,2102637894
06.03.2017,CHILDREN'S SERVICES,BY THE BRIDGE LTD,"3,926.40",AGENCY FOSTERING,EXTERNAL AGENCIES AND BODIES,2102637842
06.03.2017,CHILDREN'S SERVICES,BY THE BRIDGE LTD,"4,010.84",AGENCY FOSTERING,EXTERNAL AGENCIES AND BODIES,2102637891
06.03.2017,CHILDREN'S SERVICES,BY THE BRIDGE LTD,"4,010.84",AGENCY FOSTERING,EXTERNAL AGENCIES AND BODIES,2102637893
06.03.2017,CHILDREN'S SERVICES,BY THE BRIDGE LTD,"4,137.48",AGENCY FOSTERING,EXTERNAL AGENCIES AND BODIES,2102637861
06.03.2017,CHILDREN'S SERVICES,BY THE BRIDGE LTD,"4,137.48",AGENCY FOSTERING,EXTERNAL AGENCIES AND BODIES,2102637882
06.03.2017,CHILDREN'S SERVICES,BY THE BRIDGE LTD,"4,137.48",AGENCY FOSTERING,EXTERNAL AGENCIES AND BODIES,2102637901
06.03.2017,CHILDREN'S SERVICES,BY THE BRIDGE LTD,"4,221.92",AGENCY FOSTERING,EXTERNAL AGENCIES AND BODIES,2102637876
06.03.2017,CHILDREN'S SERVICES,BY THE BRIDGE LTD,"4,340.44",AGENCY FOSTERING,EXTERNAL AGENCIES AND BODIES,2102637878
06.03.2017,CHILDREN'S SERVICES,BY THE BRIDGE LTD,"4,340.44",AGENCY FOSTERING,EXTERNAL AGENCIES AND BODIES,2102637914
06.03.2017,CHILDREN'S SERVICES,BY THE BRIDGE LTD,"4,429.00",AGENCY FOSTERING,EXTERNAL AGENCIES AND BODIES,2102637840
06.03.2017,CHILDREN'S SERVICES,BY THE BRIDGE LTD,"5,200.00",AGENCY FOSTERING,EXTERNAL AGENCIES AND BODIES,2102637849
06.03.2017,CHILDREN'S SERVICES,BY THE BRIDGE LTD,"5,628.00",AGENCY FOSTERING,EXTERNAL AGENCIES AND BODIES,2102637857
06.03.2017,CHILDREN'S SERVICES,CHILDREN FIRST FOSTERING AGENCY LTD,"3,500.00",AGENCY FOSTERING,EXTERNAL AGENCIES AND BODIES,2102637848
06.03.2017,CHILDREN'S SERVICES,CHILDREN FIRST FOSTERING AGENCY LTD,"3,596.04",AGENCY FOSTERING,EXTERNAL AGENCIES AND BODIES,2102637843
06.03.2017,CHILDREN'S SERVICES,CHILDREN OF ALL NATIONS LTD,"3,710.84",AGENCY FOSTERING,EXTERNAL AGENCIES AND BODIES,2102637867
06.03.2017,CHILDREN'S SERVICES,CHILDREN OF ALL NATIONS LTD,"3,710.84",AGENCY FOSTERING,EXTERNAL AGENCIES AND BODIES,2102637874
06.03.2017,CHILDREN'S SERVICES,CHILDREN OF ALL NATIONS LTD,"4,123.40",AGENCY FOSTERING,EXTERNAL AGENCIES AND BODIES,2102637892
06.03.2017,CHILDREN'S SERVICES,CHILDREN OF COLOUR,"3,136.00",AGENCY FOSTERING,EXTERNAL AGENCIES AND BODIES,2102637841
06.03.2017,CHILDREN'S SERVICES,CHILDREN OF COLOUR,"3,136.00",AGENCY FOSTERING,EXTERNAL AGENCIES AND BODIES,2102637886
06.03.2017,CHILDREN'S SERVICES,CHILDREN OF COLOUR,"3,214.40",AGENCY FOSTERING,EXTERNAL AGENCIES AND BODIES,2102637918
06.03.2017,CHILDREN'S SERVICES,CHILDREN OF COLOUR,"3,840.00",AGENCY FOSTERING,EXTERNAL AGENCIES AND BODIES,2102637856
06.03.2017,CHILDREN'S SERVICES,CHILDREN OF COLOUR,"4,400.00",AGENCY FOSTERING,EXTERNAL AGENCIES AND BODIES,2102637896
06.03.2017,CHILDREN'S SERVICES,CHRYSALIS CARE,"3,697.99",AGENCY FOSTERING,EXTERNAL AGENCIES AND BODIES,2102637765
06.03.2017,CHILDREN'S SERVICES,CHRYSALIS CARE,"4,079.49",AGENCY FOSTERING,EXTERNAL AGENCIES AND BODIES,2102638411
06.03.2017,CHILDREN'S SERVICES,COMPASS FOSTERING SOUTH LTD,"2,780.12",AGENCY FOSTERING,EXTERNAL AGENCIES AND BODIES,2102637880
06.03.2017,CHILDREN'S SERVICES,CROHAM SERVICES FOR CHILDREN,"2,609.60",AGENCY FOSTERING,EXTERNAL AGENCIES AND BODIES,2102637854
06.03.2017,CHILDREN'S SERVICES,CROHAM SERVICES FOR CHILDREN,"2,609.60",AGENCY FOSTERING,EXTERNAL AGENCIES AND BODIES,2102637858
06.03.2017,CHILDREN'S SERVICES,CROHAM SERVICES FOR CHILDREN,"2,609.60",AGENCY FOSTERING,EXTERNAL AGENCIES AND BODIES,2102637873
06.03.2017,CHILDREN'S SERVICES,DIAGRAMA FOUNDATION CHILDREN SERVICES,"3,464.00",AGENCY FOSTERING,EXTERNAL AGENCIES AND BODIES,2102637847
06.03.2017,CHILDREN'S SERVICES,DIVERSE CARE (UK) LTD,"4,055.52",AGENCY FOSTERING,EXTERNAL AGENCIES AND BODIES,2102637868
06.03.2017,CHILDREN'S SERVICES,ETHELBERT SPECIALIST HOMES,"3,322.16",AGENCY FOSTERING,EXTERNAL AGENCIES AND BODIES,2102637859
06.03.2017,CHILDREN'S SERVICES,ETHELBERT SPECIALIST HOMES,"3,322.16",AGENCY FOSTERING,EXTERNAL AGENCIES AND BODIES,2102637866
06.03.2017,CHILDREN'S SERVICES,ETHELBERT SPECIALIST HOMES,"3,322.16",AGENCY FOSTERING,EXTERNAL AGENCIES AND BODIES,2102637885
06.03.2017,CHILDREN'S SERVICES,FAMILY FOSTERING LTD,"3,208.24",AGENCY FOSTERING,EXTERNAL AGENCIES AND BODIES,2102637884
06.03.2017,CHILDREN'S SERVICES,FAMILY FOSTERING LTD,"3,208.24",AGENCY FOSTERING,EXTERNAL AGENCIES AND BODIES,2102637916
06.03.2017,CHILDREN'S SERVICES,FITZGERALD FOSTERING & CONSULTANCY,"3,120.00",AGENCY FOSTERING,EXTERNAL AGENCIES AND BODIES,2102637869
06.03.2017,CHILDREN'S SERVICES,FITZGERALD FOSTERING & CONSULTANCY,"3,120.00",AGENCY FOSTERING,EXTERNAL AGENCIES AND BODIES,2102637895
06.03.2017,CHILDREN'S SERVICES,FOSTERING SUPPORT GROUP LTD,"4,799.76",AGENCY FOSTERING,EXTERNAL AGENCIES AND BODIES,2102637875
06.03.2017,CHILDREN'S SERVICES,INTEGRATED SERVICES PROGRAMME,"4,675.44",AGENCY FOSTERING,EXTERNAL AGENCIES AND BODIES,2102637863
06.03.2017,CHILDREN'S SERVICES,INTEGRATED SERVICES PROGRAMME,"4,675.44",AGENCY FOSTERING,EXTERNAL AGENCIES AND BODIES,2102637913
06.03.2017,CHILDREN'S SERVICES,INTEGRATED SERVICES PROGRAMME,"4,819.92",AGENCY FOSTERING,EXTERNAL AGENCIES AND BODIES,2102637846
06.03.2017,CHILDREN'S SERVICES,INTEGRATED SERVICES PROGRAMME,"4,819.92",AGENCY FOSTERING,EXTERNAL AGENCIES AND BODIES,2102637851
06.03.2017,CHILDREN'S SERVICES,INTEGRATED SERVICES PROGRAMME,"4,819.92",AGENCY FOSTERING,EXTERNAL AGENCIES AND BODIES,2102637852
06.03.2017,CHILDREN'S SERVICES,INTEGRATED SERVICES PROGRAMME,"4,819.92",AGENCY FOSTERING,EXTERNAL AGENCIES AND BODIES,2102637871
06.03.2017,CHILDREN'S SERVICES,INTEGRATED SERVICES PROGRAMME,"4,819.92",AGENCY FOSTERING,EXTERNAL AGENCIES AND BODIES,2102637889
06.03.2017,CHILDREN'S SERVICES,INTEGRATED SERVICES PROGRAMME,"4,819.92",AGENCY FOSTERING,EXTERNAL AGENCIES AND BODIES,2102637900
06.03.2017,CHILDREN'S SERVICES,INTEGRATED SERVICES PROGRAMME,"4,819.92",AGENCY FOSTERING,EXTERNAL AGENCIES AND BODIES,2102637911
06.03.2017,CHILDREN'S SERVICES,KINDERCARE FOSTERING,"2,999.92",AGENCY FOSTERING,EXTERNAL AGENCIES AND BODIES,2102637883
06.03.2017,CHILDREN'S SERVICES,KINDERCARE FOSTERING,"3,179.96",AGENCY FOSTERING,EXTERNAL AGENCIES AND BODIES,2102637905
06.03.2017,CHILDREN'S SERVICES,KINDERCARE FOSTERING,"4,707.92",AGENCY FOSTERING,EXTERNAL AGENCIES AND BODIES,2102637860
06.03.2017,CHILDREN'S SERVICES,MILES PRIVATE HIRE LTD,"1,080.00",AGENCY FOSTERING,OTHER PAYMENTS FOR CLIENTS,5902239985
06.03.2017,CHILDREN'S SERVICES,MOMENTS FOSTERING LTD,"2,935.80",AGENCY FOSTERING,EXTERNAL AGENCIES AND BODIES,2102637865
06.03.2017,CHILDREN'S SERVICES,MOMENTS FOSTERING LTD,"2,935.80",AGENCY FOSTERING,EXTERNAL AGENCIES AND BODIES,2102637920
06.03.2017,CHILDREN'S SERVICES,MOMENTS FOSTERING LTD,"4,999.96",AGENCY FOSTERING,EXTERNAL AGENCIES AND BODIES,2102637907
06.03.2017,CHILDREN'S SERVICES,MOSAIC FOSTER CARE LTD,"5,999.84",AGENCY FOSTERING,EXTERNAL AGENCIES AND BODIES,2102637890
06.03.2017,CHILDREN'S SERVICES,NATIONAL FOSTERING AGENCY,"-4,179.84",AGENCY FOSTERING,EXTERNAL AGENCIES AND BODIES,5902240002
06.03.2017,CHILDREN'S SERVICES,NATIONAL FOSTERING AGENCY,"-3,979.92",AGENCY FOSTERING,EXTERNAL AGENCIES AND BODIES,5902240002
06.03.2017,CHILDREN'S SERVICES,NATIONAL FOSTERING AGENCY,"-3,979.92",AGENCY FOSTERING,EXTERNAL AGENCIES AND BODIES,5902240002
06.03.2017,CHILDREN'S SERVICES,NATIONAL FOSTERING AGENCY,"-2,236.20",AGENCY FOSTERING,EXTERNAL AGENCIES AND BODIES,5902240002
06.03.2017,CHILDREN'S SERVICES,NATIONAL FOSTERING AGENCY,"3,979.92",AGENCY FOSTERING,EXTERNAL AGENCIES AND BODIES,2102637862
06.03.2017,CHILDREN'S SERVICES,NATIONAL FOSTERING AGENCY,"3,979.92",AGENCY FOSTERING,EXTERNAL AGENCIES AND BODIES,2102637877
06.03.2017,CHILDREN'S SERVICES,NATIONAL FOSTERING AGENCY,"3,979.92",AGENCY FOSTERING,EXTERNAL AGENCIES AND BODIES,2102637887
06.03.2017,CHILDREN'S SERVICES,NATIONAL FOSTERING AGENCY,"3,979.92",AGENCY FOSTERING,EXTERNAL AGENCIES AND BODIES,2102637897
06.03.2017,CHILDREN'S SERVICES,NATIONAL FOSTERING AGENCY,"3,979.92",AGENCY FOSTERING,EXTERNAL AGENCIES AND BODIES,2102637898
06.03.2017,CHILDREN'S SERVICES,NATIONAL FOSTERING AGENCY,"3,979.92",AGENCY FOSTERING,EXTERNAL AGENCIES AND BODIES,2102637908
06.03.2017,CHILDREN'S SERVICES,NATIONAL FOSTERING AGENCY,"3,979.92",AGENCY FOSTERING,EXTERNAL AGENCIES AND BODIES,2102637909
06.03.2017,CHILDREN'S SERVICES,ORANGE GROVE FOSTERCARE LTD,"3,319.96",AGENCY FOSTERING,EXTERNAL AGENCIES AND BODIES,2102637850
06.03.2017,CHILDREN'S SERVICES,ORANGE GROVE FOSTERCARE LTD,"3,319.96",AGENCY FOSTERING,EXTERNAL AGENCIES AND BODIES,2102637910
06.03.2017,CHILDREN'S SERVICES,PARENT AND CHILD FOSTERING ASSESSMENTS,"4,800.00",AGENCY FOSTERING,EXTERNAL AGENCIES AND BODIES,5902239939
06.03.2017,CHILDREN'S SERVICES,RAINBOW FOSTERING SERVICES LTD,"3,377.76",AGENCY FOSTERING,EXTERNAL AGENCIES AND BODIES,2102637872
06.03.2017,CHILDREN'S SERVICES,RAINBOW FOSTERING SERVICES LTD,"3,377.76",AGENCY FOSTERING,EXTERNAL AGENCIES AND BODIES,2102637912
06.03.2017,CHILDREN'S SERVICES,SANKOFA CARE LTD,"3,245.48",AGENCY FOSTERING,EXTERNAL AGENCIES AND BODIES,2102637902
06.03.2017,CHILDREN'S SERVICES,SANKOFA CARE LTD,"3,549.56",AGENCY FOSTERING,EXTERNAL AGENCIES AND BODIES,2102637904
06.03.2017,CHILDREN'S SERVICES,SUPPORTED FOSTERING SERVICES,"2,916.00",AGENCY FOSTERING,EXTERNAL AGENCIES AND BODIES,2102637864
06.03.2017,CHILDREN'S SERVICES,SUPPORTED FOSTERING SERVICES,"3,124.29",AGENCY FOSTERING,EXTERNAL AGENCIES AND BODIES,2102637844
06.03.2017,CHILDREN'S SERVICES,SUPPORTED FOSTERING SERVICES,"5,084.40",AGENCY FOSTERING,EXTERNAL AGENCIES AND BODIES,2102637915
06.03.2017,CHILDREN'S SERVICES,SWIIS FOSTER CARE LTD,697.97,AGENCY FOSTERING,EXTERNAL AGENCIES AND BODIES,2102637855
06.03.2017,CHILDREN'S SERVICES,SWIIS FOSTER CARE LTD,697.97,AGENCY FOSTERING,EXTERNAL AGENCIES AND BODIES,2102637888
06.03.2017,CHILDREN'S SERVICES,TIME FOR CHILDREN LTD,"2,772.00",AGENCY FOSTERING,EXTERNAL AGENCIES AND BODIES,2102637845
06.03.2017,CHILDREN'S SERVICES,TIME FOR CHILDREN LTD,"2,800.00",AGENCY FOSTERING,EXTERNAL AGENCIES AND BODIES,2102637917
06.03.2017,CHILDREN'S SERVICES,WELCOME FOSTER CARE LTD,"3,400.04",AGENCY FOSTERING,EXTERNAL AGENCIES AND BODIES,2102637881
06.03.2017,CHILDREN'S SERVICES,WELCOME FOSTER CARE LTD,"3,400.04",AGENCY FOSTERING,EXTERNAL AGENCIES AND BODIES,2102637903
06.03.2017,CHILDREN'S SERVICES,YOUNG PEOPLE AT HEART LTD,"2,800.00",AGENCY FOSTERING,EXTERNAL AGENCIES AND BODIES,2102637870
06.03.2017,CHILDREN'S SERVICES,YOUNG PEOPLE AT HEART LTD,"2,800.00",AGENCY FOSTERING,EXTERNAL AGENCIES AND BODIES,2102637899
06.03.2017,CHILDREN'S SERVICES,YOUNG FUTURES,-815.92,FAMILY ASSESSMENTS,RESIDENTIAL CARE,2102637776
06.03.2017,CHILDREN'S SERVICES,YOUNG FUTURES,"2,520.00",FAMILY ASSESSMENTS,RESIDENTIAL CARE,2102637777
06.03.2017,CHILDREN'S SERVICES,YVONNE WILSON LTD,"2,517.90",FAMILY ASSESSMENTS,RESIDENTIAL CARE,5902238318
06.03.2017,CHILDREN'S SERVICES,PHOENIXPLACE,"4,416.00",FE & SIXTH FORM COLLEGES,STATEMENTED FEES,2102633424
06.03.2017,CHILDREN'S SERVICES,CARE O LINE,426.54,HOME 2 SCHOOL TRANSPORT,AGENCY STAFF,5902240058
06.03.2017,CHILDREN'S SERVICES,CARE O LINE,565.96,HOME 2 SCHOOL TRANSPORT,AGENCY STAFF,5902240049
06.03.2017,CHILDREN'S SERVICES,CARE O LINE,568.72,HOME 2 SCHOOL TRANSPORT,AGENCY STAFF,5902240051
06.03.2017,CHILDREN'S SERVICES,CARE O LINE,568.72,HOME 2 SCHOOL TRANSPORT,AGENCY STAFF,5902240057
06.03.2017,CHILDREN'S SERVICES,CARE O LINE,710.9,HOME 2 SCHOOL TRANSPORT,AGENCY STAFF,5902240054
06.03.2017,CHILDREN'S SERVICES,CARE O LINE,964.71,HOME 2 SCHOOL TRANSPORT,AGENCY STAFF,5902240048
06.03.2017,CHILDREN'S SERVICES,INTERSERVE HEALTHCARE,320.7,HOME 2 SCHOOL TRANSPORT,AGENCY STAFF,5902239323
06.03.2017,CHILDREN'S SERVICES,TUKE SCHOOL,"3,100.00",HOME 2 SCHOOL TRANSPORT,EXTERNAL AGENCIES AND BODIES,5902239924
06.03.2017,CHILDREN'S SERVICES,REDACTED PERSONAL DATA,500,LEAVING CARE GRANT,OTHER PAYMENTS FOR CLIENTS,5902240003
06.03.2017,CHILDREN'S SERVICES,1ST PLACE CHILDREN & PARENTS CENTRE,540,NURSERY ED GRANT 2 Y Y O,GRANTS,2102638455
06.03.2017,CHILDREN'S SERVICES,BEORMUND COMMUNITY CENTRE,"1,620.00",NURSERY ED GRANT 2 Y Y O,GRANTS,2102638468
06.03.2017,CHILDREN'S SERVICES,CREATIVE MINDS CARE AND EDUCATION,"1,134.00",NURSERY ED GRANT 2 Y Y O,GRANTS,2102638460
06.03.2017,CHILDREN'S SERVICES,EAST DULWICH COMMUNITY NURSERY ASSOCIATION,594,NURSERY ED GRANT 2 Y Y O,GRANTS,2102638465
06.03.2017,CHILDREN'S SERVICES,FOUNTAIN CHILDRENS CENTRE LIMITED,630,NURSERY ED GRANT 2 Y Y O,GRANTS,2102638466
06.03.2017,CHILDREN'S SERVICES,HAVILAH DAY CARE NURSERY,720,NURSERY ED GRANT 2 Y Y O,GRANTS,2102638467
06.03.2017,CHILDREN'S SERVICES,K & O CHILDCARE LTD,"2,466.00",NURSERY ED GRANT 2 Y Y O,GRANTS,2102638470
06.03.2017,CHILDREN'S SERVICES,LONDON EARLY YEARS FOUNDATION,"9,090.00",NURSERY ED GRANT 2 Y Y O,GRANTS,2102638449
06.03.2017,CHILDREN'S SERVICES,MINI TREASURES NURSERY,"4,860.00",NURSERY ED GRANT 2 Y Y O,GRANTS,2102638453
06.03.2017,CHILDREN'S SERVICES,NEW VISION DAY NURSERY,"1,080.00",NURSERY ED GRANT 2 Y Y O,GRANTS,2102638473
06.03.2017,CHILDREN'S SERVICES,NICKI DAY NURSERY LTD,900,NURSERY ED GRANT 2 Y Y O,GRANTS,2102638474
06.03.2017,CHILDREN'S SERVICES,SANDRA LITCHMORE,"9,540.00",NURSERY ED GRANT 2 Y Y O,GRANTS,2102638452
06.03.2017,CHILDREN'S SERVICES,THE CHERRY TREE MONTESSORI NURSERY,720,NURSERY ED GRANT 2 Y Y O,GRANTS,2102638459
06.03.2017,CHILDREN'S SERVICES,DULWICH OAKS MONTESSORI NURSERY SCHOOL,810,NURSERY ED GRANT 2 Y Y O,GRANTS,2102638461
06.03.2017,CHILDREN'S SERVICES,TADWORTH PRE-SCHOOL,540,NURSERY ED GRANT 2 Y Y O,GRANTS,2102638476
06.03.2017,CHILDREN'S SERVICES,ARC COMMUNITY TRUSTEES,378,NURSURERY EDUCATION GRANT-3 Y.O.,GRANTS,2102638457
06.03.2017,CHILDREN'S SERVICES,BASCULE LTD,504,NURSURERY EDUCATION GRANT-3 Y.O.,GRANTS,2102638469
06.03.2017,CHILDREN'S SERVICES,BRIGHT HORIZONS FAMILY SOLUTIONS,378,NURSURERY EDUCATION GRANT-3 Y.O.,GRANTS,2102638458
06.03.2017,CHILDREN'S SERVICES,EAGLES FLIGHT MONTESSORI NURSERY,"1,161.00",NURSURERY EDUCATION GRANT-3 Y.O.,GRANTS,2102638464
06.03.2017,CHILDREN'S SERVICES,LONDON EARLY YEARS FOUNDATION,"5,462.40",NURSURERY EDUCATION GRANT-3 Y.O.,GRANTS,2102638448
06.03.2017,CHILDREN'S SERVICES,LONDON EARLY YEARS FOUNDATION,"3,475.20",NURSURERY EDUCATION GRANT-3 Y.O.,GRANTS,2102638451
06.03.2017,CHILDREN'S SERVICES,S R C COMMUNITY NURSERY,"2,268.00",NURSURERY EDUCATION GRANT-3 Y.O.,GRANTS,2102638475
06.03.2017,CHILDREN'S SERVICES,SUCCESS ASSOCIATES,504,NURSURERY EDUCATION GRANT-3 Y.O.,GRANTS,2102638471
06.03.2017,CHILDREN'S SERVICES,WUSINATU BANGURA,378,NURSURERY EDUCATION GRANT-3 Y.O.,GRANTS,2102638477
06.03.2017,CHILDREN'S SERVICES,DULWICH VILLAGE PRE-SCHOOL,315,NURSURERY EDUCATION GRANT-3 Y.O.,GRANTS,2102638462
06.03.2017,CHILDREN'S SERVICES,DYASON PRE-SCHOOL,378,NURSURERY EDUCATION GRANT-3 Y.O.,GRANTS,2102638463
06.03.2017,CHILDREN'S SERVICES,KEYWORTH PRIMARY SCHOOL,"3,000.00",PRIMARY ACHIEVEMENT,PROFESSIONAL FEES,5902239995
06.03.2017,CHILDREN'S SERVICES,ST JUDES CHURCH OF ENGLAND PRIMARY,"3,000.00",PRIMARY ACHIEVEMENT,PROFESSIONAL FEES,5902239989
06.03.2017,CHILDREN'S SERVICES,KINTORE WAY CHILDRENS CENTRE,"7,242.45",PUPIL PREMIUM,"SCHOOLS CAPITATION, STANDARDS FUND",5902240074
06.03.2017,CHILDREN'S SERVICES,ILDERTON PRIMARY SCHOOL,"8,600.00",RECEPTION BASELINE ASSESSMENT,SCHOOLS CAPITATION,5902240073
06.03.2017,CHILDREN'S SERVICES,AFTERCARE (NW) LTD,"13,200.00",RESIDENTIAL,RESIDENTIAL CARE,2102637825
06.03.2017,CHILDREN'S SERVICES,AMEGREEN CHILDRENS SERVICES LTD,"9,600.00",RESIDENTIAL,RESIDENTIAL CARE,2102637819
06.03.2017,CHILDREN'S SERVICES,AMEGREEN CHILDRENS SERVICES LTD,"10,000.00",RESIDENTIAL,RESIDENTIAL CARE,2102637815
06.03.2017,CHILDREN'S SERVICES,ARNFIELD CARE LTD,"15,615.88",RESIDENTIAL,RESIDENTIAL CARE,2102637812
06.03.2017,CHILDREN'S SERVICES,CASTLE HOMES LIMITED,"14,113.00",RESIDENTIAL,RESIDENTIAL CARE,2102637837
06.03.2017,CHILDREN'S SERVICES,CASTLE HOMES LIMITED,"15,200.00",RESIDENTIAL,RESIDENTIAL CARE,2102637828
06.03.2017,CHILDREN'S SERVICES,CASTLE HOMES LIMITED,"15,255.04",RESIDENTIAL,RESIDENTIAL CARE,2102637817
06.03.2017,CHILDREN'S SERVICES,CASTLE HOMES LIMITED,"15,909.88",RESIDENTIAL,RESIDENTIAL CARE,2102637821
06.03.2017,CHILDREN'S SERVICES,CASTLE HOMES LIMITED,"16,828.57",RESIDENTIAL,RESIDENTIAL CARE,2102637827
06.03.2017,CHILDREN'S SERVICES,CASTLE HOMES LIMITED,"22,428.68",RESIDENTIAL,RESIDENTIAL CARE,2102637822
06.03.2017,CHILDREN'S SERVICES,CASTLE HOMES LIMITED,"24,831.75",RESIDENTIAL,RESIDENTIAL CARE,2102637795
06.03.2017,CHILDREN'S SERVICES,CHILDHOOD FIRST,"17,200.00",RESIDENTIAL,RESIDENTIAL CARE,2102637813
06.03.2017,CHILDREN'S SERVICES,CHILDHOOD FIRST,"18,208.00",RESIDENTIAL,RESIDENTIAL CARE,2102637823
06.03.2017,CHILDREN'S SERVICES,CHILDHOOD FIRST,"19,572.00",RESIDENTIAL,RESIDENTIAL CARE,2102637838
06.03.2017,CHILDREN'S SERVICES,CHILDHOOD FIRST,"21,808.00",RESIDENTIAL,RESIDENTIAL CARE,2102637834
06.03.2017,CHILDREN'S SERVICES,CREATING CARE CHOICES LTD,"1,000.00",RESIDENTIAL,RESIDENTIAL CARE,5902239988
06.03.2017,CHILDREN'S SERVICES,CREATING CARE CHOICES LTD,"16,800.00",RESIDENTIAL,RESIDENTIAL CARE,2102637814
06.03.2017,CHILDREN'S SERVICES,DIRECT CARE LIMITED,"9,714.20",RESIDENTIAL,RESIDENTIAL CARE,2102637801
06.03.2017,CHILDREN'S SERVICES,ETHELBERT SPECIALIST HOMES,"10,844.64",RESIDENTIAL,RESIDENTIAL CARE,2102637833
06.03.2017,CHILDREN'S SERVICES,ETHELBERT SPECIALIST HOMES,"13,555.80",RESIDENTIAL,RESIDENTIAL CARE,2102637820
06.03.2017,CHILDREN'S SERVICES,FOOTSTEPS CARE LTD,"13,074.32",RESIDENTIAL,RESIDENTIAL CARE,2102637794
06.03.2017,CHILDREN'S SERVICES,FOOTSTEPS CARE LTD,"15,726.96",RESIDENTIAL,RESIDENTIAL CARE,2102637807
06.03.2017,CHILDREN'S SERVICES,HILLCREST CHILDRENS SERVICES LTD,"14,840.00",RESIDENTIAL,RESIDENTIAL CARE,2102637796
06.03.2017,CHILDREN'S SERVICES,HILLCREST CHILDRENS SERVICES LTD,"14,840.00",RESIDENTIAL,RESIDENTIAL CARE,2102637824
06.03.2017,CHILDREN'S SERVICES,INMIND CHILDRENS SERVICES LTD,"21,999.88",RESIDENTIAL,RESIDENTIAL CARE,2102637800
06.03.2017,CHILDREN'S SERVICES,INMIND CHILDRENS SERVICES LTD,"23,959.88",RESIDENTIAL,RESIDENTIAL CARE,2102637816
06.03.2017,CHILDREN'S SERVICES,LIONCARE LIMITED,"14,264.00",RESIDENTIAL,RESIDENTIAL CARE,2102637829
06.03.2017,CHILDREN'S SERVICES,MEADOWS CARE LTD,"17,980.00",RESIDENTIAL,RESIDENTIAL CARE,2102637839
06.03.2017,CHILDREN'S SERVICES,NEW HORIZONS CHILD CARE LTD,"-2,080.00",RESIDENTIAL,RESIDENTIAL CARE,2102637803
06.03.2017,CHILDREN'S SERVICES,NEW HORIZONS CHILD CARE LTD,"14,000.00",RESIDENTIAL,RESIDENTIAL CARE,2102637832
06.03.2017,CHILDREN'S SERVICES,NEW HORIZONS CHILD CARE LTD,"15,599.92",RESIDENTIAL,RESIDENTIAL CARE,2102637809
06.03.2017,CHILDREN'S SERVICES,NEW HORIZONS CHILD CARE LTD,"34,800.08",RESIDENTIAL,RESIDENTIAL CARE,2102637830
06.03.2017,CHILDREN'S SERVICES,NORTH LAKES CHILDRENS SERVICES,"8,054.76",RESIDENTIAL,RESIDENTIAL CARE,2102637818
06.03.2017,CHILDREN'S SERVICES,NORTH LAKES CHILDRENS SERVICES,"8,821.96",RESIDENTIAL,RESIDENTIAL CARE,2102637805
06.03.2017,CHILDREN'S SERVICES,OPTIONS COLLEGE SHIFNAL (BESD),"17,600.00",RESIDENTIAL,RESIDENTIAL CARE,2102637826
06.03.2017,CHILDREN'S SERVICES,PLUS ONE LTD,"13,926.40",RESIDENTIAL,RESIDENTIAL CARE,2102637808
06.03.2017,CHILDREN'S SERVICES,PLUS ONE LTD,"14,796.00",RESIDENTIAL,RESIDENTIAL CARE,2102637835
06.03.2017,CHILDREN'S SERVICES,POTTON HOMES LTD,"17,200.00",RESIDENTIAL,RESIDENTIAL CARE,2102637831
06.03.2017,CHILDREN'S SERVICES,PRESTIGE ADOLESCENT CARE & EDUCATION LTD,"13,800.08",RESIDENTIAL,RESIDENTIAL CARE,2102637799
06.03.2017,CHILDREN'S SERVICES,PRESTIGE ADOLESCENT CARE & EDUCATION LTD,"13,800.08",RESIDENTIAL,RESIDENTIAL CARE,2102637810
06.03.2017,CHILDREN'S SERVICES,SPORTFIT SHORT BREAK CARE LTD,"11,158.00",RESIDENTIAL,RESIDENTIAL CARE,2102637806
06.03.2017,CHILDREN'S SERVICES,SPORTFIT SHORT BREAK CARE LTD,"11,240.50",RESIDENTIAL,RESIDENTIAL CARE,2102637797
06.03.2017,CHILDREN'S SERVICES,ST CHRISTOPHER FELLOWSHIP,"10,799.88",RESIDENTIAL,RESIDENTIAL CARE,5902239946
06.03.2017,CHILDREN'S SERVICES,THE DRIVE CARE HOMES LTD,"11,901.12",RESIDENTIAL,RESIDENTIAL CARE,2102637804
06.03.2017,CHILDREN'S SERVICES,THE DRIVE CARE HOMES LTD,"15,183.28",RESIDENTIAL,RESIDENTIAL CARE,2102637811
06.03.2017,CHILDREN'S SERVICES,THE DRIVE CARE HOMES LTD,"15,261.12",RESIDENTIAL,RESIDENTIAL CARE,2102637798
06.03.2017,CHILDREN'S SERVICES,TULIP CARE TWO LTD,"11,900.00",RESIDENTIAL,RESIDENTIAL CARE,2102637836
06.03.2017,CHILDREN'S SERVICES,WOOD GROVE (CHILDCARE) LTD,"10,500.00",RESIDENTIAL,RESIDENTIAL CARE,2102637802
06.03.2017,CHILDREN'S SERVICES,ASSOCIATED CARE SERVICES LTD,"1,280.00",S24 CLA,EXTERNAL AGENCIES AND BODIES,5902239938
06.03.2017,CHILDREN'S SERVICES,FINEFAIR LTD,"1,225.28",S24 CLA,EXTERNAL AGENCIES AND BODIES,2102637973
06.03.2017,CHILDREN'S SERVICES,FINEFAIR LTD,"1,524.04",S24 CLA,EXTERNAL AGENCIES AND BODIES,2102637940
06.03.2017,CHILDREN'S SERVICES,FINEFAIR LTD,"1,524.04",S24 CLA,EXTERNAL AGENCIES AND BODIES,2102637943
06.03.2017,CHILDREN'S SERVICES,FINEFAIR LTD,"1,524.04",S24 CLA,EXTERNAL AGENCIES AND BODIES,2102637944
06.03.2017,CHILDREN'S SERVICES,FINEFAIR LTD,"2,680.16",S24 CLA,EXTERNAL AGENCIES AND BODIES,2102637959
06.03.2017,CHILDREN'S SERVICES,FRESH START SUPPORT LTD,"1,472.00",S24 CLA,EXTERNAL AGENCIES AND BODIES,2102637951
06.03.2017,CHILDREN'S SERVICES,FRESH START SUPPORT LTD,"2,040.00",S24 CLA,EXTERNAL AGENCIES AND BODIES,2102637971
06.03.2017,CHILDREN'S SERVICES,HOLMDENE HOUSING LTD,720,S24 CLA,RESIDENTIAL CARE,2102637768
06.03.2017,CHILDREN'S SERVICES,HOLMDENE HOUSING LTD,900,S24 CLA,RESIDENTIAL CARE,2102637769
06.03.2017,CHILDREN'S SERVICES,LOOK AHEAD CARE AND SUPPORT LTD,"1,738.04",S24 CLA,EXTERNAL AGENCIES AND BODIES,2102637968
06.03.2017,CHILDREN'S SERVICES,NETPEX LTD CORPORATE SERVICES,"2,606.08",S24 CLA,EXTERNAL AGENCIES AND BODIES,2102637941
06.03.2017,CHILDREN'S SERVICES,NETPEX LTD CORPORATE SERVICES,"5,100.20",S24 CLA,EXTERNAL AGENCIES AND BODIES,2102637932
06.03.2017,CHILDREN'S SERVICES,PROPERTY ACE UK LTD,"2,380.00",S24 CLA,RESIDENTIAL CARE,2102637935
06.03.2017,CHILDREN'S SERVICES,PURPLE PEBBLES(CHILD CARE) SERVICES,300,S24 CLA,EXTERNAL AGENCIES AND BODIES,2102637931
06.03.2017,CHILDREN'S SERVICES,PURPLE PEBBLES(CHILD CARE) SERVICES,300,S24 CLA,EXTERNAL AGENCIES AND BODIES,2102637933
06.03.2017,CHILDREN'S SERVICES,PURPLE PEBBLES(CHILD CARE) SERVICES,740,S24 CLA,EXTERNAL AGENCIES AND BODIES,2102637928
06.03.2017,CHILDREN'S SERVICES,PURPLE PEBBLES(CHILD CARE) SERVICES,"1,107.68",S24 CLA,EXTERNAL AGENCIES AND BODIES,2102637930
06.03.2017,CHILDREN'S SERVICES,PURPLE PEBBLES(CHILD CARE) SERVICES,"1,120.00",S24 CLA,EXTERNAL AGENCIES AND BODIES,2102637937
06.03.2017,CHILDREN'S SERVICES,PURPLE PEBBLES(CHILD CARE) SERVICES,"1,139.99",S24 CLA,EXTERNAL AGENCIES AND BODIES,2102637970
06.03.2017,CHILDREN'S SERVICES,PURPLE PEBBLES(CHILD CARE) SERVICES,"1,220.00",S24 CLA,EXTERNAL AGENCIES AND BODIES,2102637945
06.03.2017,CHILDREN'S SERVICES,PURPLE PEBBLES(CHILD CARE) SERVICES,"1,220.00",S24 CLA,EXTERNAL AGENCIES AND BODIES,2102637957
06.03.2017,CHILDREN'S SERVICES,PURPLE PEBBLES(CHILD CARE) SERVICES,"1,220.00",S24 CLA,EXTERNAL AGENCIES AND BODIES,2102637960
06.03.2017,CHILDREN'S SERVICES,PURPLE PEBBLES(CHILD CARE) SERVICES,"1,587.94",S24 CLA,EXTERNAL AGENCIES AND BODIES,2102637952
06.03.2017,CHILDREN'S SERVICES,ST CHRISTOPHER FELLOWSHIP,"3,942.89",S24 CLA,EXTERNAL AGENCIES AND BODIES,5902239944
06.03.2017,CHILDREN'S SERVICES,STEPPING STONE PROJECT,399,S24 CLA,EXTERNAL AGENCIES AND BODIES,2102637955
06.03.2017,CHILDREN'S SERVICES,STEPPING STONE PROJECT,445.85,S24 CLA,EXTERNAL AGENCIES AND BODIES,2102637946
06.03.2017,CHILDREN'S SERVICES,STEPPING STONE PROJECT,798,S24 CLA,EXTERNAL AGENCIES AND BODIES,2102637947
06.03.2017,CHILDREN'S SERVICES,THE ARTEMIS TEAM LTD,"3,528.36",S24 CLA,EXTERNAL AGENCIES AND BODIES,2102637961
06.03.2017,CHILDREN'S SERVICES,THE ARTEMIS TEAM LTD,"5,715.00",S24 CLA,RESIDENTIAL CARE,2102638203
06.03.2017,CHILDREN'S SERVICES,YOUNG FUTURES,"2,000.04",S24 CLA,EXTERNAL AGENCIES AND BODIES,2102637979
06.03.2017,CHILDREN'S SERVICES,YOUNG FUTURES,"2,214.33",S24 CLA,EXTERNAL AGENCIES AND BODIES,2102637950
06.03.2017,CHILDREN'S SERVICES,YOUNG FUTURES,"2,290.40",S24 CLA,EXTERNAL AGENCIES AND BODIES,2102637948
06.03.2017,CHILDREN'S SERVICES,YOUNG FUTURES,"2,444.35",S24 CLA,EXTERNAL AGENCIES AND BODIES,2102637978
06.03.2017,CHILDREN'S SERVICES,YOUNG FUTURES,"2,444.66",S24 CLA,EXTERNAL AGENCIES AND BODIES,2102637972
06.03.2017,CHILDREN'S SERVICES,YOUNG FUTURES,"2,520.00",S24 CLA,EXTERNAL AGENCIES AND BODIES,2102637966
06.03.2017,CHILDREN'S SERVICES,YOUNG FUTURES,"2,535.80",S24 CLA,EXTERNAL AGENCIES AND BODIES,2102637938
06.03.2017,CHILDREN'S SERVICES,YOUNG FUTURES,-903.65,S24 CLA,RESIDENTIAL CARE,2102637770
06.03.2017,CHILDREN'S SERVICES,YOUNG FUTURES,-815.92,S24 CLA,RESIDENTIAL CARE,2102637772
06.03.2017,CHILDREN'S SERVICES,YOUNG FUTURES,-815.92,S24 CLA,RESIDENTIAL CARE,2102637778
06.03.2017,CHILDREN'S SERVICES,YOUNG FUTURES,-539,S24 CLA,RESIDENTIAL CARE,2102637774
06.03.2017,CHILDREN'S SERVICES,YOUNG FUTURES,"2,000.04",S24 CLA,RESIDENTIAL CARE,2102637779
06.03.2017,CHILDREN'S SERVICES,YOUNG FUTURES,"2,207.80",S24 CLA,RESIDENTIAL CARE,2102637773
06.03.2017,CHILDREN'S SERVICES,YOUNG FUTURES,"2,520.00",S24 CLA,RESIDENTIAL CARE,2102637775
06.03.2017,CHILDREN'S SERVICES,YOUNG FUTURES,"2,790.00",S24 CLA,RESIDENTIAL CARE,2102637771
06.03.2017,CHILDREN'S SERVICES,UNIVERSITY OF NOTTINGHAM,"9,000.00",SCHOLARSHIP SCHEME,EXTERNAL AGENCIES AND BODIES,5902240093
06.03.2017,CHILDREN'S SERVICES,RYE OAK PRIMARY SCHOOL,"7,400.00",SCHOOLS IN FINANCIAL DIFFICULTY,SCHOOLS CAPITATION,5902240077
06.03.2017,CHILDREN'S SERVICES,CAMERON SUPPORT SERVICES LTD,"3,946.04",SEMI INDEPENDENT,EXTERNAL AGENCIES AND BODIES,2102637927
06.03.2017,CHILDREN'S SERVICES,LOOK AHEAD CARE AND SUPPORT LTD,"3,380.76",SEMI INDEPENDENT,EXTERNAL AGENCIES AND BODIES,2102637962
06.03.2017,CHILDREN'S SERVICES,LOOK AHEAD CARE AND SUPPORT LTD,"3,380.76",SEMI INDEPENDENT,EXTERNAL AGENCIES AND BODIES,2102637969
06.03.2017,CHILDREN'S SERVICES,NETPEX LTD CORPORATE SERVICES,"3,800.16",SEMI INDEPENDENT,EXTERNAL AGENCIES AND BODIES,2102637926
06.03.2017,CHILDREN'S SERVICES,NETPEX LTD CORPORATE SERVICES,"13,500.20",SEMI INDEPENDENT,EXTERNAL AGENCIES AND BODIES,2102637924
06.03.2017,CHILDREN'S SERVICES,RELA SUPPORT SERVICES LTD,"4,800.00",SEMI INDEPENDENT,EXTERNAL AGENCIES AND BODIES,2102637921
06.03.2017,CHILDREN'S SERVICES,REDACTED PERSONAL DATA,251.43,SEMI INDEPENDENT,OTHER PAYMENTS FOR CLIENTS,5902240004
06.03.2017,CHILDREN'S SERVICES,CHERRY GARDEN SCHOOL,"50,000.00",SPECIAL SCHOOL IN YEAR TOP UP CONTINGENC,SCHOOLS CAPITATION,5902240053
06.03.2017,CHILDREN'S SERVICES,TUKE SCHOOL,"217,092.83",SPECIAL SCHOOL IN YEAR TOP UP CONTINGENC,SCHOOLS CAPITATION,5902240052
06.03.2017,CHILDREN'S SERVICES,AFFINITY FOSTERING SERVICES LTD,"1,580.04",STAYING PUT,EXTERNAL AGENCIES AND BODIES,2102637934
06.03.2017,CHILDREN'S SERVICES,AFFINITY FOSTERING SERVICES LTD,"1,580.04",STAYING PUT,EXTERNAL AGENCIES AND BODIES,2102637976
06.03.2017,CHILDREN'S SERVICES,ANCHOR FOSTERCARE,"3,889.76",STAYING PUT,EXTERNAL AGENCIES AND BODIES,2102637954
06.03.2017,CHILDREN'S SERVICES,BY THE BRIDGE LTD,"1,400.00",STAYING PUT,EXTERNAL AGENCIES AND BODIES,2102637953
06.03.2017,CHILDREN'S SERVICES,BY THE BRIDGE LTD,"3,000.00",STAYING PUT,EXTERNAL AGENCIES AND BODIES,2102637963
06.03.2017,CHILDREN'S SERVICES,BY THE BRIDGE LTD,"3,000.00",STAYING PUT,EXTERNAL AGENCIES AND BODIES,2102637965
06.03.2017,CHILDREN'S SERVICES,COMPASS FOSTERING,"1,669.92",STAYING PUT,EXTERNAL AGENCIES AND BODIES,2102637956
06.03.2017,CHILDREN'S SERVICES,INTEGRATED SERVICES PROGRAMME,"2,178.40",STAYING PUT,EXTERNAL AGENCIES AND BODIES,5902239941
06.03.2017,CHILDREN'S SERVICES,NATIONAL FOSTERING AGENCY,"1,680.00",STAYING PUT,EXTERNAL AGENCIES AND BODIES,2102637975
06.03.2017,CHILDREN'S SERVICES,REDACTED PERSONAL DATA,300,UASC FURTHER EDUCATION SUPPORT,CLIENT TRANSPORT,5902240007
06.03.2017,CHILDREN'S SERVICES,REDACTED PERSONAL DATA,300,UASC FURTHER EDUCATION SUPPORT,CLIENT TRANSPORT,5902240005
06.03.2017,CHILDREN'S SERVICES,REDACTED PERSONAL DATA,400,UASC FURTHER EDUCATION SUPPORT,OTHER PAYMENTS FOR CLIENTS,5902240007
06.03.2017,CHILDREN'S SERVICES,FINEFAIR LTD,"1,524.04",UASC SECTION 24,EXTERNAL AGENCIES AND BODIES,2102637977
06.03.2017,CHILDREN'S SERVICES,PROPERTY ACE UK LTD,"1,800.00",UASC SECTION 24,RESIDENTIAL CARE,2102637929
06.03.2017,CHILDREN'S SERVICES,PURPLE PEBBLES(CHILD CARE) SERVICES,400,UASC SECTION 24,SECTION 17 PAYMENTS TO AGENCIES/CARERS,2102637782
06.03.2017,CHILDREN'S SERVICES,PURPLE PEBBLES(CHILD CARE) SERVICES,"1,100.00",UASC SECTION 24,SECTION 17 PAYMENTS TO AGENCIES/CARERS,2102637781
06.03.2017,CHILDREN'S SERVICES,PURPLE PEBBLES(CHILD CARE) SERVICES,"1,560.00",UASC SECTION 24,SECTION 17 PAYMENTS TO AGENCIES/CARERS,2102637780
06.03.2017,CHILDREN'S SERVICES,THE ARTEMIS TEAM LTD,"1,099.30",UASC SECTION 24,EXTERNAL AGENCIES AND BODIES,2102637964
06.03.2017,CHILDREN'S SERVICES,THE ARTEMIS TEAM LTD,"1,851.44",UASC SECTION 24,EXTERNAL AGENCIES AND BODIES,2102637939
06.03.2017,CHILDREN'S SERVICES,THE ARTEMIS TEAM LTD,"3,645.00",UASC SECTION 24,EXTERNAL AGENCIES AND BODIES,2102637936
06.03.2017,CHILDREN'S SERVICES,YOUNG FUTURES,"2,444.66",UASC SECTION 24,EXTERNAL AGENCIES AND BODIES,2102637974
06.03.2017,CHILDREN'S SERVICES,YOUNG FUTURES,"2,520.00",UASC SECTION 24,EXTERNAL AGENCIES AND BODIES,2102637949
06.03.2017,COMMUNITIES,GLEBE NORTH & SOUTH T&RA,"1,040.26",TENANTS FUND,GRANTS,5902239009
06.03.2017,COMMUNITIES,CROSSKNIGHTS LTD,"2,532.85",TRA HALLS (REPAIRS),SECURITY SERVICES,5902240096
06.03.2017,COMMUNITIES,EDF ENERGY PLC,908.2,TRA HALLS (REPAIRS),ELECTRICITY,5902240022
06.03.2017,COMMUNITIES,EDF ENERGY PLC,"1,012.71",TRA HALLS (REPAIRS),ELECTRICITY,5902240021
06.03.2017,CUSTOMER EXPERIENCE HGF,OFFICE DEPOT UK LTD,605,BERMONDSEY MSSP,OFFICE EXPENSES,5902240078
06.03.2017,CUSTOMER EXPERIENCE HGF,SALT LAKE MEDICAL LTD,"2,129.60",CORONER'S,PROFESSIONAL FEES,5902240044
06.03.2017,CUSTOMER EXPERIENCE HGF,OFFICE DEPOT UK LTD,657.76,HOMELESS & HOUSING OPTIONS MGT,STATIONERY,5902239998
06.03.2017,CUSTOMER EXPERIENCE HGF,TFL TELESALES / OYSTER FULFILMENT,335,HOMELESS & HOUSING OPTIONS MGT,PUBLIC TRANSPORT,5902240065
06.03.2017,CUSTOMER EXPERIENCE HGF,J & M OASIS LTD,"43,905.60",NIGHTLY TA (NSC),EXTERNAL AGENCIES AND BODIES,5902240090
06.03.2017,CUSTOMER EXPERIENCE HGF,NORBURY PROPERTY SERVICES,"14,767.00",NIGHTLY TA (NSC),EXTERNAL AGENCIES AND BODIES,5902240061
06.03.2017,CUSTOMER EXPERIENCE HGF,PPROPERTYPLACEBOOK LTD,980,NIGHTLY TA (NSC),EXTERNAL AGENCIES AND BODIES,5902240080
06.03.2017,CUSTOMER EXPERIENCE HGF,PPROPERTYPLACEBOOK LTD,"42,792.00",NIGHTLY TA (NSC),EXTERNAL AGENCIES AND BODIES,5902240083
06.03.2017,CUSTOMER EXPERIENCE HGF,REDACTED PERSONAL DATA,"3,500.00",TEMP ACCOM - MNGMT,GRANTS,5902239932
06.03.2017,CUSTOMER EXPERIENCE HGF,SOUTH EAST LONDON BAPTIST HOME,571.08,TEMP ACCOM - MNGMT,GRANTS,5902239956
06.03.2017,ENVIRONMENT AND LEISURE,CJS PLANTS,385,CAPITAL PS (LEISURE),CONSTRUCTION MAIN CONTRACT,5902240095
06.03.2017,ENVIRONMENT AND LEISURE,KINNEAR LANDSCAPE ARCHITECTS LTD,"9,110.00",CAPITAL PS (LEISURE),CONSTRUCTION FEES  - EXTERNAL,5902239968
06.03.2017,ENVIRONMENT AND LEISURE,VINCENTSTOKES LTD,"22,363.34",CAPITAL PS (LEISURE),CONSTRUCTION MAIN CONTRACT -CERTIFICATED,2102638533
06.03.2017,ENVIRONMENT DIRECTORATE,INCHCAPE FLEET SOLUTIONS LTD,284.38,CAR LEASING CTRL A/C,VEHICLE LEASING CHARGES,5902239936
06.03.2017,ENVIRONMENT DIRECTORATE,DAWSON RENTALS SWEEPERS,"2,389.89",COMMERCIAL VEH CTRL A/C,HIRED VEHICLES,5902240026
06.03.2017,ENVIRONMENT DIRECTORATE,DAWSON RENTALS SWEEPERS,"2,389.89",COMMERCIAL VEH CTRL A/C,HIRED VEHICLES,5902240027
06.03.2017,ENVIRONMENT DIRECTORATE,TIPPERHIRE LTD,460,COMMERCIAL VEH CTRL A/C,HIRED VEHICLES,5902240036
06.03.2017,ENVIRONMENT DIRECTORATE,TIPPERHIRE LTD,460,COMMERCIAL VEH CTRL A/C,HIRED VEHICLES,5902240037
06.03.2017,ENVIRONMENT DIRECTORATE,TIPPERHIRE LTD,460,COMMERCIAL VEH CTRL A/C,HIRED VEHICLES,5902240038
06.03.2017,ENVIRONMENT DIRECTORATE,TIPPERHIRE LTD,460,COMMERCIAL VEH CTRL A/C,HIRED VEHICLES,5902240040
06.03.2017,ENVIRONMENT DIRECTORATE,PERFORMANCE CHEMICALS LTD,927.5,ESTATE CLEANING-GENERAL,MATERIALS,5902240094
06.03.2017,ENVIRONMENT DIRECTORATE,SPALDINGS (UK) LTD,322.91,GROUNDS MAINTENANCE - GENERAL,MATERIALS,5902240086
06.03.2017,ENVIRONMENT DIRECTORATE,SOUTHWARK NEWSPAPER LTD,420,HIGHWAYS DEVELOPMENT,MARKETING & PUBLICITY SERVICES,5902240076
06.03.2017,ENVIRONMENT DIRECTORATE,SOUTHWARK NEWSPAPER LTD,456,HIGHWAYS DEVELOPMENT,MARKETING & PUBLICITY SERVICES,5902240075
06.03.2017,ENVIRONMENT DIRECTORATE,FAROL LTD,"3,000.00",ICC SPECIAL TEAMS,EQUIPMENT PURCHASE & REPAIR,5902240085
06.03.2017,ENVIRONMENT DIRECTORATE,IMPERIAL POLYTHENE PRODUCTS LTD,556.5,MANAGEMENT TEAM,MATERIALS,5902239969
06.03.2017,F & C S EXCLUDING CORPORATE BUDGETS,HAMBURY TILMOND LTD,339.75,AR/DEBT MANAGEMENT,OFFICE EXPENSES,5902239856
06.03.2017,F & C S EXCLUDING CORPORATE BUDGETS,BETTER BANKSIDE,"82,467.81",BETTER BANKSIDE,EXTERNAL AGENCIES AND BODIES,5902239930
06.03.2017,F & C S EXCLUDING CORPORATE BUDGETS,AUDITEL RENTAL & SERVICE LTD,"2,605.00",CONSTITUTIONAL TEAM,OP LEASE/HIRE CHARGES:PLANT/EQUIP/FURNIT,5902240043
06.03.2017,F & C S EXCLUDING CORPORATE BUDGETS,MILLMOLL LTD,"1,104.56",CONSTITUTIONAL TEAM,EQUIPMENT PURCHASE & REPAIR,5902239940
06.03.2017,F & C S EXCLUDING CORPORATE BUDGETS,CIPFA BUSINESS LTD,"3,475.00",FINANCIAL GOVERNANCE,SUBSCRIPTIONS,5902238943
06.03.2017,F & C S EXCLUDING CORPORATE BUDGETS,BDO LLP,"20,923.00",INTERNAL AUDIT CONTRACTS,PAYMENTS FOR FINANCIAL SERVICES,5902239622
06.03.2017,F & C S EXCLUDING CORPORATE BUDGETS,EXPERIAN LTD,"5,417.36",SYSTEMS DEVELOPMENT,OFFICE EXPENSES,5902239099
06.03.2017,HOUSING,DUCTCLEAN (UK) LTD,"28,318.83",DUCTCLEAN,MANUAL CREDITORS,2102638532
06.03.2017,HOUSING,OCO HEATING & MECHANICAL,"5,632.70",PAYMENTS CONTROL ACCOUNT - OCO,MANUAL CREDITORS,2102638525
06.03.2017,HOUSING GENERAL FUND,APTIVA ENVIRONMENTAL LTD,822,CAPITAL PS (REGEN),CONSTRUCTION,5902240046
06.03.2017,HOUSING GENERAL FUND,INTERSERVE (FACILITIES MANAGEMENT),"1,754.95",CAPITAL PS (REGEN),CONSTRUCTION,5902239929
06.03.2017,HOUSING GENERAL FUND,INTERSERVE (FACILITIES MANAGEMENT),"8,183.87",CAPITAL PS (REGEN),CONSTRUCTION,5902239931
06.03.2017,HOUSING GENERAL FUND,INTERSERVE (FACILITIES MANAGEMENT),"14,589.28",CAPITAL PS (REGEN),CONSTRUCTION,5902239929
06.03.2017,HOUSING HRA,A & E ELKINS LTD,"310,865.13",CAPITAL PS (HRA),CONSTRUCTION MAIN CONTRACT -CERTIFICATED,2102638531
06.03.2017,HOUSING HRA,BAILY  GARNER LLP,"5,391.00",CAPITAL PS (HRA),CONSTRUCTION FEES  - EXTERNAL,5902240047
06.03.2017,HOUSING HRA,CALFORD SEADEN LLP,"2,984.45",CAPITAL PS (HRA),CONSTRUCTION FEES  - EXTERNAL,5902240070
06.03.2017,HOUSING HRA,CALFORD SEADEN LLP,"5,985.61",CAPITAL PS (HRA),CONSTRUCTION FEES  - EXTERNAL,5902240023
06.03.2017,HOUSING HRA,KEEPMOAT REGENERATION (APOLLO) LTD,"226,602.22",CAPITAL PS (HRA),CONSTRUCTION MAIN CONTRACT -CERTIFICATED,2102638535
06.03.2017,HOUSING HRA,SALTASH ENTERPRISES LTD,"24,216.68",CAPITAL PS (HRA),CONSTRUCTION MAIN CONTRACT -CERTIFICATED,2102638528
06.03.2017,HOUSING HRA,SALTASH ENTERPRISES LTD,"275,000.00",CAPITAL PS (HRA),CONSTRUCTION MAIN CONTRACT -CERTIFICATED,2102638527
06.03.2017,LEISURE DIRECTORATE,GLS EDUCATIONAL SUPPLIES LTD,401.41,BURGESS PARK COMMUNITY SPORTS CENTRE,OTHER CLEANING,5902240000
06.03.2017,LEISURE DIRECTORATE,GLS EDUCATIONAL SUPPLIES LTD,474.77,BURGESS PARK COMMUNITY SPORTS CENTRE,OTHER CLEANING,5902239999
06.03.2017,LEISURE DIRECTORATE,KENT COUNTY COUNCIL - LASER,"1,931.43",DULWICH LIBRARY,ELECTRICITY,5902240045
06.03.2017,LEISURE DIRECTORATE,NPOWER,271.47,EAST STREET LIBRARY,ELECTRICITY,5902239970
06.03.2017,LEISURE DIRECTORATE,JRB ENTERPRISE LTD,975.6,PECKHAM RYE AREA TEAM,OTHER R&M,5902240091
06.03.2017,LEISURE DIRECTORATE,KENT COUNTY COUNCIL - LASER,"1,925.73",SOUTHWARK AREA TEAM,ELECTRICITY,5902240068
06.03.2017,MODERNISATION HGF,REDACTED PERSONAL DATA,"4,545.25",FRONTLINE BURSARIES,TRAINING,5902240082
06.03.2017,MODERNISATION HGF,REDACTED PERSONAL DATA,"4,545.25",FRONTLINE BURSARIES,TRAINING,5902240081
06.03.2017,MODERNISATION HGF,REDACTED PERSONAL DATA,"4,545.25",FRONTLINE BURSARIES,TRAINING,5902240079
06.03.2017,MODERNISATION HGF,REDACTED PERSONAL DATA,"4,545.25",FRONTLINE BURSARIES,TRAINING,5902240084
06.03.2017,MODERNISATION HGF,VEOLIA ES (UK)LTD,"3,389.11",REFUSE - VEOLIA,REFUSE COLLECTION CONTRACT,5902240020
06.03.2017,MODERNISATION HGF,APTIVA ENVIRONMENTAL LTD,325,REPAIR AND MAINTENANCE SERVICES,BUILDING R&M,5902239928
06.03.2017,PUBLIC HEALTH,AAM PHARMA LTD T/A A R CHEMIST,614,ADULT SM SERVICE,OTHER CONTRACTORS,2102638486
06.03.2017,PUBLIC HEALTH,AAM PHARMA LTD T/A A R CHEMIST,750,ADULT SM SERVICE,OTHER CONTRACTORS,2102638484
06.03.2017,PUBLIC HEALTH,AAM PHARMA LTD T/A A R CHEMIST,"1,300.00",ADULT SM SERVICE,OTHER CONTRACTORS,2102638485
06.03.2017,PUBLIC HEALTH,BOOTS UK LTD,750,ADULT SM SERVICE,OTHER CONTRACTORS,2102638487
06.03.2017,PUBLIC HEALTH,BOOTS UK LTD,"1,300.00",ADULT SM SERVICE,OTHER CONTRACTORS,2102638488
06.03.2017,PUBLIC HEALTH,CAREFIELD LTD,450,ADULT SM SERVICE,OTHER CONTRACTORS,2102638522
06.03.2017,PUBLIC HEALTH,CAREFIELD LTD,750,ADULT SM SERVICE,OTHER CONTRACTORS,2102638521
06.03.2017,PUBLIC HEALTH,DAY LEWIS - CAMBERWELL,750,ADULT SM SERVICE,OTHER CONTRACTORS,2102638481
06.03.2017,PUBLIC HEALTH,DAY LEWIS PLC,750,ADULT SM SERVICE,OTHER CONTRACTORS,2102638493
06.03.2017,PUBLIC HEALTH,DP & SP LTD,750,ADULT SM SERVICE,OTHER CONTRACTORS,2102638496
06.03.2017,PUBLIC HEALTH,FLEXIHEALTH LTD,450,ADULT SM SERVICE,OTHER CONTRACTORS,2102638501
06.03.2017,PUBLIC HEALTH,FLEXIHEALTH LTD,750,ADULT SM SERVICE,OTHER CONTRACTORS,2102638500
06.03.2017,PUBLIC HEALTH,KRISTAL ENTERPRISES LTD,750,ADULT SM SERVICE,OTHER CONTRACTORS,2102638503
06.03.2017,PUBLIC HEALTH,LLOYDS PHARMACY LTD,750,ADULT SM SERVICE,OTHER CONTRACTORS,2102638506
06.03.2017,PUBLIC HEALTH,LLOYDS PHARMACY LTD,"1,300.00",ADULT SM SERVICE,OTHER CONTRACTORS,2102638507
06.03.2017,PUBLIC HEALTH,MEDIMPO LTD,529.5,ADULT SM SERVICE,OTHER CONTRACTORS,2102638514
06.03.2017,PUBLIC HEALTH,MEDIMPO LTD,750,ADULT SM SERVICE,OTHER CONTRACTORS,2102638512
06.03.2017,PUBLIC HEALTH,MEDIMPO LTD,"2,500.00",ADULT SM SERVICE,OTHER CONTRACTORS,2102638513
06.03.2017,PUBLIC HEALTH,MONOKOVE LTD,750,ADULT SM SERVICE,OTHER CONTRACTORS,2102638498
06.03.2017,PUBLIC HEALTH,QRYSTAL LTD,415,ADULT SM SERVICE,OTHER CONTRACTORS,2102638511
06.03.2017,PUBLIC HEALTH,QRYSTAL LTD,750,ADULT SM SERVICE,OTHER CONTRACTORS,2102638509
06.03.2017,PUBLIC HEALTH,QRYSTAL LTD,"1,400.00",ADULT SM SERVICE,OTHER CONTRACTORS,2102638510
06.03.2017,PUBLIC HEALTH,ROPHARM CHEMIST,488,ADULT SM SERVICE,OTHER CONTRACTORS,2102638517
06.03.2017,PUBLIC HEALTH,ROPHARM CHEMIST,750,ADULT SM SERVICE,OTHER CONTRACTORS,2102638515
06.03.2017,PUBLIC HEALTH,ST GEORGES HEALTHCARE LTD,750,ADULT SM SERVICE,OTHER CONTRACTORS,2102638490
06.03.2017,PUBLIC HEALTH,ST GEORGES HEALTHCARE LTD,900,ADULT SM SERVICE,OTHER CONTRACTORS,2102638491
06.03.2017,PUBLIC HEALTH,SUPERDRUG PHARMACY,750,ADULT SM SERVICE,OTHER CONTRACTORS,2102638518
06.03.2017,PUBLIC HEALTH,SUPERDRUG PHARMACY,"2,100.00",ADULT SM SERVICE,OTHER CONTRACTORS,2102638519
06.03.2017,REGENERATION,STANBURY BUILDING SERVICES LTD,"3,300.00",TOWER WORKSHOPS,BUILDING R&M,2102638529
06.03.2017,RESIDENT SERVICES,CASTLE WATER LTD,"1,480.91",SPECIAL NEEDS HOSTELS,WATER,5902240088
06.03.2017,RESIDENT SERVICES,THAMES WATER UTILITIES LTD,"1,434.04",SPECIAL NEEDS HOSTELS,WATER,5902240071
06.03.2017,STRATEGIC FINANCING BUDGETS,THE BANK OF NEW YORK MELLON,"1,202.36",CASH MANAGERS' COSTS,PROFESSIONAL FEES,5902239977
07.03.2017,ADULT SOCIAL CARE,CAREWATCH LEWISHAM,"12,582.36", OP CARE PACKAGES,HOMECARE - IC,5902240196
07.03.2017,ADULT SOCIAL CARE,HC-ONE LTD (TOWER BRIDGE CARE HOME),"-1,651.48", OP CARE PACKAGES,"MAND STATUTORY CHARGES, NURSING",2102638925
07.03.2017,ADULT SOCIAL CARE,HC-ONE LTD (TOWER BRIDGE CARE HOME),"-1,651.48", OP CARE PACKAGES,"MAND STATUTORY CHARGES, NURSING",2102639043
07.03.2017,ADULT SOCIAL CARE,HC-ONE LTD (TOWER BRIDGE CARE HOME),"-1,651.48", OP CARE PACKAGES,"MAND STATUTORY CHARGES, NURSING",2102639162
07.03.2017,ADULT SOCIAL CARE,HC-ONE LTD (TOWER BRIDGE CARE HOME),-998.84, OP CARE PACKAGES,"MAND STATUTORY CHARGES, NURSING",2102638886
07.03.2017,ADULT SOCIAL CARE,HC-ONE LTD (TOWER BRIDGE CARE HOME),-998.84, OP CARE PACKAGES,"MAND STATUTORY CHARGES, NURSING",2102639005
07.03.2017,ADULT SOCIAL CARE,HC-ONE LTD (TOWER BRIDGE CARE HOME),-998.84, OP CARE PACKAGES,"MAND STATUTORY CHARGES, NURSING",2102639123
07.03.2017,ADULT SOCIAL CARE,HC-ONE LTD (TOWER BRIDGE CARE HOME),-966.24, OP CARE PACKAGES,"MAND STATUTORY CHARGES, NURSING",2102638913
07.03.2017,ADULT SOCIAL CARE,HC-ONE LTD (TOWER BRIDGE CARE HOME),-966.24, OP CARE PACKAGES,"MAND STATUTORY CHARGES, NURSING",2102639032
07.03.2017,ADULT SOCIAL CARE,HC-ONE LTD (TOWER BRIDGE CARE HOME),-966.24, OP CARE PACKAGES,"MAND STATUTORY CHARGES, NURSING",2102639150
07.03.2017,ADULT SOCIAL CARE,HC-ONE LTD (TOWER BRIDGE CARE HOME),-905.04, OP CARE PACKAGES,"MAND STATUTORY CHARGES, NURSING",2102638946
07.03.2017,ADULT SOCIAL CARE,HC-ONE LTD (TOWER BRIDGE CARE HOME),-905.04, OP CARE PACKAGES,"MAND STATUTORY CHARGES, NURSING",2102639063
07.03.2017,ADULT SOCIAL CARE,HC-ONE LTD (TOWER BRIDGE CARE HOME),-905.04, OP CARE PACKAGES,"MAND STATUTORY CHARGES, NURSING",2102639182
07.03.2017,ADULT SOCIAL CARE,HC-ONE LTD (TOWER BRIDGE CARE HOME),-618.6, OP CARE PACKAGES,"MAND STATUTORY CHARGES, NURSING",2102638888
07.03.2017,ADULT SOCIAL CARE,HC-ONE LTD (TOWER BRIDGE CARE HOME),-618.6, OP CARE PACKAGES,"MAND STATUTORY CHARGES, NURSING",2102639007
07.03.2017,ADULT SOCIAL CARE,HC-ONE LTD (TOWER BRIDGE CARE HOME),-618.6, OP CARE PACKAGES,"MAND STATUTORY CHARGES, NURSING",2102639125
07.03.2017,ADULT SOCIAL CARE,HC-ONE LTD (TOWER BRIDGE CARE HOME),-569.32, OP CARE PACKAGES,"MAND STATUTORY CHARGES, NURSING",2102638933
07.03.2017,ADULT SOCIAL CARE,HC-ONE LTD (TOWER BRIDGE CARE HOME),-569.32, OP CARE PACKAGES,"MAND STATUTORY CHARGES, NURSING",2102639051
07.03.2017,ADULT SOCIAL CARE,HC-ONE LTD (TOWER BRIDGE CARE HOME),-569.32, OP CARE PACKAGES,"MAND STATUTORY CHARGES, NURSING",2102639170
07.03.2017,ADULT SOCIAL CARE,HC-ONE LTD (TOWER BRIDGE CARE HOME),-547, OP CARE PACKAGES,"MAND STATUTORY CHARGES, NURSING",2102638965
07.03.2017,ADULT SOCIAL CARE,HC-ONE LTD (TOWER BRIDGE CARE HOME),-547, OP CARE PACKAGES,"MAND STATUTORY CHARGES, NURSING",2102639083
07.03.2017,ADULT SOCIAL CARE,HC-ONE LTD (TOWER BRIDGE CARE HOME),-547, OP CARE PACKAGES,"MAND STATUTORY CHARGES, NURSING",2102639202
07.03.2017,ADULT SOCIAL CARE,HC-ONE LTD (TOWER BRIDGE CARE HOME),-546.44, OP CARE PACKAGES,"MAND STATUTORY CHARGES, NURSING",2102638909
07.03.2017,ADULT SOCIAL CARE,HC-ONE LTD (TOWER BRIDGE CARE HOME),-546.44, OP CARE PACKAGES,"MAND STATUTORY CHARGES, NURSING",2102639028
07.03.2017,ADULT SOCIAL CARE,HC-ONE LTD (TOWER BRIDGE CARE HOME),-546.44, OP CARE PACKAGES,"MAND STATUTORY CHARGES, NURSING",2102639146
07.03.2017,ADULT SOCIAL CARE,HC-ONE LTD (TOWER BRIDGE CARE HOME),-520.6, OP CARE PACKAGES,"MAND STATUTORY CHARGES, NURSING",2102638866
07.03.2017,ADULT SOCIAL CARE,HC-ONE LTD (TOWER BRIDGE CARE HOME),-520.6, OP CARE PACKAGES,"MAND STATUTORY CHARGES, NURSING",2102638985
07.03.2017,ADULT SOCIAL CARE,HC-ONE LTD (TOWER BRIDGE CARE HOME),-520.6, OP CARE PACKAGES,"MAND STATUTORY CHARGES, NURSING",2102639103
07.03.2017,ADULT SOCIAL CARE,HC-ONE LTD (TOWER BRIDGE CARE HOME),-511, OP CARE PACKAGES,"MAND STATUTORY CHARGES, NURSING",2102638880
07.03.2017,ADULT SOCIAL CARE,HC-ONE LTD (TOWER BRIDGE CARE HOME),-511, OP CARE PACKAGES,"MAND STATUTORY CHARGES, NURSING",2102638999
07.03.2017,ADULT SOCIAL CARE,HC-ONE LTD (TOWER BRIDGE CARE HOME),-511, OP CARE PACKAGES,"MAND STATUTORY CHARGES, NURSING",2102639117
07.03.2017,ADULT SOCIAL CARE,HC-ONE LTD (TOWER BRIDGE CARE HOME),-506.6, OP CARE PACKAGES,"MAND STATUTORY CHARGES, NURSING",2102638937
07.03.2017,ADULT SOCIAL CARE,HC-ONE LTD (TOWER BRIDGE CARE HOME),-506.6, OP CARE PACKAGES,"MAND STATUTORY CHARGES, NURSING",2102639054
07.03.2017,ADULT SOCIAL CARE,HC-ONE LTD (TOWER BRIDGE CARE HOME),-506.6, OP CARE PACKAGES,"MAND STATUTORY CHARGES, NURSING",2102639173
07.03.2017,ADULT SOCIAL CARE,HC-ONE LTD (TOWER BRIDGE CARE HOME),-434.6, OP CARE PACKAGES,"MAND STATUTORY CHARGES, NURSING",2102638872
07.03.2017,ADULT SOCIAL CARE,HC-ONE LTD (TOWER BRIDGE CARE HOME),-434.6, OP CARE PACKAGES,"MAND STATUTORY CHARGES, NURSING",2102638991
07.03.2017,ADULT SOCIAL CARE,HC-ONE LTD (TOWER BRIDGE CARE HOME),-434.6, OP CARE PACKAGES,"MAND STATUTORY CHARGES, NURSING",2102639109
07.03.2017,ADULT SOCIAL CARE,HC-ONE LTD (TOWER BRIDGE CARE HOME),"1,303.80", OP CARE PACKAGES,"MAND STATUTORY CHARGES, NURSING",2102639228
07.03.2017,ADULT SOCIAL CARE,HC-ONE LTD (TOWER BRIDGE CARE HOME),"1,519.80", OP CARE PACKAGES,"MAND STATUTORY CHARGES, NURSING",2102639291
07.03.2017,ADULT SOCIAL CARE,HC-ONE LTD (TOWER BRIDGE CARE HOME),"1,533.00", OP CARE PACKAGES,"MAND STATUTORY CHARGES, NURSING",2102639236
07.03.2017,ADULT SOCIAL CARE,HC-ONE LTD (TOWER BRIDGE CARE HOME),"1,561.80", OP CARE PACKAGES,"MAND STATUTORY CHARGES, NURSING",2102639222
07.03.2017,ADULT SOCIAL CARE,HC-ONE LTD (TOWER BRIDGE CARE HOME),"1,639.32", OP CARE PACKAGES,"MAND STATUTORY CHARGES, NURSING",2102639265
07.03.2017,ADULT SOCIAL CARE,HC-ONE LTD (TOWER BRIDGE CARE HOME),"1,641.00", OP CARE PACKAGES,"MAND STATUTORY CHARGES, NURSING",2102639318
07.03.2017,ADULT SOCIAL CARE,HC-ONE LTD (TOWER BRIDGE CARE HOME),"1,707.96", OP CARE PACKAGES,"MAND STATUTORY CHARGES, NURSING",2102639288
07.03.2017,ADULT SOCIAL CARE,HC-ONE LTD (TOWER BRIDGE CARE HOME),"1,855.80", OP CARE PACKAGES,"MAND STATUTORY CHARGES, NURSING",2102639244
07.03.2017,ADULT SOCIAL CARE,HC-ONE LTD (TOWER BRIDGE CARE HOME),"2,715.12", OP CARE PACKAGES,"MAND STATUTORY CHARGES, NURSING",2102639300
07.03.2017,ADULT SOCIAL CARE,HC-ONE LTD (TOWER BRIDGE CARE HOME),"2,898.72", OP CARE PACKAGES,"MAND STATUTORY CHARGES, NURSING",2102639269
07.03.2017,ADULT SOCIAL CARE,HC-ONE LTD (TOWER BRIDGE CARE HOME),"2,996.52", OP CARE PACKAGES,"MAND STATUTORY CHARGES, NURSING",2102639242
07.03.2017,ADULT SOCIAL CARE,HC-ONE LTD (TOWER BRIDGE CARE HOME),"4,954.44", OP CARE PACKAGES,"MAND STATUTORY CHARGES, NURSING",2102639280
07.03.2017,ADULT SOCIAL CARE,HC-ONE LTD (TOWER BRIDGE CARE HOME),-559.12, OP CARE PACKAGES,"MAND STATUTORY CHARGES, RESIDENTIAL",2102638891
07.03.2017,ADULT SOCIAL CARE,HC-ONE LTD (TOWER BRIDGE CARE HOME),-559.12, OP CARE PACKAGES,"MAND STATUTORY CHARGES, RESIDENTIAL",2102639010
07.03.2017,ADULT SOCIAL CARE,HC-ONE LTD (TOWER BRIDGE CARE HOME),-559.12, OP CARE PACKAGES,"MAND STATUTORY CHARGES, RESIDENTIAL",2102639128
07.03.2017,ADULT SOCIAL CARE,HC-ONE LTD (TOWER BRIDGE CARE HOME),-532.84, OP CARE PACKAGES,"MAND STATUTORY CHARGES, RESIDENTIAL",2102638903
07.03.2017,ADULT SOCIAL CARE,HC-ONE LTD (TOWER BRIDGE CARE HOME),-532.84, OP CARE PACKAGES,"MAND STATUTORY CHARGES, RESIDENTIAL",2102639022
07.03.2017,ADULT SOCIAL CARE,HC-ONE LTD (TOWER BRIDGE CARE HOME),-532.84, OP CARE PACKAGES,"MAND STATUTORY CHARGES, RESIDENTIAL",2102639140
07.03.2017,ADULT SOCIAL CARE,HC-ONE LTD (TOWER BRIDGE CARE HOME),-519.4, OP CARE PACKAGES,"MAND STATUTORY CHARGES, RESIDENTIAL",2102638860
07.03.2017,ADULT SOCIAL CARE,HC-ONE LTD (TOWER BRIDGE CARE HOME),-519.4, OP CARE PACKAGES,"MAND STATUTORY CHARGES, RESIDENTIAL",2102638979
07.03.2017,ADULT SOCIAL CARE,HC-ONE LTD (TOWER BRIDGE CARE HOME),-519.4, OP CARE PACKAGES,"MAND STATUTORY CHARGES, RESIDENTIAL",2102639097
07.03.2017,ADULT SOCIAL CARE,HC-ONE LTD (TOWER BRIDGE CARE HOME),-508.64, OP CARE PACKAGES,"MAND STATUTORY CHARGES, RESIDENTIAL",2102638874
07.03.2017,ADULT SOCIAL CARE,HC-ONE LTD (TOWER BRIDGE CARE HOME),-508.64, OP CARE PACKAGES,"MAND STATUTORY CHARGES, RESIDENTIAL",2102638993
07.03.2017,ADULT SOCIAL CARE,HC-ONE LTD (TOWER BRIDGE CARE HOME),-508.64, OP CARE PACKAGES,"MAND STATUTORY CHARGES, RESIDENTIAL",2102639111
07.03.2017,ADULT SOCIAL CARE,HC-ONE LTD (TOWER BRIDGE CARE HOME),"1,525.92", OP CARE PACKAGES,"MAND STATUTORY CHARGES, RESIDENTIAL",2102639230
07.03.2017,ADULT SOCIAL CARE,HC-ONE LTD (TOWER BRIDGE CARE HOME),"1,558.20", OP CARE PACKAGES,"MAND STATUTORY CHARGES, RESIDENTIAL",2102639216
07.03.2017,ADULT SOCIAL CARE,HC-ONE LTD (TOWER BRIDGE CARE HOME),"1,598.52", OP CARE PACKAGES,"MAND STATUTORY CHARGES, RESIDENTIAL",2102639259
07.03.2017,ADULT SOCIAL CARE,HC-ONE LTD (TOWER BRIDGE CARE HOME),"1,677.36", OP CARE PACKAGES,"MAND STATUTORY CHARGES, RESIDENTIAL",2102639247
07.03.2017,ADULT SOCIAL CARE,HC-ONE LTD (TOWER BRIDGE CARE HOME),"-7,154.28", OP CARE PACKAGES,NURSING PLACEMENTS FEES,2102639268
07.03.2017,ADULT SOCIAL CARE,HC-ONE LTD (TOWER BRIDGE CARE HOME),"-7,154.28", OP CARE PACKAGES,NURSING PLACEMENTS FEES,2102639277
07.03.2017,ADULT SOCIAL CARE,HC-ONE LTD (TOWER BRIDGE CARE HOME),"-7,154.28", OP CARE PACKAGES,NURSING PLACEMENTS FEES,2102639294
07.03.2017,ADULT SOCIAL CARE,HC-ONE LTD (TOWER BRIDGE CARE HOME),"-7,117.20", OP CARE PACKAGES,NURSING PLACEMENTS FEES,2102639241
07.03.2017,ADULT SOCIAL CARE,HC-ONE LTD (TOWER BRIDGE CARE HOME),"-7,117.20", OP CARE PACKAGES,NURSING PLACEMENTS FEES,2102639285
07.03.2017,ADULT SOCIAL CARE,HC-ONE LTD (TOWER BRIDGE CARE HOME),"-7,103.64", OP CARE PACKAGES,NURSING PLACEMENTS FEES,2102639231
07.03.2017,ADULT SOCIAL CARE,HC-ONE LTD (TOWER BRIDGE CARE HOME),"-7,067.04", OP CARE PACKAGES,NURSING PLACEMENTS FEES,2102639227
07.03.2017,ADULT SOCIAL CARE,HC-ONE LTD (TOWER BRIDGE CARE HOME),"-7,067.04", OP CARE PACKAGES,NURSING PLACEMENTS FEES,2102639237
07.03.2017,ADULT SOCIAL CARE,HC-ONE LTD (TOWER BRIDGE CARE HOME),"-7,067.04", OP CARE PACKAGES,NURSING PLACEMENTS FEES,2102639238
07.03.2017,ADULT SOCIAL CARE,HC-ONE LTD (TOWER BRIDGE CARE HOME),"-7,067.04", OP CARE PACKAGES,NURSING PLACEMENTS FEES,2102639243
07.03.2017,ADULT SOCIAL CARE,HC-ONE LTD (TOWER BRIDGE CARE HOME),"-7,067.04", OP CARE PACKAGES,NURSING PLACEMENTS FEES,2102639262
07.03.2017,ADULT SOCIAL CARE,HC-ONE LTD (TOWER BRIDGE CARE HOME),"-7,067.04", OP CARE PACKAGES,NURSING PLACEMENTS FEES,2102639290
07.03.2017,ADULT SOCIAL CARE,HC-ONE LTD (TOWER BRIDGE CARE HOME),"-7,067.04", OP CARE PACKAGES,NURSING PLACEMENTS FEES,2102639311
07.03.2017,ADULT SOCIAL CARE,HC-ONE LTD (TOWER BRIDGE CARE HOME),"-6,996.96", OP CARE PACKAGES,NURSING PLACEMENTS FEES,2102639221
07.03.2017,ADULT SOCIAL CARE,HC-ONE LTD (TOWER BRIDGE CARE HOME),"-6,743.76", OP CARE PACKAGES,NURSING PLACEMENTS FEES,2102639225
07.03.2017,ADULT SOCIAL CARE,HC-ONE LTD (TOWER BRIDGE CARE HOME),"-6,434.40", OP CARE PACKAGES,NURSING PLACEMENTS FEES,2102639263
07.03.2017,ADULT SOCIAL CARE,HC-ONE LTD (TOWER BRIDGE CARE HOME),"-6,434.40", OP CARE PACKAGES,NURSING PLACEMENTS FEES,2102639264
07.03.2017,ADULT SOCIAL CARE,HC-ONE LTD (TOWER BRIDGE CARE HOME),"-6,434.40", OP CARE PACKAGES,NURSING PLACEMENTS FEES,2102639279
07.03.2017,ADULT SOCIAL CARE,HC-ONE LTD (TOWER BRIDGE CARE HOME),"-6,434.40", OP CARE PACKAGES,NURSING PLACEMENTS FEES,2102639287
07.03.2017,ADULT SOCIAL CARE,HC-ONE LTD (TOWER BRIDGE CARE HOME),"-6,287.04", OP CARE PACKAGES,NURSING PLACEMENTS FEES,2102639207
07.03.2017,ADULT SOCIAL CARE,HC-ONE LTD (TOWER BRIDGE CARE HOME),"-6,287.04", OP CARE PACKAGES,NURSING PLACEMENTS FEES,2102639235
07.03.2017,ADULT SOCIAL CARE,HC-ONE LTD (TOWER BRIDGE CARE HOME),"-6,287.04", OP CARE PACKAGES,NURSING PLACEMENTS FEES,2102639299
07.03.2017,ADULT SOCIAL CARE,HC-ONE LTD (TOWER BRIDGE CARE HOME),"-6,287.04", OP CARE PACKAGES,NURSING PLACEMENTS FEES,2102639317
07.03.2017,ADULT SOCIAL CARE,HC-ONE LTD (TOWER BRIDGE CARE HOME),"2,095.68", OP CARE PACKAGES,NURSING PLACEMENTS FEES,2102638851
07.03.2017,ADULT SOCIAL CARE,HC-ONE LTD (TOWER BRIDGE CARE HOME),"2,095.68", OP CARE PACKAGES,NURSING PLACEMENTS FEES,2102638879
07.03.2017,ADULT SOCIAL CARE,HC-ONE LTD (TOWER BRIDGE CARE HOME),"2,095.68", OP CARE PACKAGES,NURSING PLACEMENTS FEES,2102638945
07.03.2017,ADULT SOCIAL CARE,HC-ONE LTD (TOWER BRIDGE CARE HOME),"2,095.68", OP CARE PACKAGES,NURSING PLACEMENTS FEES,2102638964
07.03.2017,ADULT SOCIAL CARE,HC-ONE LTD (TOWER BRIDGE CARE HOME),"2,095.68", OP CARE PACKAGES,NURSING PLACEMENTS FEES,2102638970
07.03.2017,ADULT SOCIAL CARE,HC-ONE LTD (TOWER BRIDGE CARE HOME),"2,095.68", OP CARE PACKAGES,NURSING PLACEMENTS FEES,2102638998
07.03.2017,ADULT SOCIAL CARE,HC-ONE LTD (TOWER BRIDGE CARE HOME),"2,095.68", OP CARE PACKAGES,NURSING PLACEMENTS FEES,2102639062
07.03.2017,ADULT SOCIAL CARE,HC-ONE LTD (TOWER BRIDGE CARE HOME),"2,095.68", OP CARE PACKAGES,NURSING PLACEMENTS FEES,2102639082
07.03.2017,ADULT SOCIAL CARE,HC-ONE LTD (TOWER BRIDGE CARE HOME),"2,095.68", OP CARE PACKAGES,NURSING PLACEMENTS FEES,2102639088
07.03.2017,ADULT SOCIAL CARE,HC-ONE LTD (TOWER BRIDGE CARE HOME),"2,095.68", OP CARE PACKAGES,NURSING PLACEMENTS FEES,2102639116
07.03.2017,ADULT SOCIAL CARE,HC-ONE LTD (TOWER BRIDGE CARE HOME),"2,095.68", OP CARE PACKAGES,NURSING PLACEMENTS FEES,2102639181
07.03.2017,ADULT SOCIAL CARE,HC-ONE LTD (TOWER BRIDGE CARE HOME),"2,095.68", OP CARE PACKAGES,NURSING PLACEMENTS FEES,2102639201
07.03.2017,ADULT SOCIAL CARE,HC-ONE LTD (TOWER BRIDGE CARE HOME),"2,144.80", OP CARE PACKAGES,NURSING PLACEMENTS FEES,2102638907
07.03.2017,ADULT SOCIAL CARE,HC-ONE LTD (TOWER BRIDGE CARE HOME),"2,144.80", OP CARE PACKAGES,NURSING PLACEMENTS FEES,2102638908
07.03.2017,ADULT SOCIAL CARE,HC-ONE LTD (TOWER BRIDGE CARE HOME),"2,144.80", OP CARE PACKAGES,NURSING PLACEMENTS FEES,2102638924
07.03.2017,ADULT SOCIAL CARE,HC-ONE LTD (TOWER BRIDGE CARE HOME),"2,144.80", OP CARE PACKAGES,NURSING PLACEMENTS FEES,2102638932
07.03.2017,ADULT SOCIAL CARE,HC-ONE LTD (TOWER BRIDGE CARE HOME),"2,144.80", OP CARE PACKAGES,NURSING PLACEMENTS FEES,2102639026
07.03.2017,ADULT SOCIAL CARE,HC-ONE LTD (TOWER BRIDGE CARE HOME),"2,144.80", OP CARE PACKAGES,NURSING PLACEMENTS FEES,2102639027
07.03.2017,ADULT SOCIAL CARE,HC-ONE LTD (TOWER BRIDGE CARE HOME),"2,144.80", OP CARE PACKAGES,NURSING PLACEMENTS FEES,2102639042
07.03.2017,ADULT SOCIAL CARE,HC-ONE LTD (TOWER BRIDGE CARE HOME),"2,144.80", OP CARE PACKAGES,NURSING PLACEMENTS FEES,2102639050
07.03.2017,ADULT SOCIAL CARE,HC-ONE LTD (TOWER BRIDGE CARE HOME),"2,144.80", OP CARE PACKAGES,NURSING PLACEMENTS FEES,2102639144
07.03.2017,ADULT SOCIAL CARE,HC-ONE LTD (TOWER BRIDGE CARE HOME),"2,144.80", OP CARE PACKAGES,NURSING PLACEMENTS FEES,2102639145
07.03.2017,ADULT SOCIAL CARE,HC-ONE LTD (TOWER BRIDGE CARE HOME),"2,144.80", OP CARE PACKAGES,NURSING PLACEMENTS FEES,2102639161
07.03.2017,ADULT SOCIAL CARE,HC-ONE LTD (TOWER BRIDGE CARE HOME),"2,144.80", OP CARE PACKAGES,NURSING PLACEMENTS FEES,2102639169
07.03.2017,ADULT SOCIAL CARE,HC-ONE LTD (TOWER BRIDGE CARE HOME),"2,247.92", OP CARE PACKAGES,NURSING PLACEMENTS FEES,2102638869
07.03.2017,ADULT SOCIAL CARE,HC-ONE LTD (TOWER BRIDGE CARE HOME),"2,247.92", OP CARE PACKAGES,NURSING PLACEMENTS FEES,2102638988
07.03.2017,ADULT SOCIAL CARE,HC-ONE LTD (TOWER BRIDGE CARE HOME),"2,247.92", OP CARE PACKAGES,NURSING PLACEMENTS FEES,2102639106
07.03.2017,ADULT SOCIAL CARE,HC-ONE LTD (TOWER BRIDGE CARE HOME),"2,332.32", OP CARE PACKAGES,NURSING PLACEMENTS FEES,2102638865
07.03.2017,ADULT SOCIAL CARE,HC-ONE LTD (TOWER BRIDGE CARE HOME),"2,332.32", OP CARE PACKAGES,NURSING PLACEMENTS FEES,2102638984
07.03.2017,ADULT SOCIAL CARE,HC-ONE LTD (TOWER BRIDGE CARE HOME),"2,332.32", OP CARE PACKAGES,NURSING PLACEMENTS FEES,2102639102
07.03.2017,ADULT SOCIAL CARE,HC-ONE LTD (TOWER BRIDGE CARE HOME),"2,355.68", OP CARE PACKAGES,NURSING PLACEMENTS FEES,2102638871
07.03.2017,ADULT SOCIAL CARE,HC-ONE LTD (TOWER BRIDGE CARE HOME),"2,355.68", OP CARE PACKAGES,NURSING PLACEMENTS FEES,2102638881
07.03.2017,ADULT SOCIAL CARE,HC-ONE LTD (TOWER BRIDGE CARE HOME),"2,355.68", OP CARE PACKAGES,NURSING PLACEMENTS FEES,2102638882
07.03.2017,ADULT SOCIAL CARE,HC-ONE LTD (TOWER BRIDGE CARE HOME),"2,355.68", OP CARE PACKAGES,NURSING PLACEMENTS FEES,2102638887
07.03.2017,ADULT SOCIAL CARE,HC-ONE LTD (TOWER BRIDGE CARE HOME),"2,355.68", OP CARE PACKAGES,NURSING PLACEMENTS FEES,2102638906
07.03.2017,ADULT SOCIAL CARE,HC-ONE LTD (TOWER BRIDGE CARE HOME),"2,355.68", OP CARE PACKAGES,NURSING PLACEMENTS FEES,2102638936
07.03.2017,ADULT SOCIAL CARE,HC-ONE LTD (TOWER BRIDGE CARE HOME),"2,355.68", OP CARE PACKAGES,NURSING PLACEMENTS FEES,2102638958
07.03.2017,ADULT SOCIAL CARE,HC-ONE LTD (TOWER BRIDGE CARE HOME),"2,355.68", OP CARE PACKAGES,NURSING PLACEMENTS FEES,2102638990
07.03.2017,ADULT SOCIAL CARE,HC-ONE LTD (TOWER BRIDGE CARE HOME),"2,355.68", OP CARE PACKAGES,NURSING PLACEMENTS FEES,2102639000
07.03.2017,ADULT SOCIAL CARE,HC-ONE LTD (TOWER BRIDGE CARE HOME),"2,355.68", OP CARE PACKAGES,NURSING PLACEMENTS FEES,2102639001
07.03.2017,ADULT SOCIAL CARE,HC-ONE LTD (TOWER BRIDGE CARE HOME),"2,355.68", OP CARE PACKAGES,NURSING PLACEMENTS FEES,2102639006
07.03.2017,ADULT SOCIAL CARE,HC-ONE LTD (TOWER BRIDGE CARE HOME),"2,355.68", OP CARE PACKAGES,NURSING PLACEMENTS FEES,2102639025
07.03.2017,ADULT SOCIAL CARE,HC-ONE LTD (TOWER BRIDGE CARE HOME),"2,355.68", OP CARE PACKAGES,NURSING PLACEMENTS FEES,2102639053
07.03.2017,ADULT SOCIAL CARE,HC-ONE LTD (TOWER BRIDGE CARE HOME),"2,355.68", OP CARE PACKAGES,NURSING PLACEMENTS FEES,2102639076
07.03.2017,ADULT SOCIAL CARE,HC-ONE LTD (TOWER BRIDGE CARE HOME),"2,355.68", OP CARE PACKAGES,NURSING PLACEMENTS FEES,2102639108
07.03.2017,ADULT SOCIAL CARE,HC-ONE LTD (TOWER BRIDGE CARE HOME),"2,355.68", OP CARE PACKAGES,NURSING PLACEMENTS FEES,2102639118
07.03.2017,ADULT SOCIAL CARE,HC-ONE LTD (TOWER BRIDGE CARE HOME),"2,355.68", OP CARE PACKAGES,NURSING PLACEMENTS FEES,2102639119
07.03.2017,ADULT SOCIAL CARE,HC-ONE LTD (TOWER BRIDGE CARE HOME),"2,355.68", OP CARE PACKAGES,NURSING PLACEMENTS FEES,2102639124
07.03.2017,ADULT SOCIAL CARE,HC-ONE LTD (TOWER BRIDGE CARE HOME),"2,355.68", OP CARE PACKAGES,NURSING PLACEMENTS FEES,2102639143
07.03.2017,ADULT SOCIAL CARE,HC-ONE LTD (TOWER BRIDGE CARE HOME),"2,355.68", OP CARE PACKAGES,NURSING PLACEMENTS FEES,2102639172
07.03.2017,ADULT SOCIAL CARE,HC-ONE LTD (TOWER BRIDGE CARE HOME),"2,355.68", OP CARE PACKAGES,NURSING PLACEMENTS FEES,2102639195
07.03.2017,ADULT SOCIAL CARE,HC-ONE LTD (TOWER BRIDGE CARE HOME),"2,367.88", OP CARE PACKAGES,NURSING PLACEMENTS FEES,2102638875
07.03.2017,ADULT SOCIAL CARE,HC-ONE LTD (TOWER BRIDGE CARE HOME),"2,367.88", OP CARE PACKAGES,NURSING PLACEMENTS FEES,2102638994
07.03.2017,ADULT SOCIAL CARE,HC-ONE LTD (TOWER BRIDGE CARE HOME),"2,367.88", OP CARE PACKAGES,NURSING PLACEMENTS FEES,2102639112
07.03.2017,ADULT SOCIAL CARE,HC-ONE LTD (TOWER BRIDGE CARE HOME),"2,372.40", OP CARE PACKAGES,NURSING PLACEMENTS FEES,2102638885
07.03.2017,ADULT SOCIAL CARE,HC-ONE LTD (TOWER BRIDGE CARE HOME),"2,372.40", OP CARE PACKAGES,NURSING PLACEMENTS FEES,2102638930
07.03.2017,ADULT SOCIAL CARE,HC-ONE LTD (TOWER BRIDGE CARE HOME),"2,372.40", OP CARE PACKAGES,NURSING PLACEMENTS FEES,2102639004
07.03.2017,ADULT SOCIAL CARE,HC-ONE LTD (TOWER BRIDGE CARE HOME),"2,372.40", OP CARE PACKAGES,NURSING PLACEMENTS FEES,2102639048
07.03.2017,ADULT SOCIAL CARE,HC-ONE LTD (TOWER BRIDGE CARE HOME),"2,372.40", OP CARE PACKAGES,NURSING PLACEMENTS FEES,2102639122
07.03.2017,ADULT SOCIAL CARE,HC-ONE LTD (TOWER BRIDGE CARE HOME),"2,372.40", OP CARE PACKAGES,NURSING PLACEMENTS FEES,2102639167
07.03.2017,ADULT SOCIAL CARE,HC-ONE LTD (TOWER BRIDGE CARE HOME),"2,384.76", OP CARE PACKAGES,NURSING PLACEMENTS FEES,2102638912
07.03.2017,ADULT SOCIAL CARE,HC-ONE LTD (TOWER BRIDGE CARE HOME),"2,384.76", OP CARE PACKAGES,NURSING PLACEMENTS FEES,2102638922
07.03.2017,ADULT SOCIAL CARE,HC-ONE LTD (TOWER BRIDGE CARE HOME),"2,384.76", OP CARE PACKAGES,NURSING PLACEMENTS FEES,2102638940
07.03.2017,ADULT SOCIAL CARE,HC-ONE LTD (TOWER BRIDGE CARE HOME),"2,384.76", OP CARE PACKAGES,NURSING PLACEMENTS FEES,2102639031
07.03.2017,ADULT SOCIAL CARE,HC-ONE LTD (TOWER BRIDGE CARE HOME),"2,384.76", OP CARE PACKAGES,NURSING PLACEMENTS FEES,2102639040
07.03.2017,ADULT SOCIAL CARE,HC-ONE LTD (TOWER BRIDGE CARE HOME),"2,384.76", OP CARE PACKAGES,NURSING PLACEMENTS FEES,2102639057
07.03.2017,ADULT SOCIAL CARE,HC-ONE LTD (TOWER BRIDGE CARE HOME),"2,384.76", OP CARE PACKAGES,NURSING PLACEMENTS FEES,2102639149
07.03.2017,ADULT SOCIAL CARE,HC-ONE LTD (TOWER BRIDGE CARE HOME),"2,384.76", OP CARE PACKAGES,NURSING PLACEMENTS FEES,2102639159
07.03.2017,ADULT SOCIAL CARE,HC-ONE LTD (TOWER BRIDGE CARE HOME),"2,384.76", OP CARE PACKAGES,NURSING PLACEMENTS FEES,2102639176
07.03.2017,ADULT SOCIAL CARE,HC-ONE LTD (TOWER BRIDGE CARE HOME),"-8,435.28", OP CARE PACKAGES,RESIDENTIAL CARE,2102639229
07.03.2017,ADULT SOCIAL CARE,HC-ONE LTD (TOWER BRIDGE CARE HOME),"-6,857.04", OP CARE PACKAGES,RESIDENTIAL CARE,2102639215
07.03.2017,ADULT SOCIAL CARE,HC-ONE LTD (TOWER BRIDGE CARE HOME),"-6,690.00", OP CARE PACKAGES,RESIDENTIAL CARE,2102639316
07.03.2017,ADULT SOCIAL CARE,HC-ONE LTD (TOWER BRIDGE CARE HOME),"-6,602.64", OP CARE PACKAGES,RESIDENTIAL CARE,2102639258
07.03.2017,ADULT SOCIAL CARE,HC-ONE LTD (TOWER BRIDGE CARE HOME),"-6,340.20", OP CARE PACKAGES,RESIDENTIAL CARE,2102639232
07.03.2017,ADULT SOCIAL CARE,HC-ONE LTD (TOWER BRIDGE CARE HOME),"-6,340.20", OP CARE PACKAGES,RESIDENTIAL CARE,2102639314
07.03.2017,ADULT SOCIAL CARE,HC-ONE LTD (TOWER BRIDGE CARE HOME),"-6,239.40", OP CARE PACKAGES,RESIDENTIAL CARE,2102639246
07.03.2017,ADULT SOCIAL CARE,HC-ONE LTD (TOWER BRIDGE CARE HOME),"2,079.80", OP CARE PACKAGES,RESIDENTIAL CARE,2102638890
07.03.2017,ADULT SOCIAL CARE,HC-ONE LTD (TOWER BRIDGE CARE HOME),"2,079.80", OP CARE PACKAGES,RESIDENTIAL CARE,2102639009
07.03.2017,ADULT SOCIAL CARE,HC-ONE LTD (TOWER BRIDGE CARE HOME),"2,079.80", OP CARE PACKAGES,RESIDENTIAL CARE,2102639127
07.03.2017,ADULT SOCIAL CARE,HC-ONE LTD (TOWER BRIDGE CARE HOME),"2,113.40", OP CARE PACKAGES,RESIDENTIAL CARE,2102638876
07.03.2017,ADULT SOCIAL CARE,HC-ONE LTD (TOWER BRIDGE CARE HOME),"2,113.40", OP CARE PACKAGES,RESIDENTIAL CARE,2102638961
07.03.2017,ADULT SOCIAL CARE,HC-ONE LTD (TOWER BRIDGE CARE HOME),"2,113.40", OP CARE PACKAGES,RESIDENTIAL CARE,2102638995
07.03.2017,ADULT SOCIAL CARE,HC-ONE LTD (TOWER BRIDGE CARE HOME),"2,113.40", OP CARE PACKAGES,RESIDENTIAL CARE,2102639079
07.03.2017,ADULT SOCIAL CARE,HC-ONE LTD (TOWER BRIDGE CARE HOME),"2,113.40", OP CARE PACKAGES,RESIDENTIAL CARE,2102639113
07.03.2017,ADULT SOCIAL CARE,HC-ONE LTD (TOWER BRIDGE CARE HOME),"2,113.40", OP CARE PACKAGES,RESIDENTIAL CARE,2102639198
07.03.2017,ADULT SOCIAL CARE,HC-ONE LTD (TOWER BRIDGE CARE HOME),"2,200.88", OP CARE PACKAGES,RESIDENTIAL CARE,2102638902
07.03.2017,ADULT SOCIAL CARE,HC-ONE LTD (TOWER BRIDGE CARE HOME),"2,200.88", OP CARE PACKAGES,RESIDENTIAL CARE,2102639021
07.03.2017,ADULT SOCIAL CARE,HC-ONE LTD (TOWER BRIDGE CARE HOME),"2,200.88", OP CARE PACKAGES,RESIDENTIAL CARE,2102639139
07.03.2017,ADULT SOCIAL CARE,HC-ONE LTD (TOWER BRIDGE CARE HOME),"2,230.00", OP CARE PACKAGES,RESIDENTIAL CARE,2102638963
07.03.2017,ADULT SOCIAL CARE,HC-ONE LTD (TOWER BRIDGE CARE HOME),"2,230.00", OP CARE PACKAGES,RESIDENTIAL CARE,2102639081
07.03.2017,ADULT SOCIAL CARE,HC-ONE LTD (TOWER BRIDGE CARE HOME),"2,230.00", OP CARE PACKAGES,RESIDENTIAL CARE,2102639200
07.03.2017,ADULT SOCIAL CARE,HC-ONE LTD (TOWER BRIDGE CARE HOME),"2,285.68", OP CARE PACKAGES,RESIDENTIAL CARE,2102638859
07.03.2017,ADULT SOCIAL CARE,HC-ONE LTD (TOWER BRIDGE CARE HOME),"2,285.68", OP CARE PACKAGES,RESIDENTIAL CARE,2102638978
07.03.2017,ADULT SOCIAL CARE,HC-ONE LTD (TOWER BRIDGE CARE HOME),"2,285.68", OP CARE PACKAGES,RESIDENTIAL CARE,2102639096
07.03.2017,ADULT SOCIAL CARE,HC-ONE LTD (TOWER BRIDGE CARE HOME),"2,811.76", OP CARE PACKAGES,RESIDENTIAL CARE,2102638873
07.03.2017,ADULT SOCIAL CARE,HC-ONE LTD (TOWER BRIDGE CARE HOME),"2,811.76", OP CARE PACKAGES,RESIDENTIAL CARE,2102638992
07.03.2017,ADULT SOCIAL CARE,HC-ONE LTD (TOWER BRIDGE CARE HOME),"2,811.76", OP CARE PACKAGES,RESIDENTIAL CARE,2102639110
07.03.2017,ADULT SOCIAL CARE,WESTMINSTER HOMECARE LTD,713.12, OP CARE PACKAGES,HOMECARE - SPOT,2102638586
07.03.2017,ADULT SOCIAL CARE,WESTMINSTER HOMECARE LTD,"1,132.52", OP CARE PACKAGES,HOMECARE - SPOT,2102638618
07.03.2017,ADULT SOCIAL CARE,REDACTED PERSONAL DATA,600,APPOINTEESHIPS,OTHER PAYMENTS FOR CLIENTS,5902240130
07.03.2017,ADULT SOCIAL CARE,WESTMINSTER HOMECARE LTD,489.44,HOME CARE C&V,HOMECARE - SPOT,2102638628
07.03.2017,ADULT SOCIAL CARE,WESTMINSTER HOMECARE LTD,"1,083.45",HOME CARE C&V,HOMECARE - SPOT,2102638640
07.03.2017,ADULT SOCIAL CARE,WESTMINSTER HOMECARE LTD,629.1,JOINT PACK'S SPOT,HOMECARE - SPOT,2102638612
07.03.2017,ADULT SOCIAL CARE,BRANDON TRUST,481.06,LD LTS 18-64,OTHER PAYMENTS FOR CLIENTS,2102638615
07.03.2017,ADULT SOCIAL CARE,BRANDON TRUST,608,LD LTS 18-64,OTHER PAYMENTS FOR CLIENTS,2102638580
07.03.2017,ADULT SOCIAL CARE,BRANDON TRUST,912,LD LTS 18-64,OTHER PAYMENTS FOR CLIENTS,2102638571
07.03.2017,ADULT SOCIAL CARE,BRANDON TRUST,912,LD LTS 18-64,OTHER PAYMENTS FOR CLIENTS,2102638611
07.03.2017,ADULT SOCIAL CARE,BRANDON TRUST,986.28,LD LTS 18-64,OTHER PAYMENTS FOR CLIENTS,2102638619
07.03.2017,ADULT SOCIAL CARE,BRANDON TRUST,986.29,LD LTS 18-64,OTHER PAYMENTS FOR CLIENTS,2102638591
07.03.2017,ADULT SOCIAL CARE,BRANDON TRUST,430,LD LTS 18-64,RESIDENTIAL CARE,2102638577
07.03.2017,ADULT SOCIAL CARE,BRANDON TRUST,645,LD LTS 18-64,RESIDENTIAL CARE,2102638568
07.03.2017,ADULT SOCIAL CARE,BRANDON TRUST,645,LD LTS 18-64,RESIDENTIAL CARE,2102638593
07.03.2017,ADULT SOCIAL CARE,BRANDON TRUST,645,LD LTS 18-64,RESIDENTIAL CARE,2102638599
07.03.2017,ADULT SOCIAL CARE,BRANDON TRUST,645,LD LTS 18-64,RESIDENTIAL CARE,2102638601
07.03.2017,ADULT SOCIAL CARE,BRANDON TRUST,645,LD LTS 18-64,RESIDENTIAL CARE,2102638609
07.03.2017,ADULT SOCIAL CARE,BRANDON TRUST,645,LD LTS 18-64,RESIDENTIAL CARE,2102638613
07.03.2017,ADULT SOCIAL CARE,BRANDON TRUST,860,LD LTS 18-64,RESIDENTIAL CARE,2102638560
07.03.2017,ADULT SOCIAL CARE,BRANDON TRUST,860,LD LTS 18-64,RESIDENTIAL CARE,2102638574
07.03.2017,ADULT SOCIAL CARE,BRANDON TRUST,860,LD LTS 18-64,RESIDENTIAL CARE,2102638583
07.03.2017,ADULT SOCIAL CARE,BRANDON TRUST,860,LD LTS 18-64,RESIDENTIAL CARE,2102638605
07.03.2017,ADULT SOCIAL CARE,BRANDON TRUST,860,LD LTS 18-64,RESIDENTIAL CARE,2102638621
07.03.2017,ADULT SOCIAL CARE,BRANDON TRUST,860,LD LTS 18-64,RESIDENTIAL CARE,2102638623
07.03.2017,ADULT SOCIAL CARE,BRANDON TRUST,"1,505.00",LD LTS 18-64,RESIDENTIAL CARE,2102638625
07.03.2017,ADULT SOCIAL CARE,BRANDON TRUST,"1,965.71",LD LTS 18-64,RESIDENTIAL CARE,2102638588
07.03.2017,ADULT SOCIAL CARE,BRANDON TRUST,"1,965.72",LD LTS 18-64,RESIDENTIAL CARE,2102638617
07.03.2017,ADULT SOCIAL CARE,HEALTHCARE & TRANSPORT SERVICE,258,LD LTS 18-64,CLIENT TRANSPORT,2102638747
07.03.2017,ADULT SOCIAL CARE,HEALTHCARE & TRANSPORT SERVICE,450,LD LTS 18-64,CLIENT TRANSPORT,2102638730
07.03.2017,ADULT SOCIAL CARE,HEALTHCARE & TRANSPORT SERVICE,650,LD LTS 18-64,CLIENT TRANSPORT,2102638746
07.03.2017,ADULT SOCIAL CARE,HEALTHCARE & TRANSPORT SERVICE,711,LD LTS 18-64,CLIENT TRANSPORT,2102638729
07.03.2017,ADULT SOCIAL CARE,PLUS SERVICES,800.16,LD LTS 18-64,SUPPORTED LIVING,2102638745
07.03.2017,ADULT SOCIAL CARE,THREE C'S SUPPORT,360.2,LD LTS 18-64,SUPPORTED LIVING,2102638728
07.03.2017,ADULT SOCIAL CARE,THREE C'S SUPPORT,411.6,LD LTS 18-64,SUPPORTED LIVING,2102638725
07.03.2017,ADULT SOCIAL CARE,THREE C'S SUPPORT,445.8,LD LTS 18-64,SUPPORTED LIVING,2102638724
07.03.2017,ADULT SOCIAL CARE,THREE C'S SUPPORT,540.3,LD LTS 18-64,SUPPORTED LIVING,2102638749
07.03.2017,ADULT SOCIAL CARE,THREE C'S SUPPORT,583.29,LD LTS 18-64,SUPPORTED LIVING,2102638739
07.03.2017,ADULT SOCIAL CARE,THREE C'S SUPPORT,594.5,LD LTS 18-64,SUPPORTED LIVING,2102638742
07.03.2017,ADULT SOCIAL CARE,THREE C'S SUPPORT,688.36,LD LTS 18-64,SUPPORTED LIVING,2102638720
07.03.2017,ADULT SOCIAL CARE,WALWORTH GARDEN FARM,250.15,LD LTS 18-64,DAYCARE,2102638750
07.03.2017,ADULT SOCIAL CARE,REDACTED PERSONAL DATA,"1,125.00",LD LTS 18-64,SUPPORTED LIVING,2102638752
07.03.2017,ADULT SOCIAL CARE,BRANDON TRUST,430,LD LTS 65+,RESIDENTIAL CARE,2102638565
07.03.2017,ADULT SOCIAL CARE,THREE C'S SUPPORT,949.28,LD LTS 65+,SUPPORTED LIVING,2102638719
07.03.2017,ADULT SOCIAL CARE,WESTMINSTER HOMECARE LTD,258.67,MEM LTS 65+,HOMECARE - SPOT,2102638777
07.03.2017,ADULT SOCIAL CARE,WESTMINSTER HOMECARE LTD,447.46,MEM LTS 65+,HOMECARE - SPOT,2102638835
07.03.2017,ADULT SOCIAL CARE,WESTMINSTER HOMECARE LTD,604.85,MEM LTS 65+,HOMECARE - SPOT,2102638822
07.03.2017,ADULT SOCIAL CARE,WESTMINSTER HOMECARE LTD,755.08,MEM LTS 65+,HOMECARE - SPOT,2102638843
07.03.2017,ADULT SOCIAL CARE,WESTMINSTER HOMECARE LTD,782.88,MEM LTS 65+,HOMECARE - SPOT,2102638841
07.03.2017,ADULT SOCIAL CARE,WESTMINSTER HOMECARE LTD,964.62,MEM LTS 65+,HOMECARE - SPOT,2102638834
07.03.2017,ADULT SOCIAL CARE,WESTMINSTER HOMECARE LTD,381.09,MH LTS 65+,HOMECARE - SPOT,2102638840
07.03.2017,ADULT SOCIAL CARE,WESTMINSTER HOMECARE LTD,664.28,MH LTS 65+,HOMECARE - SPOT,2102638772
07.03.2017,ADULT SOCIAL CARE,WESTMINSTER HOMECARE LTD,737.1,MH LTS 65+,HOMECARE - SPOT,2102638821
07.03.2017,ADULT SOCIAL CARE,WESTMINSTER HOMECARE LTD,251.64,OP - HOMECARE,HOMECARE - SPOT,2102638575
07.03.2017,ADULT SOCIAL CARE,WESTMINSTER HOMECARE LTD,279.6,OP - HOMECARE,HOMECARE - SPOT,2102638581
07.03.2017,ADULT SOCIAL CARE,WESTMINSTER HOMECARE LTD,391.44,OP - HOMECARE,HOMECARE - SPOT,2102638567
07.03.2017,ADULT SOCIAL CARE,WESTMINSTER HOMECARE LTD,510.36,OP - HOMECARE,HOMECARE - SPOT,2102638634
07.03.2017,ADULT SOCIAL CARE,WESTMINSTER HOMECARE LTD,601.28,OP - HOMECARE,HOMECARE - SPOT,2102638622
07.03.2017,ADULT SOCIAL CARE,WESTMINSTER HOMECARE LTD,657.12,OP - HOMECARE,HOMECARE - SPOT,2102638620
07.03.2017,ADULT SOCIAL CARE,WESTMINSTER HOMECARE LTD,664.34,OP - HOMECARE,HOMECARE - SPOT,2102638616
07.03.2017,ADULT SOCIAL CARE,WESTMINSTER HOMECARE LTD,699,OP - HOMECARE,HOMECARE - SPOT,2102638636
07.03.2017,ADULT SOCIAL CARE,WESTMINSTER HOMECARE LTD,741.08,OP - HOMECARE,HOMECARE - SPOT,2102638606
07.03.2017,ADULT SOCIAL CARE,WESTMINSTER HOMECARE LTD,797,OP - HOMECARE,HOMECARE - SPOT,2102638630
07.03.2017,ADULT SOCIAL CARE,WESTMINSTER HOMECARE LTD,824.96,OP - HOMECARE,HOMECARE - SPOT,2102638600
07.03.2017,ADULT SOCIAL CARE,WESTMINSTER HOMECARE LTD,852.78,OP - HOMECARE,HOMECARE - SPOT,2102638592
07.03.2017,ADULT SOCIAL CARE,WESTMINSTER HOMECARE LTD,880.88,OP - HOMECARE,HOMECARE - SPOT,2102638642
07.03.2017,ADULT SOCIAL CARE,WESTMINSTER HOMECARE LTD,"1,160.48",OP - HOMECARE,HOMECARE - SPOT,2102638604
07.03.2017,ADULT SOCIAL CARE,WESTMINSTER HOMECARE LTD,"1,202.28",OP - HOMECARE,HOMECARE - SPOT,2102638624
07.03.2017,ADULT SOCIAL CARE,WESTMINSTER HOMECARE LTD,"1,258.20",OP - HOMECARE,HOMECARE - SPOT,2102638614
07.03.2017,ADULT SOCIAL CARE,WESTMINSTER HOMECARE LTD,"1,831.94",OP - HOMECARE,HOMECARE - SPOT,2102638573
07.03.2017,ADULT SOCIAL CARE,WESTMINSTER HOMECARE LTD,"2,055.20",OP - HOMECARE,HOMECARE - SPOT,2102638578
07.03.2017,ADULT SOCIAL CARE,WESTMINSTER HOMECARE LTD,"2,317.46",OP - HOMECARE,HOMECARE - SPOT,2102638608
07.03.2017,ADULT SOCIAL CARE,HC-ONE LTD (TOWER BRIDGE CARE HOME),"-3,248.83",OP - NURSING,"MAND STATUTORY CHARGES, NURSING",2102639071
07.03.2017,ADULT SOCIAL CARE,HC-ONE LTD (TOWER BRIDGE CARE HOME),"-1,278.80",OP - NURSING,"MAND STATUTORY CHARGES, NURSING",2102638968
07.03.2017,ADULT SOCIAL CARE,HC-ONE LTD (TOWER BRIDGE CARE HOME),"-1,147.64",OP - NURSING,"MAND STATUTORY CHARGES, NURSING",2102638960
07.03.2017,ADULT SOCIAL CARE,HC-ONE LTD (TOWER BRIDGE CARE HOME),"-1,147.64",OP - NURSING,"MAND STATUTORY CHARGES, NURSING",2102639078
07.03.2017,ADULT SOCIAL CARE,HC-ONE LTD (TOWER BRIDGE CARE HOME),"-1,147.64",OP - NURSING,"MAND STATUTORY CHARGES, NURSING",2102639197
07.03.2017,ADULT SOCIAL CARE,HC-ONE LTD (TOWER BRIDGE CARE HOME),"-1,091.57",OP - NURSING,"MAND STATUTORY CHARGES, NURSING",2102638915
07.03.2017,ADULT SOCIAL CARE,HC-ONE LTD (TOWER BRIDGE CARE HOME),"-1,041.57",OP - NURSING,"MAND STATUTORY CHARGES, NURSING",2102638950
07.03.2017,ADULT SOCIAL CARE,HC-ONE LTD (TOWER BRIDGE CARE HOME),-862.52,OP - NURSING,"MAND STATUTORY CHARGES, NURSING",2102638901
07.03.2017,ADULT SOCIAL CARE,HC-ONE LTD (TOWER BRIDGE CARE HOME),-862.52,OP - NURSING,"MAND STATUTORY CHARGES, NURSING",2102639020
07.03.2017,ADULT SOCIAL CARE,HC-ONE LTD (TOWER BRIDGE CARE HOME),-862.52,OP - NURSING,"MAND STATUTORY CHARGES, NURSING",2102639138
07.03.2017,ADULT SOCIAL CARE,HC-ONE LTD (TOWER BRIDGE CARE HOME),-829.6,OP - NURSING,"MAND STATUTORY CHARGES, NURSING",2102638905
07.03.2017,ADULT SOCIAL CARE,HC-ONE LTD (TOWER BRIDGE CARE HOME),-829.6,OP - NURSING,"MAND STATUTORY CHARGES, NURSING",2102639024
07.03.2017,ADULT SOCIAL CARE,HC-ONE LTD (TOWER BRIDGE CARE HOME),-829.6,OP - NURSING,"MAND STATUTORY CHARGES, NURSING",2102639142
07.03.2017,ADULT SOCIAL CARE,HC-ONE LTD (TOWER BRIDGE CARE HOME),-715.44,OP - NURSING,"MAND STATUTORY CHARGES, NURSING",2102638894
07.03.2017,ADULT SOCIAL CARE,HC-ONE LTD (TOWER BRIDGE CARE HOME),-715.44,OP - NURSING,"MAND STATUTORY CHARGES, NURSING",2102639013
07.03.2017,ADULT SOCIAL CARE,HC-ONE LTD (TOWER BRIDGE CARE HOME),-715.44,OP - NURSING,"MAND STATUTORY CHARGES, NURSING",2102639131
07.03.2017,ADULT SOCIAL CARE,HC-ONE LTD (TOWER BRIDGE CARE HOME),-707.76,OP - NURSING,"MAND STATUTORY CHARGES, NURSING",2102639067
07.03.2017,ADULT SOCIAL CARE,HC-ONE LTD (TOWER BRIDGE CARE HOME),-707.76,OP - NURSING,"MAND STATUTORY CHARGES, NURSING",2102639186
07.03.2017,ADULT SOCIAL CARE,HC-ONE LTD (TOWER BRIDGE CARE HOME),-652.24,OP - NURSING,"MAND STATUTORY CHARGES, NURSING",2102638898
07.03.2017,ADULT SOCIAL CARE,HC-ONE LTD (TOWER BRIDGE CARE HOME),-652.24,OP - NURSING,"MAND STATUTORY CHARGES, NURSING",2102639017
07.03.2017,ADULT SOCIAL CARE,HC-ONE LTD (TOWER BRIDGE CARE HOME),-652.24,OP - NURSING,"MAND STATUTORY CHARGES, NURSING",2102639135
07.03.2017,ADULT SOCIAL CARE,HC-ONE LTD (TOWER BRIDGE CARE HOME),-619,OP - NURSING,"MAND STATUTORY CHARGES, NURSING",2102638920
07.03.2017,ADULT SOCIAL CARE,HC-ONE LTD (TOWER BRIDGE CARE HOME),-619,OP - NURSING,"MAND STATUTORY CHARGES, NURSING",2102639038
07.03.2017,ADULT SOCIAL CARE,HC-ONE LTD (TOWER BRIDGE CARE HOME),-619,OP - NURSING,"MAND STATUTORY CHARGES, NURSING",2102639156
07.03.2017,ADULT SOCIAL CARE,HC-ONE LTD (TOWER BRIDGE CARE HOME),-616.4,OP - NURSING,"MAND STATUTORY CHARGES, NURSING",2102638857
07.03.2017,ADULT SOCIAL CARE,HC-ONE LTD (TOWER BRIDGE CARE HOME),-616.4,OP - NURSING,"MAND STATUTORY CHARGES, NURSING",2102638976
07.03.2017,ADULT SOCIAL CARE,HC-ONE LTD (TOWER BRIDGE CARE HOME),-616.4,OP - NURSING,"MAND STATUTORY CHARGES, NURSING",2102639094
07.03.2017,ADULT SOCIAL CARE,HC-ONE LTD (TOWER BRIDGE CARE HOME),-582.36,OP - NURSING,"MAND STATUTORY CHARGES, NURSING",2102638896
07.03.2017,ADULT SOCIAL CARE,HC-ONE LTD (TOWER BRIDGE CARE HOME),-582.36,OP - NURSING,"MAND STATUTORY CHARGES, NURSING",2102639015
07.03.2017,ADULT SOCIAL CARE,HC-ONE LTD (TOWER BRIDGE CARE HOME),-582.36,OP - NURSING,"MAND STATUTORY CHARGES, NURSING",2102639133
07.03.2017,ADULT SOCIAL CARE,HC-ONE LTD (TOWER BRIDGE CARE HOME),-572.92,OP - NURSING,"MAND STATUTORY CHARGES, NURSING",2102638918
07.03.2017,ADULT SOCIAL CARE,HC-ONE LTD (TOWER BRIDGE CARE HOME),-572.92,OP - NURSING,"MAND STATUTORY CHARGES, NURSING",2102639036
07.03.2017,ADULT SOCIAL CARE,HC-ONE LTD (TOWER BRIDGE CARE HOME),-572.92,OP - NURSING,"MAND STATUTORY CHARGES, NURSING",2102639154
07.03.2017,ADULT SOCIAL CARE,HC-ONE LTD (TOWER BRIDGE CARE HOME),-527.24,OP - NURSING,"MAND STATUTORY CHARGES, NURSING",2102639086
07.03.2017,ADULT SOCIAL CARE,HC-ONE LTD (TOWER BRIDGE CARE HOME),-527.24,OP - NURSING,"MAND STATUTORY CHARGES, NURSING",2102639205
07.03.2017,ADULT SOCIAL CARE,HC-ONE LTD (TOWER BRIDGE CARE HOME),-522.8,OP - NURSING,"MAND STATUTORY CHARGES, NURSING",2102638884
07.03.2017,ADULT SOCIAL CARE,HC-ONE LTD (TOWER BRIDGE CARE HOME),-522.8,OP - NURSING,"MAND STATUTORY CHARGES, NURSING",2102638911
07.03.2017,ADULT SOCIAL CARE,HC-ONE LTD (TOWER BRIDGE CARE HOME),-522.8,OP - NURSING,"MAND STATUTORY CHARGES, NURSING",2102638927
07.03.2017,ADULT SOCIAL CARE,HC-ONE LTD (TOWER BRIDGE CARE HOME),-522.8,OP - NURSING,"MAND STATUTORY CHARGES, NURSING",2102638942
07.03.2017,ADULT SOCIAL CARE,HC-ONE LTD (TOWER BRIDGE CARE HOME),-522.8,OP - NURSING,"MAND STATUTORY CHARGES, NURSING",2102638948
07.03.2017,ADULT SOCIAL CARE,HC-ONE LTD (TOWER BRIDGE CARE HOME),-522.8,OP - NURSING,"MAND STATUTORY CHARGES, NURSING",2102638955
07.03.2017,ADULT SOCIAL CARE,HC-ONE LTD (TOWER BRIDGE CARE HOME),-522.8,OP - NURSING,"MAND STATUTORY CHARGES, NURSING",2102638957
07.03.2017,ADULT SOCIAL CARE,HC-ONE LTD (TOWER BRIDGE CARE HOME),-522.8,OP - NURSING,"MAND STATUTORY CHARGES, NURSING",2102639003
07.03.2017,ADULT SOCIAL CARE,HC-ONE LTD (TOWER BRIDGE CARE HOME),-522.8,OP - NURSING,"MAND STATUTORY CHARGES, NURSING",2102639030
07.03.2017,ADULT SOCIAL CARE,HC-ONE LTD (TOWER BRIDGE CARE HOME),-522.8,OP - NURSING,"MAND STATUTORY CHARGES, NURSING",2102639045
07.03.2017,ADULT SOCIAL CARE,HC-ONE LTD (TOWER BRIDGE CARE HOME),-522.8,OP - NURSING,"MAND STATUTORY CHARGES, NURSING",2102639059
07.03.2017,ADULT SOCIAL CARE,HC-ONE LTD (TOWER BRIDGE CARE HOME),-522.8,OP - NURSING,"MAND STATUTORY CHARGES, NURSING",2102639065
07.03.2017,ADULT SOCIAL CARE,HC-ONE LTD (TOWER BRIDGE CARE HOME),-522.8,OP - NURSING,"MAND STATUTORY CHARGES, NURSING",2102639073
07.03.2017,ADULT SOCIAL CARE,HC-ONE LTD (TOWER BRIDGE CARE HOME),-522.8,OP - NURSING,"MAND STATUTORY CHARGES, NURSING",2102639075
07.03.2017,ADULT SOCIAL CARE,HC-ONE LTD (TOWER BRIDGE CARE HOME),-522.8,OP - NURSING,"MAND STATUTORY CHARGES, NURSING",2102639121
07.03.2017,ADULT SOCIAL CARE,HC-ONE LTD (TOWER BRIDGE CARE HOME),-522.8,OP - NURSING,"MAND STATUTORY CHARGES, NURSING",2102639148
07.03.2017,ADULT SOCIAL CARE,HC-ONE LTD (TOWER BRIDGE CARE HOME),-522.8,OP - NURSING,"MAND STATUTORY CHARGES, NURSING",2102639164
07.03.2017,ADULT SOCIAL CARE,HC-ONE LTD (TOWER BRIDGE CARE HOME),-522.8,OP - NURSING,"MAND STATUTORY CHARGES, NURSING",2102639178
07.03.2017,ADULT SOCIAL CARE,HC-ONE LTD (TOWER BRIDGE CARE HOME),-522.8,OP - NURSING,"MAND STATUTORY CHARGES, NURSING",2102639184
07.03.2017,ADULT SOCIAL CARE,HC-ONE LTD (TOWER BRIDGE CARE HOME),-522.8,OP - NURSING,"MAND STATUTORY CHARGES, NURSING",2102639192
07.03.2017,ADULT SOCIAL CARE,HC-ONE LTD (TOWER BRIDGE CARE HOME),-522.8,OP - NURSING,"MAND STATUTORY CHARGES, NURSING",2102639194
07.03.2017,ADULT SOCIAL CARE,HC-ONE LTD (TOWER BRIDGE CARE HOME),-517.6,OP - NURSING,"MAND STATUTORY CHARGES, NURSING",2102638878
07.03.2017,ADULT SOCIAL CARE,HC-ONE LTD (TOWER BRIDGE CARE HOME),-517.6,OP - NURSING,"MAND STATUTORY CHARGES, NURSING",2102638997
07.03.2017,ADULT SOCIAL CARE,HC-ONE LTD (TOWER BRIDGE CARE HOME),-517.6,OP - NURSING,"MAND STATUTORY CHARGES, NURSING",2102639115
07.03.2017,ADULT SOCIAL CARE,HC-ONE LTD (TOWER BRIDGE CARE HOME),-517.24,OP - NURSING,"MAND STATUTORY CHARGES, NURSING",2102638855
07.03.2017,ADULT SOCIAL CARE,HC-ONE LTD (TOWER BRIDGE CARE HOME),-517.24,OP - NURSING,"MAND STATUTORY CHARGES, NURSING",2102638974
07.03.2017,ADULT SOCIAL CARE,HC-ONE LTD (TOWER BRIDGE CARE HOME),-517.24,OP - NURSING,"MAND STATUTORY CHARGES, NURSING",2102639092
07.03.2017,ADULT SOCIAL CARE,HC-ONE LTD (TOWER BRIDGE CARE HOME),-505.2,OP - NURSING,"MAND STATUTORY CHARGES, NURSING",2102638853
07.03.2017,ADULT SOCIAL CARE,HC-ONE LTD (TOWER BRIDGE CARE HOME),-505.2,OP - NURSING,"MAND STATUTORY CHARGES, NURSING",2102638972
07.03.2017,ADULT SOCIAL CARE,HC-ONE LTD (TOWER BRIDGE CARE HOME),-505.2,OP - NURSING,"MAND STATUTORY CHARGES, NURSING",2102639090
07.03.2017,ADULT SOCIAL CARE,HC-ONE LTD (TOWER BRIDGE CARE HOME),"1,045.60",OP - NURSING,"MAND STATUTORY CHARGES, NURSING",2102639190
07.03.2017,ADULT SOCIAL CARE,HC-ONE LTD (TOWER BRIDGE CARE HOME),"1,515.60",OP - NURSING,"MAND STATUTORY CHARGES, NURSING",2102639209
07.03.2017,ADULT SOCIAL CARE,HC-ONE LTD (TOWER BRIDGE CARE HOME),"1,551.72",OP - NURSING,"MAND STATUTORY CHARGES, NURSING",2102639211
07.03.2017,ADULT SOCIAL CARE,HC-ONE LTD (TOWER BRIDGE CARE HOME),"1,552.80",OP - NURSING,"MAND STATUTORY CHARGES, NURSING",2102639234
07.03.2017,ADULT SOCIAL CARE,HC-ONE LTD (TOWER BRIDGE CARE HOME),"1,568.40",OP - NURSING,"MAND STATUTORY CHARGES, NURSING",2102639240
07.03.2017,ADULT SOCIAL CARE,HC-ONE LTD (TOWER BRIDGE CARE HOME),"1,568.40",OP - NURSING,"MAND STATUTORY CHARGES, NURSING",2102639267
07.03.2017,ADULT SOCIAL CARE,HC-ONE LTD (TOWER BRIDGE CARE HOME),"1,568.40",OP - NURSING,"MAND STATUTORY CHARGES, NURSING",2102639282
07.03.2017,ADULT SOCIAL CARE,HC-ONE LTD (TOWER BRIDGE CARE HOME),"1,568.40",OP - NURSING,"MAND STATUTORY CHARGES, NURSING",2102639296
07.03.2017,ADULT SOCIAL CARE,HC-ONE LTD (TOWER BRIDGE CARE HOME),"1,568.40",OP - NURSING,"MAND STATUTORY CHARGES, NURSING",2102639302
07.03.2017,ADULT SOCIAL CARE,HC-ONE LTD (TOWER BRIDGE CARE HOME),"1,568.40",OP - NURSING,"MAND STATUTORY CHARGES, NURSING",2102639308
07.03.2017,ADULT SOCIAL CARE,HC-ONE LTD (TOWER BRIDGE CARE HOME),"1,568.40",OP - NURSING,"MAND STATUTORY CHARGES, NURSING",2102639310
07.03.2017,ADULT SOCIAL CARE,HC-ONE LTD (TOWER BRIDGE CARE HOME),"1,581.72",OP - NURSING,"MAND STATUTORY CHARGES, NURSING",2102639321
07.03.2017,ADULT SOCIAL CARE,HC-ONE LTD (TOWER BRIDGE CARE HOME),"1,718.76",OP - NURSING,"MAND STATUTORY CHARGES, NURSING",2102639273
07.03.2017,ADULT SOCIAL CARE,HC-ONE LTD (TOWER BRIDGE CARE HOME),"1,747.08",OP - NURSING,"MAND STATUTORY CHARGES, NURSING",2102639252
07.03.2017,ADULT SOCIAL CARE,HC-ONE LTD (TOWER BRIDGE CARE HOME),"1,849.20",OP - NURSING,"MAND STATUTORY CHARGES, NURSING",2102639213
07.03.2017,ADULT SOCIAL CARE,HC-ONE LTD (TOWER BRIDGE CARE HOME),"1,857.00",OP - NURSING,"MAND STATUTORY CHARGES, NURSING",2102639275
07.03.2017,ADULT SOCIAL CARE,HC-ONE LTD (TOWER BRIDGE CARE HOME),"1,956.72",OP - NURSING,"MAND STATUTORY CHARGES, NURSING",2102639254
07.03.2017,ADULT SOCIAL CARE,HC-ONE LTD (TOWER BRIDGE CARE HOME),"2,004.22",OP - NURSING,"MAND STATUTORY CHARGES, NURSING",2102639304
07.03.2017,ADULT SOCIAL CARE,HC-ONE LTD (TOWER BRIDGE CARE HOME),"2,146.32",OP - NURSING,"MAND STATUTORY CHARGES, NURSING",2102639250
07.03.2017,ADULT SOCIAL CARE,HC-ONE LTD (TOWER BRIDGE CARE HOME),"2,488.80",OP - NURSING,"MAND STATUTORY CHARGES, NURSING",2102639261
07.03.2017,ADULT SOCIAL CARE,HC-ONE LTD (TOWER BRIDGE CARE HOME),"2,587.56",OP - NURSING,"MAND STATUTORY CHARGES, NURSING",2102639257
07.03.2017,ADULT SOCIAL CARE,HC-ONE LTD (TOWER BRIDGE CARE HOME),"3,442.92",OP - NURSING,"MAND STATUTORY CHARGES, NURSING",2102639313
07.03.2017,ADULT SOCIAL CARE,HC-ONE LTD (TOWER BRIDGE CARE HOME),"-7,530.66",OP - NURSING,NURSING PLACEMENTS FEES,2102639270
07.03.2017,ADULT SOCIAL CARE,HC-ONE LTD (TOWER BRIDGE CARE HOME),"-7,159.44",OP - NURSING,NURSING PLACEMENTS FEES,2102639217
07.03.2017,ADULT SOCIAL CARE,HC-ONE LTD (TOWER BRIDGE CARE HOME),"-7,159.44",OP - NURSING,NURSING PLACEMENTS FEES,2102639218
07.03.2017,ADULT SOCIAL CARE,HC-ONE LTD (TOWER BRIDGE CARE HOME),"-7,159.44",OP - NURSING,NURSING PLACEMENTS FEES,2102639272
07.03.2017,ADULT SOCIAL CARE,HC-ONE LTD (TOWER BRIDGE CARE HOME),"-7,159.44",OP - NURSING,NURSING PLACEMENTS FEES,2102639309
07.03.2017,ADULT SOCIAL CARE,HC-ONE LTD (TOWER BRIDGE CARE HOME),"-7,159.44",OP - NURSING,NURSING PLACEMENTS FEES,2102639319
07.03.2017,ADULT SOCIAL CARE,HC-ONE LTD (TOWER BRIDGE CARE HOME),"-7,154.28",OP - NURSING,NURSING PLACEMENTS FEES,2102639210
07.03.2017,ADULT SOCIAL CARE,HC-ONE LTD (TOWER BRIDGE CARE HOME),"-7,154.28",OP - NURSING,NURSING PLACEMENTS FEES,2102639248
07.03.2017,ADULT SOCIAL CARE,HC-ONE LTD (TOWER BRIDGE CARE HOME),"-7,154.28",OP - NURSING,NURSING PLACEMENTS FEES,2102639249
07.03.2017,ADULT SOCIAL CARE,HC-ONE LTD (TOWER BRIDGE CARE HOME),"-7,154.28",OP - NURSING,NURSING PLACEMENTS FEES,2102639253
07.03.2017,ADULT SOCIAL CARE,HC-ONE LTD (TOWER BRIDGE CARE HOME),"-7,154.28",OP - NURSING,NURSING PLACEMENTS FEES,2102639256
07.03.2017,ADULT SOCIAL CARE,HC-ONE LTD (TOWER BRIDGE CARE HOME),"-7,154.28",OP - NURSING,NURSING PLACEMENTS FEES,2102639260
07.03.2017,ADULT SOCIAL CARE,HC-ONE LTD (TOWER BRIDGE CARE HOME),"-7,154.28",OP - NURSING,NURSING PLACEMENTS FEES,2102639266
07.03.2017,ADULT SOCIAL CARE,HC-ONE LTD (TOWER BRIDGE CARE HOME),"-7,154.28",OP - NURSING,NURSING PLACEMENTS FEES,2102639274
07.03.2017,ADULT SOCIAL CARE,HC-ONE LTD (TOWER BRIDGE CARE HOME),"-7,154.28",OP - NURSING,NURSING PLACEMENTS FEES,2102639283
07.03.2017,ADULT SOCIAL CARE,HC-ONE LTD (TOWER BRIDGE CARE HOME),"-7,154.28",OP - NURSING,NURSING PLACEMENTS FEES,2102639307
07.03.2017,ADULT SOCIAL CARE,HC-ONE LTD (TOWER BRIDGE CARE HOME),"-7,154.28",OP - NURSING,NURSING PLACEMENTS FEES,2102639315
07.03.2017,ADULT SOCIAL CARE,HC-ONE LTD (TOWER BRIDGE CARE HOME),"-7,154.28",OP - NURSING,NURSING PLACEMENTS FEES,2102639322
07.03.2017,ADULT SOCIAL CARE,HC-ONE LTD (TOWER BRIDGE CARE HOME),"-7,140.60",OP - NURSING,NURSING PLACEMENTS FEES,2102639208
07.03.2017,ADULT SOCIAL CARE,HC-ONE LTD (TOWER BRIDGE CARE HOME),"-7,140.60",OP - NURSING,NURSING PLACEMENTS FEES,2102639212
07.03.2017,ADULT SOCIAL CARE,HC-ONE LTD (TOWER BRIDGE CARE HOME),"-7,140.60",OP - NURSING,NURSING PLACEMENTS FEES,2102639223
07.03.2017,ADULT SOCIAL CARE,HC-ONE LTD (TOWER BRIDGE CARE HOME),"-7,140.60",OP - NURSING,NURSING PLACEMENTS FEES,2102639233
07.03.2017,ADULT SOCIAL CARE,HC-ONE LTD (TOWER BRIDGE CARE HOME),"-7,140.60",OP - NURSING,NURSING PLACEMENTS FEES,2102639239
07.03.2017,ADULT SOCIAL CARE,HC-ONE LTD (TOWER BRIDGE CARE HOME),"-7,140.60",OP - NURSING,NURSING PLACEMENTS FEES,2102639251
07.03.2017,ADULT SOCIAL CARE,HC-ONE LTD (TOWER BRIDGE CARE HOME),"-7,140.60",OP - NURSING,NURSING PLACEMENTS FEES,2102639286
07.03.2017,ADULT SOCIAL CARE,HC-ONE LTD (TOWER BRIDGE CARE HOME),"-7,140.60",OP - NURSING,NURSING PLACEMENTS FEES,2102639295
07.03.2017,ADULT SOCIAL CARE,HC-ONE LTD (TOWER BRIDGE CARE HOME),"-7,140.60",OP - NURSING,NURSING PLACEMENTS FEES,2102639298
07.03.2017,ADULT SOCIAL CARE,HC-ONE LTD (TOWER BRIDGE CARE HOME),"-7,140.60",OP - NURSING,NURSING PLACEMENTS FEES,2102639301
07.03.2017,ADULT SOCIAL CARE,HC-ONE LTD (TOWER BRIDGE CARE HOME),"-7,067.04",OP - NURSING,NURSING PLACEMENTS FEES,2102639214
07.03.2017,ADULT SOCIAL CARE,HC-ONE LTD (TOWER BRIDGE CARE HOME),"-7,067.04",OP - NURSING,NURSING PLACEMENTS FEES,2102639281
07.03.2017,ADULT SOCIAL CARE,HC-ONE LTD (TOWER BRIDGE CARE HOME),"-6,628.44",OP - NURSING,NURSING PLACEMENTS FEES,2102639278
07.03.2017,ADULT SOCIAL CARE,HC-ONE LTD (TOWER BRIDGE CARE HOME),"-6,442.92",OP - NURSING,NURSING PLACEMENTS FEES,2102639284
07.03.2017,ADULT SOCIAL CARE,HC-ONE LTD (TOWER BRIDGE CARE HOME),"-6,442.92",OP - NURSING,NURSING PLACEMENTS FEES,2102639297
07.03.2017,ADULT SOCIAL CARE,HC-ONE LTD (TOWER BRIDGE CARE HOME),"-6,420.60",OP - NURSING,NURSING PLACEMENTS FEES,2102639219
07.03.2017,ADULT SOCIAL CARE,HC-ONE LTD (TOWER BRIDGE CARE HOME),"-6,420.60",OP - NURSING,NURSING PLACEMENTS FEES,2102639245
07.03.2017,ADULT SOCIAL CARE,HC-ONE LTD (TOWER BRIDGE CARE HOME),"-6,420.60",OP - NURSING,NURSING PLACEMENTS FEES,2102639255
07.03.2017,ADULT SOCIAL CARE,HC-ONE LTD (TOWER BRIDGE CARE HOME),"-6,420.60",OP - NURSING,NURSING PLACEMENTS FEES,2102639289
07.03.2017,ADULT SOCIAL CARE,HC-ONE LTD (TOWER BRIDGE CARE HOME),"-6,233.64",OP - NURSING,NURSING PLACEMENTS FEES,2102639312
07.03.2017,ADULT SOCIAL CARE,HC-ONE LTD (TOWER BRIDGE CARE HOME),"-5,911.92",OP - NURSING,NURSING PLACEMENTS FEES,2102639220
07.03.2017,ADULT SOCIAL CARE,HC-ONE LTD (TOWER BRIDGE CARE HOME),"-5,911.92",OP - NURSING,NURSING PLACEMENTS FEES,2102639303
07.03.2017,ADULT SOCIAL CARE,HC-ONE LTD (TOWER BRIDGE CARE HOME),"-5,911.92",OP - NURSING,NURSING PLACEMENTS FEES,2102639320
07.03.2017,ADULT SOCIAL CARE,HC-ONE LTD (TOWER BRIDGE CARE HOME),"-3,941.28",OP - NURSING,NURSING PLACEMENTS FEES,2102639189
07.03.2017,ADULT SOCIAL CARE,HC-ONE LTD (TOWER BRIDGE CARE HOME),"1,970.64",OP - NURSING,NURSING PLACEMENTS FEES,2102638864
07.03.2017,ADULT SOCIAL CARE,HC-ONE LTD (TOWER BRIDGE CARE HOME),"1,970.64",OP - NURSING,NURSING PLACEMENTS FEES,2102638914
07.03.2017,ADULT SOCIAL CARE,HC-ONE LTD (TOWER BRIDGE CARE HOME),"1,970.64",OP - NURSING,NURSING PLACEMENTS FEES,2102638949
07.03.2017,ADULT SOCIAL CARE,HC-ONE LTD (TOWER BRIDGE CARE HOME),"1,970.64",OP - NURSING,NURSING PLACEMENTS FEES,2102638953
07.03.2017,ADULT SOCIAL CARE,HC-ONE LTD (TOWER BRIDGE CARE HOME),"1,970.64",OP - NURSING,NURSING PLACEMENTS FEES,2102638967
07.03.2017,ADULT SOCIAL CARE,HC-ONE LTD (TOWER BRIDGE CARE HOME),"1,970.64",OP - NURSING,NURSING PLACEMENTS FEES,2102638983
07.03.2017,ADULT SOCIAL CARE,HC-ONE LTD (TOWER BRIDGE CARE HOME),"1,970.64",OP - NURSING,NURSING PLACEMENTS FEES,2102639033
07.03.2017,ADULT SOCIAL CARE,HC-ONE LTD (TOWER BRIDGE CARE HOME),"1,970.64",OP - NURSING,NURSING PLACEMENTS FEES,2102639066
07.03.2017,ADULT SOCIAL CARE,HC-ONE LTD (TOWER BRIDGE CARE HOME),"1,970.64",OP - NURSING,NURSING PLACEMENTS FEES,2102639070
07.03.2017,ADULT SOCIAL CARE,HC-ONE LTD (TOWER BRIDGE CARE HOME),"1,970.64",OP - NURSING,NURSING PLACEMENTS FEES,2102639085
07.03.2017,ADULT SOCIAL CARE,HC-ONE LTD (TOWER BRIDGE CARE HOME),"1,970.64",OP - NURSING,NURSING PLACEMENTS FEES,2102639101
07.03.2017,ADULT SOCIAL CARE,HC-ONE LTD (TOWER BRIDGE CARE HOME),"1,970.64",OP - NURSING,NURSING PLACEMENTS FEES,2102639151
07.03.2017,ADULT SOCIAL CARE,HC-ONE LTD (TOWER BRIDGE CARE HOME),"1,970.64",OP - NURSING,NURSING PLACEMENTS FEES,2102639185
07.03.2017,ADULT SOCIAL CARE,HC-ONE LTD (TOWER BRIDGE CARE HOME),"1,970.64",OP - NURSING,NURSING PLACEMENTS FEES,2102639204
07.03.2017,ADULT SOCIAL CARE,HC-ONE LTD (TOWER BRIDGE CARE HOME),"2,077.88",OP - NURSING,NURSING PLACEMENTS FEES,2102638959
07.03.2017,ADULT SOCIAL CARE,HC-ONE LTD (TOWER BRIDGE CARE HOME),"2,077.88",OP - NURSING,NURSING PLACEMENTS FEES,2102639077
07.03.2017,ADULT SOCIAL CARE,HC-ONE LTD (TOWER BRIDGE CARE HOME),"2,077.88",OP - NURSING,NURSING PLACEMENTS FEES,2102639196
07.03.2017,ADULT SOCIAL CARE,HC-ONE LTD (TOWER BRIDGE CARE HOME),"2,140.20",OP - NURSING,NURSING PLACEMENTS FEES,2102638863
07.03.2017,ADULT SOCIAL CARE,HC-ONE LTD (TOWER BRIDGE CARE HOME),"2,140.20",OP - NURSING,NURSING PLACEMENTS FEES,2102638889
07.03.2017,ADULT SOCIAL CARE,HC-ONE LTD (TOWER BRIDGE CARE HOME),"2,140.20",OP - NURSING,NURSING PLACEMENTS FEES,2102638899
07.03.2017,ADULT SOCIAL CARE,HC-ONE LTD (TOWER BRIDGE CARE HOME),"2,140.20",OP - NURSING,NURSING PLACEMENTS FEES,2102638934
07.03.2017,ADULT SOCIAL CARE,HC-ONE LTD (TOWER BRIDGE CARE HOME),"2,140.20",OP - NURSING,NURSING PLACEMENTS FEES,2102638982
07.03.2017,ADULT SOCIAL CARE,HC-ONE LTD (TOWER BRIDGE CARE HOME),"2,140.20",OP - NURSING,NURSING PLACEMENTS FEES,2102639008
07.03.2017,ADULT SOCIAL CARE,HC-ONE LTD (TOWER BRIDGE CARE HOME),"2,140.20",OP - NURSING,NURSING PLACEMENTS FEES,2102639018
07.03.2017,ADULT SOCIAL CARE,HC-ONE LTD (TOWER BRIDGE CARE HOME),"2,140.20",OP - NURSING,NURSING PLACEMENTS FEES,2102639052
07.03.2017,ADULT SOCIAL CARE,HC-ONE LTD (TOWER BRIDGE CARE HOME),"2,140.20",OP - NURSING,NURSING PLACEMENTS FEES,2102639100
07.03.2017,ADULT SOCIAL CARE,HC-ONE LTD (TOWER BRIDGE CARE HOME),"2,140.20",OP - NURSING,NURSING PLACEMENTS FEES,2102639126
07.03.2017,ADULT SOCIAL CARE,HC-ONE LTD (TOWER BRIDGE CARE HOME),"2,140.20",OP - NURSING,NURSING PLACEMENTS FEES,2102639136
07.03.2017,ADULT SOCIAL CARE,HC-ONE LTD (TOWER BRIDGE CARE HOME),"2,140.20",OP - NURSING,NURSING PLACEMENTS FEES,2102639171
07.03.2017,ADULT SOCIAL CARE,HC-ONE LTD (TOWER BRIDGE CARE HOME),"2,147.64",OP - NURSING,NURSING PLACEMENTS FEES,2102638929
07.03.2017,ADULT SOCIAL CARE,HC-ONE LTD (TOWER BRIDGE CARE HOME),"2,147.64",OP - NURSING,NURSING PLACEMENTS FEES,2102638943
07.03.2017,ADULT SOCIAL CARE,HC-ONE LTD (TOWER BRIDGE CARE HOME),"2,147.64",OP - NURSING,NURSING PLACEMENTS FEES,2102639047
07.03.2017,ADULT SOCIAL CARE,HC-ONE LTD (TOWER BRIDGE CARE HOME),"2,147.64",OP - NURSING,NURSING PLACEMENTS FEES,2102639060
07.03.2017,ADULT SOCIAL CARE,HC-ONE LTD (TOWER BRIDGE CARE HOME),"2,147.64",OP - NURSING,NURSING PLACEMENTS FEES,2102639166
07.03.2017,ADULT SOCIAL CARE,HC-ONE LTD (TOWER BRIDGE CARE HOME),"2,147.64",OP - NURSING,NURSING PLACEMENTS FEES,2102639179
07.03.2017,ADULT SOCIAL CARE,HC-ONE LTD (TOWER BRIDGE CARE HOME),"2,209.48",OP - NURSING,NURSING PLACEMENTS FEES,2102638923
07.03.2017,ADULT SOCIAL CARE,HC-ONE LTD (TOWER BRIDGE CARE HOME),"2,209.48",OP - NURSING,NURSING PLACEMENTS FEES,2102639041
07.03.2017,ADULT SOCIAL CARE,HC-ONE LTD (TOWER BRIDGE CARE HOME),"2,209.48",OP - NURSING,NURSING PLACEMENTS FEES,2102639160
07.03.2017,ADULT SOCIAL CARE,HC-ONE LTD (TOWER BRIDGE CARE HOME),"2,355.68",OP - NURSING,NURSING PLACEMENTS FEES,2102638858
07.03.2017,ADULT SOCIAL CARE,HC-ONE LTD (TOWER BRIDGE CARE HOME),"2,355.68",OP - NURSING,NURSING PLACEMENTS FEES,2102638926
07.03.2017,ADULT SOCIAL CARE,HC-ONE LTD (TOWER BRIDGE CARE HOME),"2,355.68",OP - NURSING,NURSING PLACEMENTS FEES,2102638977
07.03.2017,ADULT SOCIAL CARE,HC-ONE LTD (TOWER BRIDGE CARE HOME),"2,355.68",OP - NURSING,NURSING PLACEMENTS FEES,2102639044
07.03.2017,ADULT SOCIAL CARE,HC-ONE LTD (TOWER BRIDGE CARE HOME),"2,355.68",OP - NURSING,NURSING PLACEMENTS FEES,2102639095
07.03.2017,ADULT SOCIAL CARE,HC-ONE LTD (TOWER BRIDGE CARE HOME),"2,355.68",OP - NURSING,NURSING PLACEMENTS FEES,2102639163
07.03.2017,ADULT SOCIAL CARE,HC-ONE LTD (TOWER BRIDGE CARE HOME),"2,380.20",OP - NURSING,NURSING PLACEMENTS FEES,2102638852
07.03.2017,ADULT SOCIAL CARE,HC-ONE LTD (TOWER BRIDGE CARE HOME),"2,380.20",OP - NURSING,NURSING PLACEMENTS FEES,2102638856
07.03.2017,ADULT SOCIAL CARE,HC-ONE LTD (TOWER BRIDGE CARE HOME),"2,380.20",OP - NURSING,NURSING PLACEMENTS FEES,2102638867
07.03.2017,ADULT SOCIAL CARE,HC-ONE LTD (TOWER BRIDGE CARE HOME),"2,380.20",OP - NURSING,NURSING PLACEMENTS FEES,2102638877
07.03.2017,ADULT SOCIAL CARE,HC-ONE LTD (TOWER BRIDGE CARE HOME),"2,380.20",OP - NURSING,NURSING PLACEMENTS FEES,2102638883
07.03.2017,ADULT SOCIAL CARE,HC-ONE LTD (TOWER BRIDGE CARE HOME),"2,380.20",OP - NURSING,NURSING PLACEMENTS FEES,2102638895
07.03.2017,ADULT SOCIAL CARE,HC-ONE LTD (TOWER BRIDGE CARE HOME),"2,380.20",OP - NURSING,NURSING PLACEMENTS FEES,2102638931
07.03.2017,ADULT SOCIAL CARE,HC-ONE LTD (TOWER BRIDGE CARE HOME),"2,380.20",OP - NURSING,NURSING PLACEMENTS FEES,2102638941
07.03.2017,ADULT SOCIAL CARE,HC-ONE LTD (TOWER BRIDGE CARE HOME),"2,380.20",OP - NURSING,NURSING PLACEMENTS FEES,2102638944
07.03.2017,ADULT SOCIAL CARE,HC-ONE LTD (TOWER BRIDGE CARE HOME),"2,380.20",OP - NURSING,NURSING PLACEMENTS FEES,2102638947
07.03.2017,ADULT SOCIAL CARE,HC-ONE LTD (TOWER BRIDGE CARE HOME),"2,380.20",OP - NURSING,NURSING PLACEMENTS FEES,2102638971
07.03.2017,ADULT SOCIAL CARE,HC-ONE LTD (TOWER BRIDGE CARE HOME),"2,380.20",OP - NURSING,NURSING PLACEMENTS FEES,2102638975
07.03.2017,ADULT SOCIAL CARE,HC-ONE LTD (TOWER BRIDGE CARE HOME),"2,380.20",OP - NURSING,NURSING PLACEMENTS FEES,2102638986
07.03.2017,ADULT SOCIAL CARE,HC-ONE LTD (TOWER BRIDGE CARE HOME),"2,380.20",OP - NURSING,NURSING PLACEMENTS FEES,2102638996
07.03.2017,ADULT SOCIAL CARE,HC-ONE LTD (TOWER BRIDGE CARE HOME),"2,380.20",OP - NURSING,NURSING PLACEMENTS FEES,2102639002
07.03.2017,ADULT SOCIAL CARE,HC-ONE LTD (TOWER BRIDGE CARE HOME),"2,380.20",OP - NURSING,NURSING PLACEMENTS FEES,2102639014
07.03.2017,ADULT SOCIAL CARE,HC-ONE LTD (TOWER BRIDGE CARE HOME),"2,380.20",OP - NURSING,NURSING PLACEMENTS FEES,2102639049
07.03.2017,ADULT SOCIAL CARE,HC-ONE LTD (TOWER BRIDGE CARE HOME),"2,380.20",OP - NURSING,NURSING PLACEMENTS FEES,2102639058
07.03.2017,ADULT SOCIAL CARE,HC-ONE LTD (TOWER BRIDGE CARE HOME),"2,380.20",OP - NURSING,NURSING PLACEMENTS FEES,2102639061
07.03.2017,ADULT SOCIAL CARE,HC-ONE LTD (TOWER BRIDGE CARE HOME),"2,380.20",OP - NURSING,NURSING PLACEMENTS FEES,2102639064
07.03.2017,ADULT SOCIAL CARE,HC-ONE LTD (TOWER BRIDGE CARE HOME),"2,380.20",OP - NURSING,NURSING PLACEMENTS FEES,2102639089
07.03.2017,ADULT SOCIAL CARE,HC-ONE LTD (TOWER BRIDGE CARE HOME),"2,380.20",OP - NURSING,NURSING PLACEMENTS FEES,2102639093
07.03.2017,ADULT SOCIAL CARE,HC-ONE LTD (TOWER BRIDGE CARE HOME),"2,380.20",OP - NURSING,NURSING PLACEMENTS FEES,2102639104
07.03.2017,ADULT SOCIAL CARE,HC-ONE LTD (TOWER BRIDGE CARE HOME),"2,380.20",OP - NURSING,NURSING PLACEMENTS FEES,2102639114
07.03.2017,ADULT SOCIAL CARE,HC-ONE LTD (TOWER BRIDGE CARE HOME),"2,380.20",OP - NURSING,NURSING PLACEMENTS FEES,2102639120
07.03.2017,ADULT SOCIAL CARE,HC-ONE LTD (TOWER BRIDGE CARE HOME),"2,380.20",OP - NURSING,NURSING PLACEMENTS FEES,2102639132
07.03.2017,ADULT SOCIAL CARE,HC-ONE LTD (TOWER BRIDGE CARE HOME),"2,380.20",OP - NURSING,NURSING PLACEMENTS FEES,2102639168
07.03.2017,ADULT SOCIAL CARE,HC-ONE LTD (TOWER BRIDGE CARE HOME),"2,380.20",OP - NURSING,NURSING PLACEMENTS FEES,2102639177
07.03.2017,ADULT SOCIAL CARE,HC-ONE LTD (TOWER BRIDGE CARE HOME),"2,380.20",OP - NURSING,NURSING PLACEMENTS FEES,2102639180
07.03.2017,ADULT SOCIAL CARE,HC-ONE LTD (TOWER BRIDGE CARE HOME),"2,380.20",OP - NURSING,NURSING PLACEMENTS FEES,2102639183
07.03.2017,ADULT SOCIAL CARE,HC-ONE LTD (TOWER BRIDGE CARE HOME),"2,384.76",OP - NURSING,NURSING PLACEMENTS FEES,2102638854
07.03.2017,ADULT SOCIAL CARE,HC-ONE LTD (TOWER BRIDGE CARE HOME),"2,384.76",OP - NURSING,NURSING PLACEMENTS FEES,2102638892
07.03.2017,ADULT SOCIAL CARE,HC-ONE LTD (TOWER BRIDGE CARE HOME),"2,384.76",OP - NURSING,NURSING PLACEMENTS FEES,2102638893
07.03.2017,ADULT SOCIAL CARE,HC-ONE LTD (TOWER BRIDGE CARE HOME),"2,384.76",OP - NURSING,NURSING PLACEMENTS FEES,2102638897
07.03.2017,ADULT SOCIAL CARE,HC-ONE LTD (TOWER BRIDGE CARE HOME),"2,384.76",OP - NURSING,NURSING PLACEMENTS FEES,2102638900
07.03.2017,ADULT SOCIAL CARE,HC-ONE LTD (TOWER BRIDGE CARE HOME),"2,384.76",OP - NURSING,NURSING PLACEMENTS FEES,2102638904
07.03.2017,ADULT SOCIAL CARE,HC-ONE LTD (TOWER BRIDGE CARE HOME),"2,384.76",OP - NURSING,NURSING PLACEMENTS FEES,2102638910
07.03.2017,ADULT SOCIAL CARE,HC-ONE LTD (TOWER BRIDGE CARE HOME),"2,384.76",OP - NURSING,NURSING PLACEMENTS FEES,2102638919
07.03.2017,ADULT SOCIAL CARE,HC-ONE LTD (TOWER BRIDGE CARE HOME),"2,384.76",OP - NURSING,NURSING PLACEMENTS FEES,2102638928
07.03.2017,ADULT SOCIAL CARE,HC-ONE LTD (TOWER BRIDGE CARE HOME),"2,384.76",OP - NURSING,NURSING PLACEMENTS FEES,2102638954
07.03.2017,ADULT SOCIAL CARE,HC-ONE LTD (TOWER BRIDGE CARE HOME),"2,384.76",OP - NURSING,NURSING PLACEMENTS FEES,2102638962
07.03.2017,ADULT SOCIAL CARE,HC-ONE LTD (TOWER BRIDGE CARE HOME),"2,384.76",OP - NURSING,NURSING PLACEMENTS FEES,2102638969
07.03.2017,ADULT SOCIAL CARE,HC-ONE LTD (TOWER BRIDGE CARE HOME),"2,384.76",OP - NURSING,NURSING PLACEMENTS FEES,2102638973
07.03.2017,ADULT SOCIAL CARE,HC-ONE LTD (TOWER BRIDGE CARE HOME),"2,384.76",OP - NURSING,NURSING PLACEMENTS FEES,2102639011
07.03.2017,ADULT SOCIAL CARE,HC-ONE LTD (TOWER BRIDGE CARE HOME),"2,384.76",OP - NURSING,NURSING PLACEMENTS FEES,2102639012
07.03.2017,ADULT SOCIAL CARE,HC-ONE LTD (TOWER BRIDGE CARE HOME),"2,384.76",OP - NURSING,NURSING PLACEMENTS FEES,2102639016
07.03.2017,ADULT SOCIAL CARE,HC-ONE LTD (TOWER BRIDGE CARE HOME),"2,384.76",OP - NURSING,NURSING PLACEMENTS FEES,2102639019
07.03.2017,ADULT SOCIAL CARE,HC-ONE LTD (TOWER BRIDGE CARE HOME),"2,384.76",OP - NURSING,NURSING PLACEMENTS FEES,2102639023
07.03.2017,ADULT SOCIAL CARE,HC-ONE LTD (TOWER BRIDGE CARE HOME),"2,384.76",OP - NURSING,NURSING PLACEMENTS FEES,2102639029
07.03.2017,ADULT SOCIAL CARE,HC-ONE LTD (TOWER BRIDGE CARE HOME),"2,384.76",OP - NURSING,NURSING PLACEMENTS FEES,2102639037
07.03.2017,ADULT SOCIAL CARE,HC-ONE LTD (TOWER BRIDGE CARE HOME),"2,384.76",OP - NURSING,NURSING PLACEMENTS FEES,2102639046
07.03.2017,ADULT SOCIAL CARE,HC-ONE LTD (TOWER BRIDGE CARE HOME),"2,384.76",OP - NURSING,NURSING PLACEMENTS FEES,2102639072
07.03.2017,ADULT SOCIAL CARE,HC-ONE LTD (TOWER BRIDGE CARE HOME),"2,384.76",OP - NURSING,NURSING PLACEMENTS FEES,2102639080
07.03.2017,ADULT SOCIAL CARE,HC-ONE LTD (TOWER BRIDGE CARE HOME),"2,384.76",OP - NURSING,NURSING PLACEMENTS FEES,2102639087
07.03.2017,ADULT SOCIAL CARE,HC-ONE LTD (TOWER BRIDGE CARE HOME),"2,384.76",OP - NURSING,NURSING PLACEMENTS FEES,2102639091
07.03.2017,ADULT SOCIAL CARE,HC-ONE LTD (TOWER BRIDGE CARE HOME),"2,384.76",OP - NURSING,NURSING PLACEMENTS FEES,2102639129
07.03.2017,ADULT SOCIAL CARE,HC-ONE LTD (TOWER BRIDGE CARE HOME),"2,384.76",OP - NURSING,NURSING PLACEMENTS FEES,2102639130
07.03.2017,ADULT SOCIAL CARE,HC-ONE LTD (TOWER BRIDGE CARE HOME),"2,384.76",OP - NURSING,NURSING PLACEMENTS FEES,2102639134
07.03.2017,ADULT SOCIAL CARE,HC-ONE LTD (TOWER BRIDGE CARE HOME),"2,384.76",OP - NURSING,NURSING PLACEMENTS FEES,2102639137
07.03.2017,ADULT SOCIAL CARE,HC-ONE LTD (TOWER BRIDGE CARE HOME),"2,384.76",OP - NURSING,NURSING PLACEMENTS FEES,2102639141
07.03.2017,ADULT SOCIAL CARE,HC-ONE LTD (TOWER BRIDGE CARE HOME),"2,384.76",OP - NURSING,NURSING PLACEMENTS FEES,2102639147
07.03.2017,ADULT SOCIAL CARE,HC-ONE LTD (TOWER BRIDGE CARE HOME),"2,384.76",OP - NURSING,NURSING PLACEMENTS FEES,2102639155
07.03.2017,ADULT SOCIAL CARE,HC-ONE LTD (TOWER BRIDGE CARE HOME),"2,384.76",OP - NURSING,NURSING PLACEMENTS FEES,2102639165
07.03.2017,ADULT SOCIAL CARE,HC-ONE LTD (TOWER BRIDGE CARE HOME),"2,384.76",OP - NURSING,NURSING PLACEMENTS FEES,2102639191
07.03.2017,ADULT SOCIAL CARE,HC-ONE LTD (TOWER BRIDGE CARE HOME),"2,384.76",OP - NURSING,NURSING PLACEMENTS FEES,2102639199
07.03.2017,ADULT SOCIAL CARE,HC-ONE LTD (TOWER BRIDGE CARE HOME),"2,384.76",OP - NURSING,NURSING PLACEMENTS FEES,2102639206
07.03.2017,ADULT SOCIAL CARE,HC-ONE LTD (TOWER BRIDGE CARE HOME),"2,386.48",OP - NURSING,NURSING PLACEMENTS FEES,2102638861
07.03.2017,ADULT SOCIAL CARE,HC-ONE LTD (TOWER BRIDGE CARE HOME),"2,386.48",OP - NURSING,NURSING PLACEMENTS FEES,2102638862
07.03.2017,ADULT SOCIAL CARE,HC-ONE LTD (TOWER BRIDGE CARE HOME),"2,386.48",OP - NURSING,NURSING PLACEMENTS FEES,2102638917
07.03.2017,ADULT SOCIAL CARE,HC-ONE LTD (TOWER BRIDGE CARE HOME),"2,386.48",OP - NURSING,NURSING PLACEMENTS FEES,2102638956
07.03.2017,ADULT SOCIAL CARE,HC-ONE LTD (TOWER BRIDGE CARE HOME),"2,386.48",OP - NURSING,NURSING PLACEMENTS FEES,2102638966
07.03.2017,ADULT SOCIAL CARE,HC-ONE LTD (TOWER BRIDGE CARE HOME),"2,386.48",OP - NURSING,NURSING PLACEMENTS FEES,2102638980
07.03.2017,ADULT SOCIAL CARE,HC-ONE LTD (TOWER BRIDGE CARE HOME),"2,386.48",OP - NURSING,NURSING PLACEMENTS FEES,2102638981
07.03.2017,ADULT SOCIAL CARE,HC-ONE LTD (TOWER BRIDGE CARE HOME),"2,386.48",OP - NURSING,NURSING PLACEMENTS FEES,2102639035
